Workbook

Sheet Points
C2: Introduce LCOE; LCOH
C4: Need to be able to change yourself | J4: Put reset when make spinners
C6: Fredrick Email
C8: Other Models
C10: Objective and Diagram
C12: Problems with Simple -- Need to see parts; e.g. fuel efficiency
C14: Database and Drop Down
C16: Average/Min/Median in Database
C18: A lot about set-up
C20: Google and conversions
C22: Currency -- Get in Common Currency and Change Around
C24: Collect Items and Compute Cash Flow

Sheet Summary
E1: Electrolizer | T1: Demand
E2: Life | L2: Currency | M2: =Inputs!$F$23 -> 0.71
E3: Evalutation Period | G3: =Inputs!F6 -> 20 | T3: Conventional Diesel
E4: Electrolyzer Capacity | G4: =Inputs!F85 -> 17.14285714 | H4: kg/hr | T4: Trucks | V4: ='Operating Model'!K29 -> 31
E5: Electrolyzer Capacity | G5: =Inputs!F87 -> 1200 | H5: kw/hr | T5: Distance km | V5: ='Operating Model'!K34 -> 50
E6: Electrolyzer Life | G6: =Inputs!F33 -> 20 | H6: Yrs | T6: Efficiency | V6: =Inputs!F53 -> 9.770395701 | W6: km/L
T7: km per Year | V7: ='Operating Model'!K38 -> 12500
E8: Capital Cost/kg | G8: =Inputs!F95/Inputs!F23 -> 178278.3333 | H8: =Inputs!$D$23 -> AUD | T8: Truck Cost | V8: ='Operating Model'!H49 -> 435000 | W8: =Inputs!$D$23 -> AUD
E9: Capital Cost/kW | G9: =Inputs!F98/Inputs!F23 -> 2546.833333 | H9: =Inputs!$D$23 -> AUD
E11: Efficiency | G11: =Inputs!F86 -> 70 | H11: kWh/kg | T11: Hydrogen Truck
E12: Electricity Cost/MWH | G12: =Inputs!F101/Summary!M2 -> 70.42253521 | H12: =Inputs!$D$23&"/MWH" -> AUD/MWH | I12: Storage and Compression | P12: Dispensor and Chiller | T12: Diesel Price USD/L | V12: =Inputs!F63 -> 1.323943662
T13: Diesel Price USD/gal | V13: =Inputs!F66 -> 3.5582854
E14: Electricity Cost/kg | G14: ='Operating Model'!K91 -> 4.929577465 | I14: Storage Capacity (kg) | L14: =Inputs!F117 -> 345 | P14: Target Fill Minutes | R14: =Inputs!F147 -> 30
E15: Water Cost/kg | G15: ='Operating Model'!K98 -> 0.024402 | I15: Capital Cost/kg | L15: =Inputs!F123 -> 6449.686957 | P15: Capacity per Minute | R15: ='Operating Model'!H133 -> 2.941176471 | T15: Efficiency | V15: =Inputs!F60 -> 5.808049393 | W15: kg/km
E16: O&M Cost/kg | G16: ='Operating Model'!K107 -> 1.374236946 | I16: Operating Cost/kg | L16: ='Operating Model'!K129 -> 5.835280803 | P16: Number of Pumps | R16: ='Operating Model'!K147 -> 4 | T16: Truck Cost | V16: ='Operating Model'!H50 -> 823235.2941 | W16: =Inputs!$D$23 -> AUD
P17: Use per Day (kg/Day) | R17: ='Operating Model'!K138 -> 5.896398778
E18: Capacity Factor | G18: ='Operating Model'!O1 -> 0.4580178032 | P18: Filling Minutes | R18: ='Operating Model'!K144 -> 93.14804312 | T18: Diesel Conv to H2 | V18: ='Operating Model'!K55 -> 7.870234141 | W18: =W16 -> AUD
E19: Electrolyzer vs Truck Life | G19: ='Operating Model'!Q1 -> 0.8024471911 | T19: Discount Rate | V19: =Inputs!F171 -> 0.04
T20: Levelised Cost/kg | V20: ='Operating Model'!K199 -> 23.9095549
E21: Total Capital Expenditure | P21: Capital Cost/kg min | R21: ='Operating Model'!H150 -> 340111.0891
E22: Electrolyzer | G22: ='Operating Model'!K85 -> 3056200 | P22: Operating Cost/kg | R22: ='Operating Model'!K156 -> 3.567671113 | T22: Percent Increase | V22: ='Operating Model'!K197 -> 2.037972502
E23: Storage and Compression | G23: ='Operating Model'!K120 -> 2225142 | T23: Level Equiv Diesel | V23: ='Operating Model'!K202 -> 4.022104439
E24: Dispensor and Chiller | G24: ='Operating Model'!K182 -> 4760539.943
E25: Additional Truck Cost | G25: =V16*V4*Inputs!$F$41 -> 0 | T25: NPV Required | V25: ='Operating Model'!H185 -> 21679176.58
E26: Total Capital Cost | G26: =SUM(G22:G25) -> 10041881.94

Sheet Inputs
G1: =Inputs!$D$23 -> AUD
B2: Timing
C3: Start of Construction (Financial Close) | E3: Date | F3: 2020-01-01
C4: Construction Period | E4: Months | F4: 12
C5: Commercial Operation | E5: Date | F5: =EDATE(F3,F4) -> 2021-01-01
C6: BOT Period | E6: Years | F6: =F33 -> 20
C7: End of BOT Period | E7: Date | F7: =EDATE(F5,F6*12) -> 2041-01-01
C8: Period for Analysis | E8: Years | F8: =F6 -> 20
C9: End of Operating Life | E9: Date | F9: =EDATE(F5,F8*12) -> 2041-01-01
C11: Periods per Year - Construction | E11: Months | F11: 12
C12: Periods per Year - Operation | E12: Months | F12: 1
B14: Macro Economic
C15: Inflaton Rate | E15: % p.a | F15: 0.015
C17: Currency Table
D18: USD | E18: USD/USD | F18: 1
D19: AUD | E19: USD/AUD | F19: 0.71
D20: EUR | E20: USD/EUR | F20: =1.18 -> 1.18
D22: Code | E22: 2
D23: =INDEX(D18:D20,$E$22) -> AUD | E23: =INDEX(E18:E20,$E$22) -> USD/AUD | F23: =INDEX(F18:F20,$E$22) -> 0.71
B25: Demand: Truck Assumptions
C27: Number of Trucks
D28: Year | F28: =F3 -> 2020-01-01 | G28: =EDATE(F28,12) -> 2021-01-01 | H28: =EDATE(G28,12) -> 2022-01-01 | I28: 2023-01-01 | J28: 2024-01-01 | K28: 2025-01-01 | L28: 2026-01-01 | M28: 2027-01-01 | N28: 2028-01-01 | O28: 2029-01-01
D29: Number of Trucks - Phase 1 | E29: Number | G29: 31 | H29: 0 | I29: 0
D30: Number of Trucks - Phase 2 | E30: Number
D31: Number of Trucks - Phase 2 | E31: Number
D33: Electrolyzer Life | E33: Years | F33: ='Electrolyzer Database'!G17 -> 20
D34: Truck Life | E34: Years | F34: =F33/2 -> 10
D35: Date of Start | E35: Date | F35: =G28 -> 2021-01-01
D36: First Truck End | E36: Date | F36: =EDATE(F35,F34*12) -> 2031-01-01
D37: Second Truck Life | E37: Years | F37: =F34 -> 10
D38: End of Second Life | E38: Date | F38: =EDATE(F36,F37*12) -> 2041-01-01
D40: Number Replacements | E40: Number | F40: 1
D41: Replace Trucks | E41: Flag | F41: FALSE
D43: End of Truck Operation | E43: Date | F43: =F9 -> 2041-01-01
D45: Hours of Operation per Day | E45: Hours | F45: 10 | H45: Base Hrs | I45: 10 | Z45: 10
D46: Days per Week | E46: Days | F46: 5
D48: Weeks of Operation (Schedued Maint) | E48: Weeks | F48: 50
C50: Diesel Truck Comparator | F50: Applied
D51: Diesel Mileage litres/100 km | E51: L/100 km | F51: ='Truck Database'!$G$14 -> 102.35
D52: Diesel Mileage litres/km | E52: L/km | F52: =F51/100 -> 1.0235
D53: Diesel Mileage - km/Litre | E53: km/L | F53: =1/F51*1000 -> 9.770395701
D54: Diesel Mileage - Miles/gallon | E54: Miles/gallon | F54: ='Truck Database'!G18 -> 5.952157141
D56: Capital Cost of New Diesel Truck | E56: USD/Truck | F56: =F72*$F$23 -> 308850 | H56: =H72*$F$23 -> 0
C58: Hydrogen Truck
D59: Hydrogen Mileage | E59: kg/100 km | F59: ='Truck Database'!G29*100 -> 580.8049393
D60: Hydrogen Mileage kg/km | E60: kg/km | F60: =F59/100 -> 5.808049393
D61: Hydrogen Mileage km/kg | E61: km/kg | F61: =1/F60 -> 0.1721748443
D63: Diesel Cost/Litre | E63: AUD/Litre | F63: =F64/F19 -> 1.323943662
D64: Diesel Cost/Litre | E64: USD/Litre | F64: =diesel/100 -> 0.94 | H64: 94 | J64: Base Diesel | K64: 94
D65: Converstion to Gallons (Americans) | E65: Litre/Gallon | F65: 3.78541
D66: Diesel Cost/Gallon | E66: USD/Gallon | F66: =F65*F64 -> 3.5582854
D69: Diesel Truck fuel tank volume (liters) | E69: Litres
C71: Truck Costs
D72: Capital Cost of New Diesel Truck | E72: AUD/Truck | F72: =F73/F19 -> 435000
D73: Capital Cost of New Diesel Truck | E73: USD/Truck | F73: ='Truck Database'!G10 -> 308850
D75: Capital Cost of New Hydrogen Truck | E75: AUD/Truck | F75: =F76/F19 -> 823235.2941
D76: Capital Cost of New Hydrogen Truck | E76: USD/Truck | F76: ='Truck Database'!G25 -> 584497.0588
D78: Additional Truck Maintenance | E78: USD/km/yr | F78: 0
D79: Include Truck Cost Differential | E79: Flag | F79: TRUE
B81: Production of Hydrogen from Electrolyzer and Compression
D83: Year of Operation | E83: Date | F83: =F5 -> 2021-01-01
D85: Electrolyzer Capaicty | E85: kg/Hour | F85: 17.14285714 | G85: ='Electrolyzer Database'!G7 -> 17.14285714 | H85: =capacity/db_cap -> 1
D86: Electricity Efficiency | E86: kWh/kg | F86: ='Electrolyzer Database'!$G$12 -> 70
D87: kWh per Hour Required- kW Capacity | E87: kWh | F87: =F86*F85 -> 1200
D88: Water Efficiency | E88: L/kg | F88: ='Electrolyzer Database'!G9 -> 11.62
D90: Maximum Availability | E90: % | F90: ='Electrolyzer Database'!$G$14 -> 0.97
D91: Maximum Annual Production | E91: kg/Year | F91: =F85*8760*F90 -> 145666.2857
D92: Lifetime of Electrolyzer | E92: Hours | F92: 100000
D93: Lifetime of Electrolyzer | E93: Years | F93: ='Electrolyzer Database'!$G$17 -> 20
D95: Capital Cost per kg | E95: USD/kg-hr | F95: ='Electrolyzer Database'!$G$24 -> 126577.6167
D96: Capital Cost of Electrolyzer | E96: USD | F96: =F95*F85 -> 2169902
D97: Capital Cost of Electrolyzer | E97: AUD
D98: Capital Cost per kW | E98: USD/kW | F98: =F96/F87 -> 1808.251667
D100: Cost of Electricity | E100: AUD/MWH | F100: =F101/F23 -> 70.42253521
D101: Cost of Electricity | E101: USD/MWH | F101: 50 | H101: base price | I101: 50
D103: Cost of Water | E103: AUD/kLitre | F103: =F104/F19 -> 2.1
D104: Cost of Water | E104: USD/kLitre | F104: 1.491
D106: Maintenance Overhaul Years | E106: Years | F106: =ROUND('Electrolyzer Database'!$G$31,0) -> 8
D107: Cost of Major Overhaul as Percent of Cost | E107: % | F107: ='Electrolyzer Database'!G33 -> 0.4608503057
D108: Cost of Major Overhaul | E108: AUD | F108: =F109/F19 -> 1408450.704
D109: Cost of Major Overhaul | E109: USD | F109: =F96*F107 -> 1000000
D111: Other Overhead Costs | E111: % of Capital Cost | F111: ='Electrolyzer Database'!$G$28 -> 0.03
D113: Alternative Maintenance and Other/kg | E113: AUD/kg | F113: =H113 -> 0.239770962 | H113: ='Original Assumptions'!G38 -> 0.239770962
B115: Compressor and Storage
H116: Mario | I116: Alternate
C117: Storage Capacity | E117: kg | F117: =H117 -> 345 | H117: 345
C118: Storage Hours at Full Production | E118: Hrs | F118: =F117/F85 -> 20.125
C120: Capital Cost of Compressor and Storage | E120: AUD | F120: =F121/F19 -> 2225142
C121: Capital Cost of Compressor and Storage | E121: USD | F121: ='Refuller Database'!$G$10 -> 1579850.82
C123: Cost of Refuller per kg | E123: AUD/kg | F123: =F120/F117 -> 6449.686957
C124: Cost of Refuller per kg | E124: USD/kg | F124: =F121/F117 -> 4579.277739
C126: Maintenance Cost | E126: % | F126: =I126 -> 0
C127: Years Until Overhaul | E127: USD | F127: =F120*F126 -> 0
C128: Maintenance Overhaul Years | E128: Years | F128: 8
C129: Discount Rate | E129: % | F129: 0.05
C130: Annual Maintenance Payment | E130: AUD | F130: =PMT(F129,F128,-F127) -> 0
C132: Other Overhead Costs | E132: % of Capital | F132: ='Refuller Database'!G21 -> 0.1749626849
C133: Total Other Overhead
B135: Dispensor + Chiller +heat exchange +associated pipework
C137: Inlude Dispensor | E137: Flag | F137: TRUE
C139: Number of Nozzels | E139: Number | F139: 1
C140: Flow Rate for 50 kg | E140: Minutes | F140: 17
C141: Flow Rate - kg/Minute | E141: kg/Minute | F141: ='Refuller Database'!$G$16 -> 2.941176471
C143: Flow Rate in Terms of kg/Hour | E143: kg/Hour | F143: 2000
C144: Captial Cost for Single Dispenser | E144: USD | F144: ='Refuller Database'!G19 -> 241478.8732
C146: Manuevering Time | E146: Minutes | F146: 1
C147: Target Time per Day | E147: Minutes | F147: 30
C149: Maximum Visits per Day | E149: Visits | F149: 2
C150: Hydrogen Truck fuel tank volume (liters) | E150: kg | F150: =I150 -> 33 | I150: =Databook!E10 -> 33 | J150: =INDEX($H$50:$I$50,MATCH(F150,H150:I150,0)) -> 0
B153: Revenues
C155: Fix Diesel | E155: Flag | F155: TRUE
C156: Fuel Efficiency | E156: km/L 100 | F156: 2.5
C157: Fuel Efficiency | E157: L/km | F157: =1/F156*100 -> 40
C160: Diesel Price Option
D161: Percent Reduction
D162: Flat Price
D163: % of Palm Oil Price
B165: Discount Rates
C167: Investor Discount Rate | F167: 0.08
C168: Pre-BOT Discount Rate | F168: 0.08
C169: Post BOT Discount Rate | F169: 0.08
C171: Discount Rate Applied | F171: =G171/100 -> 0.04 | G171: 4
C173: Turn off Expenses | F173: FALSE
B175: Financing
C176: Senior Debt Percent | F176: 0.5
C178: BOT Period | F178: =F6 -> 20
C179: Tail | F179: 2
C180: Debt Tenor | F180: =F178-F179 -> 18
C182: Start Repayment Date | F182: =F5 -> 2021-01-01
C183: Debt Repaid Date | F183: =EDATE(F182,F180*12) -> 2039-01-01
F185: =F3 -> 2020-01-01 | G185: =F5 -> 2021-01-01 | H185: =EDATE(G185,60) -> 2026-01-01 | I185: =EDATE(H185,30) -> 2028-07-01
C186: Base Interest Rate | F186: 0.02 | G186: =F186 -> 0.02 | H186: =G186 -> 0.02 | I186: 0.02
C187: Credit Spread | F187: 0.03 | G187: 0.035 | H187: 0.037 | I187: 0.04
C188: Total Interest Rate | F188: =SUM(F186:F187) -> 0.05 | G188: =SUM(G186:G187) -> 0.055 | H188: 0.057 | I188: 0.06
C190: Mezzanine Debt Financing | F190: 0.2
F192: =F185 -> 2020-01-01 | G192: =G185 -> 2021-01-01 | H192: 2026-01-01 | I192: 2028-07-01
C193: Base Interest Rate | F193: 0.02 | G193: =F193 -> 0.02 | H193: =G193 -> 0.02 | I193: =H193 -> 0.02
C194: Credit Spread | F194: 0.045 | G194: 0.045 | H194: 0.045 | I194: 0.045
C195: Total Interest Rate | F195: =SUM(F193:F194) -> 0.065 | G195: =SUM(G193:G194) -> 0.065 | H195: 0.065 | I195: 0.065

Sheet Operating Model
B1: Timeline | H1: Driver 1 | I1: Description | J1: Driver 2 | K1: Sum/Max | N1: Capacity Factor | O1: =$K$79 -> 0.4580178032 | P1: Life Percent | Q1: =$K$83 -> 0.8024471911 | R1: Fillin Minutes | S1: =$K$144 -> 93.14804312
C2: Period | J2: Equivalent Diesel | L2: =Summary!V23 -> 4.022104439 | N2: 1 | O2: 2 | P2: 3 | Q2: 4 | R2: 5 | S2: 6 | T2: 7 | U2: 8 | V2: 9 | W2: 10 | X2: 11 | Y2: 12 | Z2: 13 | AA2: 14 | AB2: 15 | AC2: 16 | AD2: 17 | AE2: 18 | AF2: 19 | AG2: 20 | AH2: 21 | AI2: 22 | AJ2: 23 | AK2: 24 | AL2: 25 | AM2: 26 | AN2: 27 | AO2: 28 | AP2: 29 | AQ2: 30 | AR2: 31 | AS2: 32 | AT2: 33 | AU2: 34 | AV2: 35 | AW2: 36 | AX2: 37 | AY2: 38 | AZ2: 39 | BA2: 40 | BB2: 41 | BC2: 42 | BD2: 43 | BE2: 44 | BF2: 45 | BG2: 46 | BH2: 47 | BI2: 48 | BJ2: 49 | BK2: 50 | BL2: 51 | BM2: 52 | BN2: 53 | BO2: 54 | BP2: 55 | BQ2: 56 | BR2: 57 | BS2: 58
C3: Construction | G3: Flag | H3: =Inputs!F4 -> 12 | N3: =N2<=$H$3 -> TRUE | O3: TRUE | P3: TRUE | Q3: TRUE | R3: TRUE | S3: TRUE | T3: TRUE | U3: TRUE | V3: TRUE | W3: TRUE | X3: TRUE | Y3: TRUE | Z3: FALSE | AA3: FALSE | AB3: FALSE | AC3: FALSE | AD3: FALSE | AE3: FALSE | AF3: FALSE | AG3: FALSE | AH3: FALSE | AI3: FALSE | AJ3: FALSE | AK3: FALSE | AL3: FALSE | AM3: FALSE | AN3: FALSE | AO3: FALSE | AP3: FALSE | AQ3: FALSE | AR3: FALSE | AS3: FALSE | AT3: FALSE | AU3: FALSE | AV3: FALSE | AW3: FALSE | AX3: FALSE | AY3: FALSE | AZ3: FALSE | BA3: FALSE | BB3: =BB2<=$H$3 -> FALSE | BC3: =BC2<=$H$3 -> FALSE | BD3: =BD2<=$H$3 -> FALSE | BE3: =BE2<=$H$3 -> FALSE | BF3: =BF2<=$H$3 -> FALSE | BG3: =BG2<=$H$3 -> FALSE | BH3: =BH2<=$H$3 -> FALSE | BI3: =BI2<=$H$3 -> FALSE | BJ3: =BJ2<=$H$3 -> FALSE | BK3: =BK2<=$H$3 -> FALSE | BL3: =BL2<=$H$3 -> FALSE | BM3: =BM2<=$H$3 -> FALSE | BN3: =BN2<=$H$3 -> FALSE | BO3: =BO2<=$H$3 -> FALSE | BP3: =BP2<=$H$3 -> FALSE | BQ3: =BQ2<=$H$3 -> FALSE | BR3: =BR2<=$H$3 -> FALSE | BS3: =BS2<=$H$3 -> FALSE
C4: Periods per Year | G4: Months | H4: =Inputs!F12 -> 1 | J4: =Inputs!F11 -> 12 | L4: =Inputs!D23 -> AUD | N4: =IF(N$3,$H4,$J4) -> 1 | O4: 1 | P4: 1 | Q4: 1 | R4: 1 | S4: 1 | T4: 1 | U4: 1 | V4: 1 | W4: 1 | X4: 1 | Y4: 1 | Z4: 12 | AA4: 12 | AB4: 12 | AC4: 12 | AD4: 12 | AE4: 12 | AF4: 12 | AG4: 12 | AH4: 12 | AI4: 12 | AJ4: 12 | AK4: 12 | AL4: 12 | AM4: 12 | AN4: 12 | AO4: 12 | AP4: 12 | AQ4: 12 | AR4: 12 | AS4: 12 | AT4: =IF(AT$3,$H4,$J4) -> 12 | AU4: 12 | AV4: 12 | AW4: 12 | AX4: 12 | AY4: 12 | AZ4: 12 | BA4: 12 | BB4: 12 | BC4: 12 | BD4: 12 | BE4: 12 | BF4: 12 | BG4: 12 | BH4: 12 | BI4: 12 | BJ4: 12 | BK4: 12 | BL4: 12 | BM4: 12 | BN4: 12 | BO4: 12 | BP4: 12 | BQ4: 12 | BR4: 12 | BS4: 12
C5: Start of Period | G5: Date | N5: =M6+1 -> 2020-01-01 | O5: =N6+1 -> 2020-02-01 | P5: 2020-03-01 | Q5: 2020-04-01 | R5: 2020-05-01 | S5: 2020-06-01 | T5: 2020-07-01 | U5: 2020-08-01 | V5: 2020-09-01 | W5: 2020-10-01 | X5: 2020-11-01 | Y5: 2020-12-01 | Z5: 2021-01-01 | AA5: 2022-01-01 | AB5: 2023-01-01 | AC5: 2024-01-01 | AD5: 2025-01-01 | AE5: 2026-01-01 | AF5: 2027-01-01 | AG5: 2028-01-01 | AH5: 2029-01-01 | AI5: 2030-01-01 | AJ5: 2031-01-01 | AK5: 2032-01-01 | AL5: 2033-01-01 | AM5: 2034-01-01 | AN5: 2035-01-01 | AO5: 2036-01-01 | AP5: 2037-01-01 | AQ5: 2038-01-01 | AR5: 2039-01-01 | AS5: 2040-01-01 | AT5: 2041-01-01 | AU5: 2042-01-01 | AV5: 2043-01-01 | AW5: 2044-01-01 | AX5: 2045-01-01 | AY5: 2046-01-01 | AZ5: 2047-01-01 | BA5: 2048-01-01 | BB5: =BA6+1 -> 2049-01-01 | BC5: =BB6+1 -> 2050-01-01 | BD5: =BC6+1 -> 2051-01-01 | BE5: =BD6+1 -> 2052-01-01 | BF5: =BE6+1 -> 2053-01-01 | BG5: =BF6+1 -> 2054-01-01 | BH5: =BG6+1 -> 2055-01-01 | BI5: =BH6+1 -> 2056-01-01 | BJ5: =BI6+1 -> 2057-01-01 | BK5: =BJ6+1 -> 2058-01-01 | BL5: =BK6+1 -> 2059-01-01 | BM5: =BL6+1 -> 2060-01-01 | BN5: =BM6+1 -> 2061-01-01 | BO5: =BN6+1 -> 2062-01-01 | BP5: =BO6+1 -> 2063-01-01 | BQ5: =BP6+1 -> 2064-01-01 | BR5: =BQ6+1 -> 2065-01-01 | BS5: =BR6+1 -> 2066-01-01
C6: End of Period | G6: Date | M6: =Inputs!F3-1 -> 2019-12-31 | N6: =EDATE(N5,N4)-1 -> 2020-01-31 | O6: =EDATE(O5,O4)-1 -> 2020-02-29 | P6: 2020-03-31 | Q6: 2020-04-30 | R6: 2020-05-31 | S6: 2020-06-30 | T6: 2020-07-31 | U6: 2020-08-31 | V6: 2020-09-30 | W6: 2020-10-31 | X6: 2020-11-30 | Y6: 2020-12-31 | Z6: 2021-12-31 | AA6: 2022-12-31 | AB6: 2023-12-31 | AC6: 2024-12-31 | AD6: 2025-12-31 | AE6: 2026-12-31 | AF6: 2027-12-31 | AG6: 2028-12-31 | AH6: 2029-12-31 | AI6: 2030-12-31 | AJ6: 2031-12-31 | AK6: 2032-12-31 | AL6: 2033-12-31 | AM6: 2034-12-31 | AN6: 2035-12-31 | AO6: 2036-12-31 | AP6: 2037-12-31 | AQ6: 2038-12-31 | AR6: 2039-12-31 | AS6: 2040-12-31 | AT6: 2041-12-31 | AU6: 2042-12-31 | AV6: 2043-12-31 | AW6: 2044-12-31 | AX6: 2045-12-31 | AY6: 2046-12-31 | AZ6: 2047-12-31 | BA6: 2048-12-31 | BB6: =EDATE(BB5,BB4)-1 -> 2049-12-31 | BC6: 2050-12-31 | BD6: 2051-12-31 | BE6: 2052-12-31 | BF6: 2053-12-31 | BG6: 2054-12-31 | BH6: 2055-12-31 | BI6: 2056-12-31 | BJ6: 2057-12-31 | BK6: 2058-12-31 | BL6: 2059-12-31 | BM6: 2060-12-31 | BN6: 2061-12-31 | BO6: 2062-12-31 | BP6: 2063-12-31 | BQ6: 2064-12-31 | BR6: 2065-12-31 | BS6: 2066-12-31
C7: Date of Electrolyzer Operation | G7: Flag | H7: =Inputs!$F$83 -> 2021-01-01 | K7: =SUM(N7:BS7) -> 1 | N7: =($H$7=N5)*1 -> 0 | O7: 0 | P7: 0 | Q7: 0 | R7: 0 | S7: 0 | T7: 0 | U7: 0 | V7: 0 | W7: 0 | X7: 0 | Y7: 0 | Z7: 1 | AA7: 0 | AB7: 0 | AC7: 0 | AD7: 0 | AE7: 0 | AF7: 0 | AG7: 0 | AH7: 0 | AI7: 0 | AJ7: 0 | AK7: 0 | AL7: 0 | AM7: 0 | AN7: 0 | AO7: 0 | AP7: 0 | AQ7: 0 | AR7: 0 | AS7: 0 | AT7: =($H$7=AT5)*1 -> 0 | AU7: 0 | AV7: 0 | AW7: 0 | AX7: 0 | AY7: 0 | AZ7: 0 | BA7: 0 | BB7: 0 | BC7: 0 | BD7: 0 | BE7: 0 | BF7: 0 | BG7: 0 | BH7: 0 | BI7: 0 | BJ7: 0 | BK7: 0 | BL7: 0 | BM7: 0 | BN7: 0 | BO7: 0 | BP7: 0 | BQ7: 0 | BR7: 0 | BS7: 0
C8: Electrolizer Operating | G8: Flag | H8: =Inputs!$F$83 -> 2021-01-01 | J8: =Inputs!F43 -> 2041-01-01 | K8: =SUM(N8:BS8) -> 20 | N8: =AND(N5>=$H$8,N5<$J$8)*1 -> 0 | O8: =AND(O5>=$H$8,O5<$J$8)*1 -> 0 | P8: 0 | Q8: 0 | R8: 0 | S8: 0 | T8: 0 | U8: 0 | V8: 0 | W8: 0 | X8: 0 | Y8: 0 | Z8: 1 | AA8: 1 | AB8: 1 | AC8: 1 | AD8: 1 | AE8: 1 | AF8: 1 | AG8: 1 | AH8: 1 | AI8: 1 | AJ8: 1 | AK8: 1 | AL8: 1 | AM8: 1 | AN8: 1 | AO8: 1 | AP8: 1 | AQ8: 1 | AR8: 1 | AS8: 1 | AT8: 0 | AU8: 0 | AV8: 0 | AW8: 0 | AX8: 0 | AY8: 0 | AZ8: 0 | BA8: 0 | BB8: 0 | BC8: 0 | BD8: 0 | BE8: 0 | BF8: 0 | BG8: 0 | BH8: 0 | BI8: 0 | BJ8: 0 | BK8: 0 | BL8: 0 | BM8: 0 | BN8: 0 | BO8: 0 | BP8: 0 | BQ8: 0 | BR8: 0 | BS8: 0
B10: Truck Demand in km and kg
C12: Truck Demand for Diesel and Hydrogen
D13: Number of Trucks Added - Phase 1 | G13: Number | K13: =MAX(N13:BS13) -> 31 | N13: =LOOKUP(N$5,Inputs!$28:$28,Inputs!$29:$29) -> 0 | O13: =LOOKUP(O$5,Inputs!$28:$28,Inputs!$29:$29)+(O$2<=$H$13)*O19 -> 0 | P13: =LOOKUP(P$5,Inputs!$28:$28,Inputs!$29:$29)+(P$2<=$H$13)*P19 -> 0 | Q13: =LOOKUP(Q$5,Inputs!$28:$28,Inputs!$29:$29)+(Q$2<=$H$13)*Q19 -> 0 | R13: =LOOKUP(R$5,Inputs!$28:$28,Inputs!$29:$29)+(R$2<=$H$13)*R19 -> 0 | S13: =LOOKUP(S$5,Inputs!$28:$28,Inputs!$29:$29)+(S$2<=$H$13)*S19 -> 0 | T13: =LOOKUP(T$5,Inputs!$28:$28,Inputs!$29:$29)+(T$2<=$H$13)*T19 -> 0 | U13: =LOOKUP(U$5,Inputs!$28:$28,Inputs!$29:$29)+(U$2<=$H$13)*U19 -> 0 | V13: =LOOKUP(V$5,Inputs!$28:$28,Inputs!$29:$29)+(V$2<=$H$13)*V19 -> 0 | W13: =LOOKUP(W$5,Inputs!$28:$28,Inputs!$29:$29)+(W$2<=$H$13)*W19 -> 0 | X13: =LOOKUP(X$5,Inputs!$28:$28,Inputs!$29:$29)+(X$2<=$H$13)*X19 -> 0 | Y13: =LOOKUP(Y$5,Inputs!$28:$28,Inputs!$29:$29)+(Y$2<=$H$13)*Y19 -> 0 | Z13: =LOOKUP(Z$5,Inputs!$28:$28,Inputs!$29:$29)+(Z$2<=$H$13)*Z19 -> 31 | AA13: =LOOKUP(AA$5,Inputs!$28:$28,Inputs!$29:$29)+(AA$2<=$H$13)*AA19 -> 0 | AB13: =LOOKUP(AB$5,Inputs!$28:$28,Inputs!$29:$29)+(AB$2<=$H$13)*AB19 -> 0 | AC13: =LOOKUP(AC$5,Inputs!$28:$28,Inputs!$29:$29)+(AC$2<=$H$13)*AC19 -> 0 | AD13: =LOOKUP(AD$5,Inputs!$28:$28,Inputs!$29:$29)+(AD$2<=$H$13)*AD19 -> 0 | AE13: =LOOKUP(AE$5,Inputs!$28:$28,Inputs!$29:$29)+(AE$2<=$H$13)*AE19 -> 0 | AF13: =LOOKUP(AF$5,Inputs!$28:$28,Inputs!$29:$29)+(AF$2<=$H$13)*AF19 -> 0 | AG13: =LOOKUP(AG$5,Inputs!$28:$28,Inputs!$29:$29)+(AG$2<=$H$13)*AG19 -> 0 | AH13: =LOOKUP(AH$5,Inputs!$28:$28,Inputs!$29:$29)+(AH$2<=$H$13)*AH19 -> 0 | AI13: =LOOKUP(AI$5,Inputs!$28:$28,Inputs!$29:$29)+(AI$2<=$H$13)*AI19 -> 0 | AJ13: =LOOKUP(AJ$5,Inputs!$28:$28,Inputs!$29:$29)+(AJ$2<=$H$13)*AJ19 -> 0 | AK13: =LOOKUP(AK$5,Inputs!$28:$28,Inputs!$29:$29)+(AK$2<=$H$13)*AK19 -> 0 | AL13: =LOOKUP(AL$5,Inputs!$28:$28,Inputs!$29:$29)+(AL$2<=$H$13)*AL19 -> 0 | AM13: =LOOKUP(AM$5,Inputs!$28:$28,Inputs!$29:$29)+(AM$2<=$H$13)*AM19 -> 0 | AN13: =LOOKUP(AN$5,Inputs!$28:$28,Inputs!$29:$29)+(AN$2<=$H$13)*AN19 -> 0 | AO13: =LOOKUP(AO$5,Inputs!$28:$28,Inputs!$29:$29)+(AO$2<=$H$13)*AO19 -> 0 | AP13: =LOOKUP(AP$5,Inputs!$28:$28,Inputs!$29:$29)+(AP$2<=$H$13)*AP19 -> 0 | AQ13: =LOOKUP(AQ$5,Inputs!$28:$28,Inputs!$29:$29)+(AQ$2<=$H$13)*AQ19 -> 0 | AR13: =LOOKUP(AR$5,Inputs!$28:$28,Inputs!$29:$29)+(AR$2<=$H$13)*AR19 -> 0 | AS13: =LOOKUP(AS$5,Inputs!$28:$28,Inputs!$29:$29)+(AS$2<=$H$13)*AS19 -> 0 | AT13: =LOOKUP(AT$5,Inputs!$28:$28,Inputs!$29:$29)+(AT$2<=$H$13)*AT19 -> 0 | AU13: =LOOKUP(AU$5,Inputs!$28:$28,Inputs!$29:$29)+(AU$2<=$H$13)*AU19 -> 0 | AV13: =LOOKUP(AV$5,Inputs!$28:$28,Inputs!$29:$29)+(AV$2<=$H$13)*AV19 -> 0 | AW13: =LOOKUP(AW$5,Inputs!$28:$28,Inputs!$29:$29)+(AW$2<=$H$13)*AW19 -> 0 | AX13: =LOOKUP(AX$5,Inputs!$28:$28,Inputs!$29:$29)+(AX$2<=$H$13)*AX19 -> 0 | AY13: =LOOKUP(AY$5,Inputs!$28:$28,Inputs!$29:$29)+(AY$2<=$H$13)*AY19 -> 0 | AZ13: =LOOKUP(AZ$5,Inputs!$28:$28,Inputs!$29:$29)+(AZ$2<=$H$13)*AZ19 -> 0 | BA13: =LOOKUP(BA$5,Inputs!$28:$28,Inputs!$29:$29)+(BA$2<=$H$13)*BA19 -> 0 | BB13: =LOOKUP(BB$5,Inputs!$28:$28,Inputs!$29:$29)+(BB$2<=$H$13)*BB19 -> 0 | BC13: =LOOKUP(BC$5,Inputs!$28:$28,Inputs!$29:$29)+(BC$2<=$H$13)*BC19 -> 0 | BD13: =LOOKUP(BD$5,Inputs!$28:$28,Inputs!$29:$29)+(BD$2<=$H$13)*BD19 -> 0 | BE13: =LOOKUP(BE$5,Inputs!$28:$28,Inputs!$29:$29)+(BE$2<=$H$13)*BE19 -> 0 | BF13: =LOOKUP(BF$5,Inputs!$28:$28,Inputs!$29:$29)+(BF$2<=$H$13)*BF19 -> 0 | BG13: =LOOKUP(BG$5,Inputs!$28:$28,Inputs!$29:$29)+(BG$2<=$H$13)*BG19 -> 0 | BH13: =LOOKUP(BH$5,Inputs!$28:$28,Inputs!$29:$29)+(BH$2<=$H$13)*BH19 -> 0 | BI13: =LOOKUP(BI$5,Inputs!$28:$28,Inputs!$29:$29)+(BI$2<=$H$13)*BI19 -> 0 | BJ13: =LOOKUP(BJ$5,Inputs!$28:$28,Inputs!$29:$29)+(BJ$2<=$H$13)*BJ19 -> 0 | BK13: =LOOKUP(BK$5,Inputs!$28:$28,Inputs!$29:$29)+(BK$2<=$H$13)*BK19 -> 0 | BL13: =LOOKUP(BL$5,Inputs!$28:$28,Inputs!$29:$29)+(BL$2<=$H$13)*BL19 -> 0 | BM13: =LOOKUP(BM$5,Inputs!$28:$28,Inputs!$29:$29)+(BM$2<=$H$13)*BM19 -> 0 | BN13: =LOOKUP(BN$5,Inputs!$28:$28,Inputs!$29:$29)+(BN$2<=$H$13)*BN19 -> 0 | BO13: =LOOKUP(BO$5,Inputs!$28:$28,Inputs!$29:$29)+(BO$2<=$H$13)*BO19 -> 0 | BP13: =LOOKUP(BP$5,Inputs!$28:$28,Inputs!$29:$29)+(BP$2<=$H$13)*BP19 -> 0 | BQ13: =LOOKUP(BQ$5,Inputs!$28:$28,Inputs!$29:$29)+(BQ$2<=$H$13)*BQ19 -> 0 | BR13: =LOOKUP(BR$5,Inputs!$28:$28,Inputs!$29:$29)+(BR$2<=$H$13)*BR19 -> 0 | BS13: =LOOKUP(BS$5,Inputs!$28:$28,Inputs!$29:$29)+(BS$2<=$H$13)*BS19 -> 0
D14: Number of Trucks Added - Phase 2 | G14: Number | K14: =MAX(N14:BS14) -> 0 | N14: =LOOKUP(N$5,Inputs!$28:$28,Inputs!$30:$30) -> 0 | O14: =LOOKUP(O$5,Inputs!$28:$28,Inputs!$30:$30)+(O$2<=$H$13)*O20 -> 0 | P14: =LOOKUP(P$5,Inputs!$28:$28,Inputs!$30:$30)+(P$2<=$H$13)*P20 -> 0 | Q14: =LOOKUP(Q$5,Inputs!$28:$28,Inputs!$30:$30)+(Q$2<=$H$13)*Q20 -> 0 | R14: =LOOKUP(R$5,Inputs!$28:$28,Inputs!$30:$30)+(R$2<=$H$13)*R20 -> 0 | S14: =LOOKUP(S$5,Inputs!$28:$28,Inputs!$30:$30)+(S$2<=$H$13)*S20 -> 0 | T14: =LOOKUP(T$5,Inputs!$28:$28,Inputs!$30:$30)+(T$2<=$H$13)*T20 -> 0 | U14: =LOOKUP(U$5,Inputs!$28:$28,Inputs!$30:$30)+(U$2<=$H$13)*U20 -> 0 | V14: =LOOKUP(V$5,Inputs!$28:$28,Inputs!$30:$30)+(V$2<=$H$13)*V20 -> 0 | W14: =LOOKUP(W$5,Inputs!$28:$28,Inputs!$30:$30)+(W$2<=$H$13)*W20 -> 0 | X14: =LOOKUP(X$5,Inputs!$28:$28,Inputs!$30:$30)+(X$2<=$H$13)*X20 -> 0 | Y14: =LOOKUP(Y$5,Inputs!$28:$28,Inputs!$30:$30)+(Y$2<=$H$13)*Y20 -> 0 | Z14: =LOOKUP(Z$5,Inputs!$28:$28,Inputs!$30:$30)+(Z$2<=$H$13)*Z20 -> 0 | AA14: =LOOKUP(AA$5,Inputs!$28:$28,Inputs!$30:$30)+(AA$2<=$H$13)*AA20 -> 0 | AB14: =LOOKUP(AB$5,Inputs!$28:$28,Inputs!$30:$30)+(AB$2<=$H$13)*AB20 -> 0 | AC14: =LOOKUP(AC$5,Inputs!$28:$28,Inputs!$30:$30)+(AC$2<=$H$13)*AC20 -> 0 | AD14: =LOOKUP(AD$5,Inputs!$28:$28,Inputs!$30:$30)+(AD$2<=$H$13)*AD20 -> 0 | AE14: =LOOKUP(AE$5,Inputs!$28:$28,Inputs!$30:$30)+(AE$2<=$H$13)*AE20 -> 0 | AF14: =LOOKUP(AF$5,Inputs!$28:$28,Inputs!$30:$30)+(AF$2<=$H$13)*AF20 -> 0 | AG14: =LOOKUP(AG$5,Inputs!$28:$28,Inputs!$30:$30)+(AG$2<=$H$13)*AG20 -> 0 | AH14: =LOOKUP(AH$5,Inputs!$28:$28,Inputs!$30:$30)+(AH$2<=$H$13)*AH20 -> 0 | AI14: =LOOKUP(AI$5,Inputs!$28:$28,Inputs!$30:$30)+(AI$2<=$H$13)*AI20 -> 0 | AJ14: =LOOKUP(AJ$5,Inputs!$28:$28,Inputs!$30:$30)+(AJ$2<=$H$13)*AJ20 -> 0 | AK14: =LOOKUP(AK$5,Inputs!$28:$28,Inputs!$30:$30)+(AK$2<=$H$13)*AK20 -> 0 | AL14: =LOOKUP(AL$5,Inputs!$28:$28,Inputs!$30:$30)+(AL$2<=$H$13)*AL20 -> 0 | AM14: =LOOKUP(AM$5,Inputs!$28:$28,Inputs!$30:$30)+(AM$2<=$H$13)*AM20 -> 0 | AN14: =LOOKUP(AN$5,Inputs!$28:$28,Inputs!$30:$30)+(AN$2<=$H$13)*AN20 -> 0 | AO14: =LOOKUP(AO$5,Inputs!$28:$28,Inputs!$30:$30)+(AO$2<=$H$13)*AO20 -> 0 | AP14: =LOOKUP(AP$5,Inputs!$28:$28,Inputs!$30:$30)+(AP$2<=$H$13)*AP20 -> 0 | AQ14: =LOOKUP(AQ$5,Inputs!$28:$28,Inputs!$30:$30)+(AQ$2<=$H$13)*AQ20 -> 0 | AR14: =LOOKUP(AR$5,Inputs!$28:$28,Inputs!$30:$30)+(AR$2<=$H$13)*AR20 -> 0 | AS14: =LOOKUP(AS$5,Inputs!$28:$28,Inputs!$30:$30)+(AS$2<=$H$13)*AS20 -> 0 | AT14: =LOOKUP(AT$5,Inputs!$28:$28,Inputs!$30:$30)+(AT$2<=$H$13)*AT20 -> 0 | AU14: =LOOKUP(AU$5,Inputs!$28:$28,Inputs!$30:$30)+(AU$2<=$H$13)*AU20 -> 0 | AV14: =LOOKUP(AV$5,Inputs!$28:$28,Inputs!$30:$30)+(AV$2<=$H$13)*AV20 -> 0 | AW14: =LOOKUP(AW$5,Inputs!$28:$28,Inputs!$30:$30)+(AW$2<=$H$13)*AW20 -> 0 | AX14: =LOOKUP(AX$5,Inputs!$28:$28,Inputs!$30:$30)+(AX$2<=$H$13)*AX20 -> 0 | AY14: =LOOKUP(AY$5,Inputs!$28:$28,Inputs!$30:$30)+(AY$2<=$H$13)*AY20 -> 0 | AZ14: =LOOKUP(AZ$5,Inputs!$28:$28,Inputs!$30:$30)+(AZ$2<=$H$13)*AZ20 -> 0 | BA14: =LOOKUP(BA$5,Inputs!$28:$28,Inputs!$30:$30)+(BA$2<=$H$13)*BA20 -> 0 | BB14: =LOOKUP(BB$5,Inputs!$28:$28,Inputs!$30:$30)+(BB$2<=$H$13)*BB20 -> 0 | BC14: =LOOKUP(BC$5,Inputs!$28:$28,Inputs!$30:$30)+(BC$2<=$H$13)*BC20 -> 0 | BD14: =LOOKUP(BD$5,Inputs!$28:$28,Inputs!$30:$30)+(BD$2<=$H$13)*BD20 -> 0 | BE14: =LOOKUP(BE$5,Inputs!$28:$28,Inputs!$30:$30)+(BE$2<=$H$13)*BE20 -> 0 | BF14: =LOOKUP(BF$5,Inputs!$28:$28,Inputs!$30:$30)+(BF$2<=$H$13)*BF20 -> 0 | BG14: =LOOKUP(BG$5,Inputs!$28:$28,Inputs!$30:$30)+(BG$2<=$H$13)*BG20 -> 0 | BH14: =LOOKUP(BH$5,Inputs!$28:$28,Inputs!$30:$30)+(BH$2<=$H$13)*BH20 -> 0 | BI14: =LOOKUP(BI$5,Inputs!$28:$28,Inputs!$30:$30)+(BI$2<=$H$13)*BI20 -> 0 | BJ14: =LOOKUP(BJ$5,Inputs!$28:$28,Inputs!$30:$30)+(BJ$2<=$H$13)*BJ20 -> 0 | BK14: =LOOKUP(BK$5,Inputs!$28:$28,Inputs!$30:$30)+(BK$2<=$H$13)*BK20 -> 0 | BL14: =LOOKUP(BL$5,Inputs!$28:$28,Inputs!$30:$30)+(BL$2<=$H$13)*BL20 -> 0 | BM14: =LOOKUP(BM$5,Inputs!$28:$28,Inputs!$30:$30)+(BM$2<=$H$13)*BM20 -> 0 | BN14: =LOOKUP(BN$5,Inputs!$28:$28,Inputs!$30:$30)+(BN$2<=$H$13)*BN20 -> 0 | BO14: =LOOKUP(BO$5,Inputs!$28:$28,Inputs!$30:$30)+(BO$2<=$H$13)*BO20 -> 0 | BP14: =LOOKUP(BP$5,Inputs!$28:$28,Inputs!$30:$30)+(BP$2<=$H$13)*BP20 -> 0 | BQ14: =LOOKUP(BQ$5,Inputs!$28:$28,Inputs!$30:$30)+(BQ$2<=$H$13)*BQ20 -> 0 | BR14: =LOOKUP(BR$5,Inputs!$28:$28,Inputs!$30:$30)+(BR$2<=$H$13)*BR20 -> 0 | BS14: =LOOKUP(BS$5,Inputs!$28:$28,Inputs!$30:$30)+(BS$2<=$H$13)*BS20 -> 0
D15: Number of Trucks Added - Phase 3 | G15: Number | K15: 0 | N15: =LOOKUP(N$5,Inputs!$28:$28,Inputs!$31:$31) -> 0 | O15: =LOOKUP(O$5,Inputs!$28:$28,Inputs!$31:$31) -> 0 | P15: =LOOKUP(P$5,Inputs!$28:$28,Inputs!$31:$31) -> 0 | Q15: =LOOKUP(Q$5,Inputs!$28:$28,Inputs!$31:$31) -> 0 | R15: =LOOKUP(R$5,Inputs!$28:$28,Inputs!$31:$31) -> 0 | S15: =LOOKUP(S$5,Inputs!$28:$28,Inputs!$31:$31) -> 0 | T15: =LOOKUP(T$5,Inputs!$28:$28,Inputs!$31:$31) -> 0 | U15: =LOOKUP(U$5,Inputs!$28:$28,Inputs!$31:$31) -> 0 | V15: =LOOKUP(V$5,Inputs!$28:$28,Inputs!$31:$31) -> 0 | W15: =LOOKUP(W$5,Inputs!$28:$28,Inputs!$31:$31) -> 0 | X15: =LOOKUP(X$5,Inputs!$28:$28,Inputs!$31:$31) -> 0 | Y15: =LOOKUP(Y$5,Inputs!$28:$28,Inputs!$31:$31) -> 0 | Z15: =LOOKUP(Z$5,Inputs!$28:$28,Inputs!$31:$31) -> 0 | AA15: =LOOKUP(AA$5,Inputs!$28:$28,Inputs!$31:$31) -> 0 | AB15: =LOOKUP(AB$5,Inputs!$28:$28,Inputs!$31:$31) -> 0 | AC15: =LOOKUP(AC$5,Inputs!$28:$28,Inputs!$31:$31) -> 0 | AD15: =LOOKUP(AD$5,Inputs!$28:$28,Inputs!$31:$31) -> 0 | AE15: =LOOKUP(AE$5,Inputs!$28:$28,Inputs!$31:$31) -> 0 | AF15: =LOOKUP(AF$5,Inputs!$28:$28,Inputs!$31:$31) -> 0 | AG15: =LOOKUP(AG$5,Inputs!$28:$28,Inputs!$31:$31) -> 0 | AH15: =LOOKUP(AH$5,Inputs!$28:$28,Inputs!$31:$31) -> 0 | AI15: =LOOKUP(AI$5,Inputs!$28:$28,Inputs!$31:$31) -> 0 | AJ15: =LOOKUP(AJ$5,Inputs!$28:$28,Inputs!$31:$31) -> 0 | AK15: =LOOKUP(AK$5,Inputs!$28:$28,Inputs!$31:$31) -> 0 | AL15: =LOOKUP(AL$5,Inputs!$28:$28,Inputs!$31:$31) -> 0 | AM15: =LOOKUP(AM$5,Inputs!$28:$28,Inputs!$31:$31) -> 0 | AN15: =LOOKUP(AN$5,Inputs!$28:$28,Inputs!$31:$31) -> 0 | AO15: =LOOKUP(AO$5,Inputs!$28:$28,Inputs!$31:$31) -> 0 | AP15: =LOOKUP(AP$5,Inputs!$28:$28,Inputs!$31:$31) -> 0 | AQ15: =LOOKUP(AQ$5,Inputs!$28:$28,Inputs!$31:$31) -> 0 | AR15: =LOOKUP(AR$5,Inputs!$28:$28,Inputs!$31:$31) -> 0 | AS15: =LOOKUP(AS$5,Inputs!$28:$28,Inputs!$31:$31) -> 0 | AT15: =LOOKUP(AT$5,Inputs!$28:$28,Inputs!$31:$31) -> 0 | AU15: =LOOKUP(AU$5,Inputs!$28:$28,Inputs!$31:$31) -> 0 | AV15: =LOOKUP(AV$5,Inputs!$28:$28,Inputs!$31:$31) -> 0 | AW15: =LOOKUP(AW$5,Inputs!$28:$28,Inputs!$31:$31) -> 0 | AX15: =LOOKUP(AX$5,Inputs!$28:$28,Inputs!$31:$31) -> 0 | AY15: =LOOKUP(AY$5,Inputs!$28:$28,Inputs!$31:$31) -> 0 | AZ15: =LOOKUP(AZ$5,Inputs!$28:$28,Inputs!$31:$31) -> 0 | BA15: =LOOKUP(BA$5,Inputs!$28:$28,Inputs!$31:$31) -> 0 | BB15: =LOOKUP(BB$5,Inputs!$28:$28,Inputs!$31:$31) -> 0 | BC15: =LOOKUP(BC$5,Inputs!$28:$28,Inputs!$31:$31) -> 0 | BD15: =LOOKUP(BD$5,Inputs!$28:$28,Inputs!$31:$31) -> 0 | BE15: =LOOKUP(BE$5,Inputs!$28:$28,Inputs!$31:$31) -> 0 | BF15: =LOOKUP(BF$5,Inputs!$28:$28,Inputs!$31:$31) -> 0 | BG15: =LOOKUP(BG$5,Inputs!$28:$28,Inputs!$31:$31) -> 0 | BH15: =LOOKUP(BH$5,Inputs!$28:$28,Inputs!$31:$31) -> 0 | BI15: =LOOKUP(BI$5,Inputs!$28:$28,Inputs!$31:$31) -> 0 | BJ15: =LOOKUP(BJ$5,Inputs!$28:$28,Inputs!$31:$31) -> 0 | BK15: =LOOKUP(BK$5,Inputs!$28:$28,Inputs!$31:$31) -> 0 | BL15: =LOOKUP(BL$5,Inputs!$28:$28,Inputs!$31:$31) -> 0 | BM15: =LOOKUP(BM$5,Inputs!$28:$28,Inputs!$31:$31) -> 0 | BN15: =LOOKUP(BN$5,Inputs!$28:$28,Inputs!$31:$31) -> 0 | BO15: =LOOKUP(BO$5,Inputs!$28:$28,Inputs!$31:$31) -> 0 | BP15: =LOOKUP(BP$5,Inputs!$28:$28,Inputs!$31:$31) -> 0 | BQ15: =LOOKUP(BQ$5,Inputs!$28:$28,Inputs!$31:$31) -> 0 | BR15: =LOOKUP(BR$5,Inputs!$28:$28,Inputs!$31:$31) -> 0 | BS15: =LOOKUP(BS$5,Inputs!$28:$28,Inputs!$31:$31) -> 0
E16: Total Added | G16: Number | K16: =SUM(N16:BS16) -> 31 | N16: =SUM(N13:N15) -> 0 | O16: =SUM(O13:O15) -> 0 | P16: 0 | Q16: 0 | R16: 0 | S16: 0 | T16: 0 | U16: 0 | V16: 0 | W16: 0 | X16: 0 | Y16: 0 | Z16: 31 | AA16: 0 | AB16: 0 | AC16: 0 | AD16: 0 | AE16: 0 | AF16: 0 | AG16: 0 | AH16: 0 | AI16: 0 | AJ16: 0 | AK16: 0 | AL16: 0 | AM16: 0 | AN16: 0 | AO16: 0 | AP16: 0 | AQ16: 0 | AR16: 0 | AS16: 0 | AT16: 0 | AU16: 0 | AV16: 0 | AW16: 0 | AX16: 0 | AY16: 0 | AZ16: 0 | BA16: 0 | BB16: 0 | BC16: 0 | BD16: 0 | BE16: 0 | BF16: 0 | BG16: 0 | BH16: 0 | BI16: 0 | BJ16: 0 | BK16: 0 | BL16: 0 | BM16: 0 | BN16: 0 | BO16: 0 | BP16: 0 | BQ16: 0 | BR16: 0 | BS16: 0
D18: Period for Replacement (Note Truck Life is 1/2 Electrolizer) | G18: Flag | H18: =Inputs!F36 -> 2031-01-01 | J18: =Inputs!F38 -> 2041-01-01 | K18: =SUM(N18:BS18) -> 10 | N18: =AND(N5>=$H$18,N5<$J$18)*1 -> 0 | O18: 0 | P18: 0 | Q18: 0 | R18: 0 | S18: 0 | T18: 0 | U18: 0 | V18: 0 | W18: 0 | X18: 0 | Y18: 0 | Z18: 0 | AA18: 0 | AB18: 0 | AC18: 0 | AD18: 0 | AE18: 0 | AF18: 0 | AG18: 0 | AH18: 0 | AI18: 0 | AJ18: 1 | AK18: 1 | AL18: 1 | AM18: 1 | AN18: 1 | AO18: 1 | AP18: 1 | AQ18: 1 | AR18: 1 | AS18: 1 | AT18: =AND(AT5>=$H$18,AT5<$J$18)*1 -> 0 | AU18: 0 | AV18: 0 | AW18: 0 | AX18: 0 | AY18: 0 | AZ18: 0 | BA18: 0 | BB18: 0 | BC18: 0 | BD18: 0 | BE18: 0 | BF18: 0 | BG18: 0 | BH18: 0 | BI18: 0 | BJ18: 0 | BK18: 0 | BL18: 0 | BM18: 0 | BN18: 0 | BO18: 0 | BP18: 0 | BQ18: 0 | BR18: 0 | BS18: 0
D19: Number of Trucks Retired - Phase 1 | G19: Number | H19: =Inputs!F34 -> 10 | K19: =SUM(N19:BS19) -> 31 | N19: =IF(N18,OFFSET(N13,0,-$H19))*1 -> 0 | O19: =IF(O18,OFFSET(O13,0,-$H19))*1 -> 0 | P19: 0 | Q19: 0 | R19: 0 | S19: 0 | T19: 0 | U19: 0 | V19: 0 | W19: 0 | X19: 0 | Y19: 0 | Z19: 0 | AA19: 0 | AB19: 0 | AC19: 0 | AD19: 0 | AE19: 0 | AF19: 0 | AG19: 0 | AH19: 0 | AI19: 0 | AJ19: 31 | AK19: 0 | AL19: 0 | AM19: 0 | AN19: 0 | AO19: 0 | AP19: 0 | AQ19: 0 | AR19: 0 | AS19: 0 | AT19: 0 | AU19: 0 | AV19: 0 | AW19: 0 | AX19: 0 | AY19: 0 | AZ19: 0 | BA19: 0 | BB19: 0 | BC19: 0 | BD19: 0 | BE19: 0 | BF19: 0 | BG19: 0 | BH19: 0 | BI19: 0 | BJ19: 0 | BK19: 0 | BL19: 0 | BM19: 0 | BN19: 0 | BO19: 0 | BP19: 0 | BQ19: 0 | BR19: 0 | BS19: 0
D20: Number of Trucks Retired - Phase 2 | G20: Number | H20: =Inputs!F34 -> 10 | K20: =SUM(N20:BS20) -> 0 | N20: =IF(N18,OFFSET(N14,0,-$H20))*1 -> 0 | O20: =IF(O18,OFFSET(O14,0,-$H20))*1 -> 0 | P20: 0 | Q20: 0 | R20: 0 | S20: 0 | T20: 0 | U20: 0 | V20: 0 | W20: 0 | X20: 0 | Y20: 0 | Z20: 0 | AA20: 0 | AB20: 0 | AC20: 0 | AD20: 0 | AE20: 0 | AF20: 0 | AG20: 0 | AH20: 0 | AI20: 0 | AJ20: 0 | AK20: 0 | AL20: 0 | AM20: 0 | AN20: 0 | AO20: 0 | AP20: 0 | AQ20: 0 | AR20: 0 | AS20: 0 | AT20: 0 | AU20: 0 | AV20: 0 | AW20: 0 | AX20: 0 | AY20: 0 | AZ20: 0 | BA20: 0 | BB20: 0 | BC20: 0 | BD20: 0 | BE20: 0 | BF20: 0 | BG20: 0 | BH20: 0 | BI20: 0 | BJ20: 0 | BK20: 0 | BL20: 0 | BM20: 0 | BN20: 0 | BO20: 0 | BP20: 0 | BQ20: 0 | BR20: 0 | BS20: 0
D21: Number of Trucks Retired - Phase 3 | G21: Number | H21: =Inputs!F34 -> 10 | K21: =SUM(N21:BS21) -> 0 | N21: =IF(N18,OFFSET(N15,0,-$H21))*1 -> 0 | O21: =IF(O18,OFFSET(O15,0,-$H21))*1 -> 0 | P21: 0 | Q21: 0 | R21: 0 | S21: 0 | T21: 0 | U21: 0 | V21: 0 | W21: 0 | X21: 0 | Y21: 0 | Z21: 0 | AA21: 0 | AB21: 0 | AC21: 0 | AD21: 0 | AE21: 0 | AF21: 0 | AG21: 0 | AH21: 0 | AI21: 0 | AJ21: 0 | AK21: 0 | AL21: 0 | AM21: 0 | AN21: 0 | AO21: 0 | AP21: 0 | AQ21: 0 | AR21: 0 | AS21: 0 | AT21: 0 | AU21: 0 | AV21: 0 | AW21: 0 | AX21: 0 | AY21: 0 | AZ21: 0 | BA21: 0 | BB21: 0 | BC21: 0 | BD21: 0 | BE21: 0 | BF21: 0 | BG21: 0 | BH21: 0 | BI21: 0 | BJ21: 0 | BK21: 0 | BL21: 0 | BM21: 0 | BN21: 0 | BO21: 0 | BP21: 0 | BQ21: 0 | BR21: 0 | BS21: 0
E22: Total Retired | G22: Number | K22: =SUM(N22:BS22) -> 31 | N22: =SUM(N19:N21) -> 0 | O22: =SUM(O19:O21) -> 0 | P22: 0 | Q22: 0 | R22: 0 | S22: 0 | T22: 0 | U22: 0 | V22: 0 | W22: 0 | X22: 0 | Y22: 0 | Z22: 0 | AA22: 0 | AB22: 0 | AC22: 0 | AD22: 0 | AE22: 0 | AF22: 0 | AG22: 0 | AH22: 0 | AI22: 0 | AJ22: 31 | AK22: 0 | AL22: 0 | AM22: 0 | AN22: 0 | AO22: 0 | AP22: 0 | AQ22: 0 | AR22: 0 | AS22: 0 | AT22: 0 | AU22: 0 | AV22: 0 | AW22: 0 | AX22: 0 | AY22: 0 | AZ22: 0 | BA22: 0 | BB22: 0 | BC22: 0 | BD22: 0 | BE22: 0 | BF22: 0 | BG22: 0 | BH22: 0 | BI22: 0 | BJ22: 0 | BK22: 0 | BL22: 0 | BM22: 0 | BN22: 0 | BO22: 0 | BP22: 0 | BQ22: 0 | BR22: 0 | BS22: 0
D24: Replaced Trucks when with Period Flag
D25: Number of Trucks Added - Phase 1 | G25: Number | K25: =SUM(N25:BS25) -> 31 | N25: =N$18*N19 -> 0 | O25: =O$18*O19 -> 0 | P25: 0 | Q25: 0 | R25: 0 | S25: 0 | T25: 0 | U25: 0 | V25: 0 | W25: 0 | X25: 0 | Y25: 0 | Z25: 0 | AA25: 0 | AB25: 0 | AC25: 0 | AD25: 0 | AE25: 0 | AF25: 0 | AG25: 0 | AH25: 0 | AI25: 0 | AJ25: 31 | AK25: 0 | AL25: 0 | AM25: 0 | AN25: 0 | AO25: 0 | AP25: 0 | AQ25: 0 | AR25: 0 | AS25: 0 | AT25: 0 | AU25: 0 | AV25: 0 | AW25: 0 | AX25: 0 | AY25: 0 | AZ25: 0 | BA25: 0 | BB25: 0 | BC25: 0 | BD25: 0 | BE25: 0 | BF25: 0 | BG25: 0 | BH25: 0 | BI25: 0 | BJ25: 0 | BK25: 0 | BL25: 0 | BM25: 0 | BN25: 0 | BO25: 0 | BP25: 0 | BQ25: 0 | BR25: 0 | BS25: 0
D26: Number of Trucks Added - Phase 2 | G26: Number | K26: =SUM(N26:BS26) -> 0 | N26: =N$18*N20 -> 0 | O26: 0 | P26: 0 | Q26: 0 | R26: 0 | S26: 0 | T26: 0 | U26: 0 | V26: 0 | W26: 0 | X26: 0 | Y26: 0 | Z26: 0 | AA26: 0 | AB26: 0 | AC26: 0 | AD26: 0 | AE26: 0 | AF26: 0 | AG26: 0 | AH26: 0 | AI26: 0 | AJ26: 0 | AK26: 0 | AL26: 0 | AM26: 0 | AN26: 0 | AO26: 0 | AP26: 0 | AQ26: 0 | AR26: 0 | AS26: 0 | AT26: 0 | AU26: 0 | AV26: 0 | AW26: 0 | AX26: 0 | AY26: 0 | AZ26: 0 | BA26: 0 | BB26: 0 | BC26: 0 | BD26: 0 | BE26: 0 | BF26: 0 | BG26: 0 | BH26: 0 | BI26: 0 | BJ26: 0 | BK26: 0 | BL26: 0 | BM26: 0 | BN26: 0 | BO26: 0 | BP26: 0 | BQ26: 0 | BR26: 0 | BS26: 0
D27: Number of Trucks Added - Phase 3 | G27: Number | K27: 0 | N27: 0 | O27: 0 | P27: 0 | Q27: 0 | R27: 0 | S27: 0 | T27: 0 | U27: 0 | V27: 0 | W27: 0 | X27: 0 | Y27: 0 | Z27: 0 | AA27: 0 | AB27: 0 | AC27: 0 | AD27: 0 | AE27: 0 | AF27: 0 | AG27: 0 | AH27: 0 | AI27: 0 | AJ27: 0 | AK27: 0 | AL27: 0 | AM27: 0 | AN27: 0 | AO27: 0 | AP27: 0 | AQ27: 0 | AR27: 0 | AS27: 0 | AT27: 0 | AU27: 0 | AV27: 0 | AW27: 0 | AX27: 0 | AY27: 0 | AZ27: 0 | BA27: 0 | BB27: 0 | BC27: 0 | BD27: 0 | BE27: 0 | BF27: 0 | BG27: 0 | BH27: 0 | BI27: 0 | BJ27: 0 | BK27: 0 | BL27: 0 | BM27: 0 | BN27: 0 | BO27: 0 | BP27: 0 | BQ27: 0 | BR27: 0 | BS27: 0
E28: Total Replaced Trucks | G28: Number | N28: =SUM(N25:N27) -> 0 | O28: =SUM(O25:O27) -> 0 | P28: 0 | Q28: 0 | R28: 0 | S28: 0 | T28: 0 | U28: 0 | V28: 0 | W28: 0 | X28: 0 | Y28: 0 | Z28: 0 | AA28: 0 | AB28: 0 | AC28: 0 | AD28: 0 | AE28: 0 | AF28: 0 | AG28: 0 | AH28: 0 | AI28: 0 | AJ28: 31 | AK28: 0 | AL28: 0 | AM28: 0 | AN28: 0 | AO28: 0 | AP28: 0 | AQ28: 0 | AR28: 0 | AS28: 0 | AT28: 0 | AU28: 0 | AV28: 0 | AW28: 0 | AX28: 0 | AY28: 0 | AZ28: 0 | BA28: 0 | BB28: 0 | BC28: 0 | BD28: 0 | BE28: 0 | BF28: 0 | BG28: 0 | BH28: 0 | BI28: 0 | BJ28: 0 | BK28: 0 | BL28: 0 | BM28: 0 | BN28: 0 | BO28: 0 | BP28: 0 | BQ28: 0 | BR28: 0 | BS28: 0
E29: Accumulated Trucks | G29: Number | K29: =MAX(N29:BS29) -> 31 | N29: =M29+N16-N22+N28 -> 0 | O29: =N29+O16-O22+O28 -> 0 | P29: 0 | Q29: 0 | R29: 0 | S29: 0 | T29: 0 | U29: 0 | V29: 0 | W29: 0 | X29: 0 | Y29: 0 | Z29: 31 | AA29: 31 | AB29: 31 | AC29: 31 | AD29: 31 | AE29: 31 | AF29: 31 | AG29: 31 | AH29: 31 | AI29: 31 | AJ29: 31 | AK29: 31 | AL29: 31 | AM29: 31 | AN29: 31 | AO29: 31 | AP29: 31 | AQ29: 31 | AR29: 31 | AS29: 31 | AT29: 31 | AU29: 31 | AV29: 31 | AW29: 31 | AX29: 31 | AY29: 31 | AZ29: 31 | BA29: 31 | BB29: 31 | BC29: 31 | BD29: 31 | BE29: 31 | BF29: 31 | BG29: 31 | BH29: 31 | BI29: 31 | BJ29: 31 | BK29: 31 | BL29: 31 | BM29: 31 | BN29: 31 | BO29: 31 | BP29: 31 | BQ29: 31 | BR29: 31 | BS29: 31
D32: Hours of Operation per Day | G32: Hours/day | H32: =Hrs_Truck -> 10 | K32: =MAX(N32:BS32) -> 10 | N32: =$H$32 -> 10 | O32: =$H$32 -> 10 | P32: 10 | Q32: 10 | R32: 10 | S32: 10 | T32: 10 | U32: 10 | V32: 10 | W32: 10 | X32: 10 | Y32: 10 | Z32: 10 | AA32: 10 | AB32: 10 | AC32: 10 | AD32: 10 | AE32: 10 | AF32: 10 | AG32: 10 | AH32: 10 | AI32: 10 | AJ32: 10 | AK32: 10 | AL32: 10 | AM32: 10 | AN32: 10 | AO32: 10 | AP32: 10 | AQ32: 10 | AR32: 10 | AS32: 10 | AT32: 10 | AU32: 10 | AV32: 10 | AW32: 10 | AX32: 10 | AY32: 10 | AZ32: 10 | BA32: 10 | BB32: 10 | BC32: 10 | BD32: 10 | BE32: 10 | BF32: 10 | BG32: 10 | BH32: 10 | BI32: 10 | BJ32: 10 | BK32: 10 | BL32: 10 | BM32: 10 | BN32: 10 | BO32: 10 | BP32: 10 | BQ32: 10 | BR32: 10 | BS32: 10
D33: km/Hour of Operation | G33: km/Hour | H33: =Inputs!F46 -> 5 | K33: =MAX(N33:BS33) -> 5 | N33: =$H$33 -> 5 | O33: =$H$33 -> 5 | P33: 5 | Q33: 5 | R33: 5 | S33: 5 | T33: 5 | U33: 5 | V33: 5 | W33: 5 | X33: 5 | Y33: 5 | Z33: 5 | AA33: 5 | AB33: 5 | AC33: 5 | AD33: 5 | AE33: 5 | AF33: 5 | AG33: 5 | AH33: 5 | AI33: 5 | AJ33: 5 | AK33: 5 | AL33: 5 | AM33: 5 | AN33: 5 | AO33: 5 | AP33: 5 | AQ33: 5 | AR33: 5 | AS33: 5 | AT33: 5 | AU33: 5 | AV33: 5 | AW33: 5 | AX33: 5 | AY33: 5 | AZ33: 5 | BA33: 5 | BB33: 5 | BC33: 5 | BD33: 5 | BE33: 5 | BF33: 5 | BG33: 5 | BH33: 5 | BI33: 5 | BJ33: 5 | BK33: 5 | BL33: 5 | BM33: 5 | BN33: 5 | BO33: 5 | BP33: 5 | BQ33: 5 | BR33: 5 | BS33: 5
D34: km/Truck-Day | G34: km/day | K34: =MAX(N34:BS34) -> 50 | N34: =N32*N33 -> 50 | O34: =O32*O33 -> 50 | P34: 50 | Q34: 50 | R34: 50 | S34: 50 | T34: 50 | U34: 50 | V34: 50 | W34: 50 | X34: 50 | Y34: 50 | Z34: 50 | AA34: 50 | AB34: 50 | AC34: 50 | AD34: 50 | AE34: 50 | AF34: 50 | AG34: 50 | AH34: 50 | AI34: 50 | AJ34: 50 | AK34: 50 | AL34: 50 | AM34: 50 | AN34: 50 | AO34: 50 | AP34: 50 | AQ34: 50 | AR34: 50 | AS34: 50 | AT34: 50 | AU34: 50 | AV34: 50 | AW34: 50 | AX34: 50 | AY34: 50 | AZ34: 50 | BA34: 50 | BB34: 50 | BC34: 50 | BD34: 50 | BE34: 50 | BF34: 50 | BG34: 50 | BH34: 50 | BI34: 50 | BJ34: 50 | BK34: 50 | BL34: 50 | BM34: 50 | BN34: 50 | BO34: 50 | BP34: 50 | BQ34: 50 | BR34: 50 | BS34: 50
D35: Days of Operation per week | G35: Days | H35: =Inputs!F46 -> 5 | K35: =MAX(N35:BS35) -> 5 | N35: =$H$35 -> 5 | O35: =$H$35 -> 5 | P35: 5 | Q35: 5 | R35: 5 | S35: 5 | T35: 5 | U35: 5 | V35: 5 | W35: 5 | X35: 5 | Y35: 5 | Z35: 5 | AA35: 5 | AB35: 5 | AC35: 5 | AD35: 5 | AE35: 5 | AF35: 5 | AG35: 5 | AH35: 5 | AI35: 5 | AJ35: 5 | AK35: 5 | AL35: 5 | AM35: 5 | AN35: 5 | AO35: 5 | AP35: 5 | AQ35: 5 | AR35: 5 | AS35: 5 | AT35: 5 | AU35: 5 | AV35: 5 | AW35: 5 | AX35: 5 | AY35: 5 | AZ35: 5 | BA35: 5 | BB35: 5 | BC35: 5 | BD35: 5 | BE35: 5 | BF35: 5 | BG35: 5 | BH35: 5 | BI35: 5 | BJ35: 5 | BK35: 5 | BL35: 5 | BM35: 5 | BN35: 5 | BO35: 5 | BP35: 5 | BQ35: 5 | BR35: 5 | BS35: 5
D36: km/week | G36: km | K36: =MAX(N36:BS36) -> 250 | N36: =N34*N35 -> 250 | O36: =O34*O35 -> 250 | P36: 250 | Q36: 250 | R36: 250 | S36: 250 | T36: 250 | U36: 250 | V36: 250 | W36: 250 | X36: 250 | Y36: 250 | Z36: 250 | AA36: 250 | AB36: 250 | AC36: 250 | AD36: 250 | AE36: 250 | AF36: 250 | AG36: 250 | AH36: 250 | AI36: 250 | AJ36: 250 | AK36: 250 | AL36: 250 | AM36: 250 | AN36: 250 | AO36: 250 | AP36: 250 | AQ36: 250 | AR36: 250 | AS36: 250 | AT36: 250 | AU36: 250 | AV36: 250 | AW36: 250 | AX36: 250 | AY36: 250 | AZ36: 250 | BA36: 250 | BB36: 250 | BC36: 250 | BD36: 250 | BE36: 250 | BF36: 250 | BG36: 250 | BH36: 250 | BI36: 250 | BJ36: 250 | BK36: 250 | BL36: 250 | BM36: 250 | BN36: 250 | BO36: 250 | BP36: 250 | BQ36: 250 | BR36: 250 | BS36: 250
D37: Weeks of Operation per Year | G37: Weeks | H37: =Inputs!F48 -> 50 | K37: 50 | N37: =$H$37 -> 50 | O37: =$H$37 -> 50 | P37: 50 | Q37: 50 | R37: 50 | S37: 50 | T37: 50 | U37: 50 | V37: 50 | W37: 50 | X37: 50 | Y37: 50 | Z37: 50 | AA37: 50 | AB37: 50 | AC37: 50 | AD37: 50 | AE37: 50 | AF37: 50 | AG37: 50 | AH37: 50 | AI37: 50 | AJ37: 50 | AK37: 50 | AL37: 50 | AM37: 50 | AN37: 50 | AO37: 50 | AP37: 50 | AQ37: 50 | AR37: 50 | AS37: 50 | AT37: 50 | AU37: 50 | AV37: 50 | AW37: 50 | AX37: 50 | AY37: 50 | AZ37: 50 | BA37: 50 | BB37: 50 | BC37: 50 | BD37: 50 | BE37: 50 | BF37: 50 | BG37: 50 | BH37: 50 | BI37: 50 | BJ37: 50 | BK37: 50 | BL37: 50 | BM37: 50 | BN37: 50 | BO37: 50 | BP37: 50 | BQ37: 50 | BR37: 50 | BS37: 50
E38: Total km per Year/Truck | G38: km/Year | K38: =MAX(N38:BS38) -> 12500 | N38: =N36*N37 -> 12500 | O38: =O36*O37 -> 12500 | P38: 12500 | Q38: 12500 | R38: 12500 | S38: 12500 | T38: 12500 | U38: 12500 | V38: 12500 | W38: 12500 | X38: 12500 | Y38: 12500 | Z38: 12500 | AA38: 12500 | AB38: 12500 | AC38: 12500 | AD38: 12500 | AE38: 12500 | AF38: 12500 | AG38: 12500 | AH38: 12500 | AI38: 12500 | AJ38: 12500 | AK38: 12500 | AL38: 12500 | AM38: 12500 | AN38: 12500 | AO38: 12500 | AP38: 12500 | AQ38: 12500 | AR38: 12500 | AS38: 12500 | AT38: 12500 | AU38: 12500 | AV38: 12500 | AW38: 12500 | AX38: 12500 | AY38: 12500 | AZ38: 12500 | BA38: 12500 | BB38: 12500 | BC38: 12500 | BD38: 12500 | BE38: 12500 | BF38: 12500 | BG38: 12500 | BH38: 12500 | BI38: 12500 | BJ38: 12500 | BK38: 12500 | BL38: 12500 | BM38: 12500 | BN38: 12500 | BO38: 12500 | BP38: 12500 | BQ38: 12500 | BR38: 12500 | BS38: 12500
D40: Total km per Year for Trucks in Fleet | G40: km/year | K40: =SUM(N40:BS40) -> 17825000 | N40: =N38*N29 -> 0 | O40: 0 | P40: 0 | Q40: 0 | R40: 0 | S40: 0 | T40: 0 | U40: 0 | V40: 0 | W40: 0 | X40: 0 | Y40: 0 | Z40: 387500 | AA40: 387500 | AB40: 387500 | AC40: 387500 | AD40: 387500 | AE40: 387500 | AF40: 387500 | AG40: 387500 | AH40: 387500 | AI40: 387500 | AJ40: 387500 | AK40: 387500 | AL40: 387500 | AM40: 387500 | AN40: 387500 | AO40: 387500 | AP40: 387500 | AQ40: 387500 | AR40: 387500 | AS40: 387500 | AT40: =AT38*AT29 -> 387500 | AU40: 387500 | AV40: 387500 | AW40: 387500 | AX40: 387500 | AY40: 387500 | AZ40: 387500 | BA40: 387500 | BB40: 387500 | BC40: 387500 | BD40: 387500 | BE40: 387500 | BF40: 387500 | BG40: 387500 | BH40: 387500 | BI40: 387500 | BJ40: 387500 | BK40: 387500 | BL40: 387500 | BM40: 387500 | BN40: 387500 | BO40: 387500 | BP40: 387500 | BQ40: 387500 | BR40: 387500 | BS40: 387500
D42: Diesel Efficiency | G42: Litre/km | H42: =Inputs!F52 -> 1.0235 | N42: =$H$42 -> 1.0235 | O42: =$H$42 -> 1.0235 | P42: 1.0235 | Q42: 1.0235 | R42: 1.0235 | S42: 1.0235 | T42: 1.0235 | U42: 1.0235 | V42: 1.0235 | W42: 1.0235 | X42: 1.0235 | Y42: 1.0235 | Z42: 1.0235 | AA42: 1.0235 | AB42: 1.0235 | AC42: 1.0235 | AD42: 1.0235 | AE42: 1.0235 | AF42: 1.0235 | AG42: 1.0235 | AH42: 1.0235 | AI42: 1.0235 | AJ42: 1.0235 | AK42: 1.0235 | AL42: 1.0235 | AM42: 1.0235 | AN42: 1.0235 | AO42: 1.0235 | AP42: 1.0235 | AQ42: 1.0235 | AR42: 1.0235 | AS42: 1.0235 | AT42: 1.0235 | AU42: 1.0235 | AV42: 1.0235 | AW42: 1.0235 | AX42: 1.0235 | AY42: 1.0235 | AZ42: 1.0235 | BA42: 1.0235 | BB42: 1.0235 | BC42: 1.0235 | BD42: 1.0235 | BE42: 1.0235 | BF42: 1.0235 | BG42: 1.0235 | BH42: 1.0235 | BI42: 1.0235 | BJ42: 1.0235 | BK42: 1.0235 | BL42: 1.0235 | BM42: 1.0235 | BN42: 1.0235 | BO42: 1.0235 | BP42: 1.0235 | BQ42: 1.0235 | BR42: 1.0235 | BS42: 1.0235
D43: Diesel Usage | G43: Litre | K43: =SUM(N43:BS43) -> 18243887.5 | N43: =N40*N42 -> 0 | O43: =O40*O42 -> 0 | P43: 0 | Q43: 0 | R43: 0 | S43: 0 | T43: 0 | U43: 0 | V43: 0 | W43: 0 | X43: 0 | Y43: 0 | Z43: 396606.25 | AA43: 396606.25 | AB43: 396606.25 | AC43: 396606.25 | AD43: 396606.25 | AE43: 396606.25 | AF43: 396606.25 | AG43: 396606.25 | AH43: 396606.25 | AI43: 396606.25 | AJ43: 396606.25 | AK43: 396606.25 | AL43: 396606.25 | AM43: 396606.25 | AN43: 396606.25 | AO43: 396606.25 | AP43: 396606.25 | AQ43: 396606.25 | AR43: 396606.25 | AS43: 396606.25 | AT43: 396606.25 | AU43: 396606.25 | AV43: 396606.25 | AW43: 396606.25 | AX43: 396606.25 | AY43: 396606.25 | AZ43: 396606.25 | BA43: 396606.25 | BB43: 396606.25 | BC43: 396606.25 | BD43: 396606.25 | BE43: 396606.25 | BF43: 396606.25 | BG43: 396606.25 | BH43: 396606.25 | BI43: 396606.25 | BJ43: 396606.25 | BK43: 396606.25 | BL43: 396606.25 | BM43: 396606.25 | BN43: 396606.25 | BO43: 396606.25 | BP43: 396606.25 | BQ43: 396606.25 | BR43: 396606.25 | BS43: 396606.25
D45: Hydrogen Efficiency | G45: kg/km | H45: =Inputs!F61 -> 0.1721748443 | N45: =$H$45 -> 0.1721748443 | O45: =$H$45 -> 0.1721748443 | P45: 0.1721748443 | Q45: 0.1721748443 | R45: 0.1721748443 | S45: 0.1721748443 | T45: 0.1721748443 | U45: 0.1721748443 | V45: 0.1721748443 | W45: 0.1721748443 | X45: 0.1721748443 | Y45: 0.1721748443 | Z45: 0.1721748443 | AA45: 0.1721748443 | AB45: 0.1721748443 | AC45: 0.1721748443 | AD45: 0.1721748443 | AE45: 0.1721748443 | AF45: 0.1721748443 | AG45: 0.1721748443 | AH45: 0.1721748443 | AI45: 0.1721748443 | AJ45: 0.1721748443 | AK45: 0.1721748443 | AL45: 0.1721748443 | AM45: 0.1721748443 | AN45: 0.1721748443 | AO45: 0.1721748443 | AP45: 0.1721748443 | AQ45: 0.1721748443 | AR45: 0.1721748443 | AS45: 0.1721748443 | AT45: 0.1721748443 | AU45: 0.1721748443 | AV45: 0.1721748443 | AW45: 0.1721748443 | AX45: 0.1721748443 | AY45: 0.1721748443 | AZ45: 0.1721748443 | BA45: 0.1721748443 | BB45: 0.1721748443 | BC45: 0.1721748443 | BD45: 0.1721748443 | BE45: 0.1721748443 | BF45: 0.1721748443 | BG45: 0.1721748443 | BH45: 0.1721748443 | BI45: 0.1721748443 | BJ45: 0.1721748443 | BK45: 0.1721748443 | BL45: 0.1721748443 | BM45: 0.1721748443 | BN45: 0.1721748443 | BO45: 0.1721748443 | BP45: 0.1721748443 | BQ45: 0.1721748443 | BR45: 0.1721748443 | BS45: 0.1721748443
D46: Hydrogen Usage | G46: kg/year | K46: =MAX(N46:BS46) -> 66717.75218 | N46: =N45*N40 -> 0 | O46: =O45*O40 -> 0 | P46: 0 | Q46: 0 | R46: 0 | S46: 0 | T46: 0 | U46: 0 | V46: 0 | W46: 0 | X46: 0 | Y46: 0 | Z46: 66717.75218 | AA46: 66717.75218 | AB46: 66717.75218 | AC46: 66717.75218 | AD46: 66717.75218 | AE46: 66717.75218 | AF46: 66717.75218 | AG46: 66717.75218 | AH46: 66717.75218 | AI46: 66717.75218 | AJ46: 66717.75218 | AK46: 66717.75218 | AL46: 66717.75218 | AM46: 66717.75218 | AN46: 66717.75218 | AO46: 66717.75218 | AP46: 66717.75218 | AQ46: 66717.75218 | AR46: 66717.75218 | AS46: 66717.75218 | AT46: 66717.75218 | AU46: 66717.75218 | AV46: 66717.75218 | AW46: 66717.75218 | AX46: 66717.75218 | AY46: 66717.75218 | AZ46: 66717.75218 | BA46: 66717.75218 | BB46: 66717.75218 | BC46: 66717.75218 | BD46: 66717.75218 | BE46: 66717.75218 | BF46: 66717.75218 | BG46: 66717.75218 | BH46: 66717.75218 | BI46: 66717.75218 | BJ46: 66717.75218 | BK46: 66717.75218 | BL46: 66717.75218 | BM46: 66717.75218 | BN46: 66717.75218 | BO46: 66717.75218 | BP46: 66717.75218 | BQ46: 66717.75218 | BR46: 66717.75218 | BS46: 66717.75218
D48: Exchange Rate | G48: =$L$4&"/USD" -> AUD/USD | H48: =1/Inputs!$F$23 -> 1.408450704 | N48: =$H$48 -> 1.408450704 | O48: =$H$48 -> 1.408450704 | P48: 1.408450704 | Q48: 1.408450704 | R48: 1.408450704 | S48: 1.408450704 | T48: 1.408450704 | U48: 1.408450704 | V48: 1.408450704 | W48: 1.408450704 | X48: 1.408450704 | Y48: 1.408450704 | Z48: 1.408450704 | AA48: 1.408450704 | AB48: 1.408450704 | AC48: 1.408450704 | AD48: 1.408450704 | AE48: 1.408450704 | AF48: 1.408450704 | AG48: 1.408450704 | AH48: 1.408450704 | AI48: 1.408450704 | AJ48: 1.408450704 | AK48: 1.408450704 | AL48: 1.408450704 | AM48: 1.408450704 | AN48: 1.408450704 | AO48: 1.408450704 | AP48: 1.408450704 | AQ48: 1.408450704 | AR48: 1.408450704 | AS48: 1.408450704 | AT48: 1.408450704 | AU48: 1.408450704 | AV48: 1.408450704 | AW48: 1.408450704 | AX48: 1.408450704 | AY48: 1.408450704 | AZ48: 1.408450704 | BA48: 1.408450704 | BB48: 1.408450704 | BC48: 1.408450704 | BD48: 1.408450704 | BE48: 1.408450704 | BF48: 1.408450704 | BG48: 1.408450704 | BH48: 1.408450704 | BI48: 1.408450704 | BJ48: 1.408450704 | BK48: 1.408450704 | BL48: 1.408450704 | BM48: 1.408450704 | BN48: 1.408450704 | BO48: 1.408450704 | BP48: 1.408450704 | BQ48: 1.408450704 | BR48: 1.408450704 | BS48: 1.408450704
D49: Cost of Diesel Truck - Real | G49: =Inputs!$D$23 -> AUD | H49: =Inputs!F73*H48 -> 435000 | N49: =$H$49*N16 -> 0 | O49: 0 | P49: 0 | Q49: 0 | R49: 0 | S49: 0 | T49: 0 | U49: 0 | V49: 0 | W49: 0 | X49: 0 | Y49: 0 | Z49: 13485000 | AA49: 0 | AB49: 0 | AC49: 0 | AD49: 0 | AE49: 0 | AF49: 0 | AG49: 0 | AH49: 0 | AI49: 0 | AJ49: 0 | AK49: 0 | AL49: 0 | AM49: 0 | AN49: 0 | AO49: 0 | AP49: 0 | AQ49: 0 | AR49: 0 | AS49: 0 | AT49: =$H$49*AT16 -> 0 | AU49: 0 | AV49: 0 | AW49: 0 | AX49: 0 | AY49: 0 | AZ49: 0 | BA49: 0 | BB49: 0 | BC49: 0 | BD49: 0 | BE49: 0 | BF49: 0 | BG49: 0 | BH49: 0 | BI49: 0 | BJ49: 0 | BK49: 0 | BL49: 0 | BM49: 0 | BN49: 0 | BO49: 0 | BP49: 0 | BQ49: 0 | BR49: 0 | BS49: 0
D50: Cost of Hydrogen Truck - Real | G50: =Inputs!$D$23 -> AUD | H50: =Inputs!F76*H48 -> 823235.2941 | N50: =$H$50*N16 -> 0 | O50: 0 | P50: 0 | Q50: 0 | R50: 0 | S50: 0 | T50: 0 | U50: 0 | V50: 0 | W50: 0 | X50: 0 | Y50: 0 | Z50: 25520294.12 | AA50: 0 | AB50: 0 | AC50: 0 | AD50: 0 | AE50: 0 | AF50: 0 | AG50: 0 | AH50: 0 | AI50: 0 | AJ50: 0 | AK50: 0 | AL50: 0 | AM50: 0 | AN50: 0 | AO50: 0 | AP50: 0 | AQ50: 0 | AR50: 0 | AS50: 0 | AT50: =$H$50*AT16 -> 0 | AU50: 0 | AV50: 0 | AW50: 0 | AX50: 0 | AY50: 0 | AZ50: 0 | BA50: 0 | BB50: 0 | BC50: 0 | BD50: 0 | BE50: 0 | BF50: 0 | BG50: 0 | BH50: 0 | BI50: 0 | BJ50: 0 | BK50: 0 | BL50: 0 | BM50: 0 | BN50: 0 | BO50: 0 | BP50: 0 | BQ50: 0 | BR50: 0 | BS50: 0
D52: Real Cost of Diesel | G52: AUD/Litre | H52: =Inputs!F64*H48 -> 1.323943662 | N52: =$H$52 -> 1.323943662 | O52: =$H$52 -> 1.323943662 | P52: 1.323943662 | Q52: 1.323943662 | R52: 1.323943662 | S52: 1.323943662 | T52: 1.323943662 | U52: 1.323943662 | V52: 1.323943662 | W52: 1.323943662 | X52: 1.323943662 | Y52: 1.323943662 | Z52: 1.323943662 | AA52: 1.323943662 | AB52: 1.323943662 | AC52: 1.323943662 | AD52: 1.323943662 | AE52: 1.323943662 | AF52: 1.323943662 | AG52: 1.323943662 | AH52: 1.323943662 | AI52: 1.323943662 | AJ52: 1.323943662 | AK52: 1.323943662 | AL52: 1.323943662 | AM52: 1.323943662 | AN52: 1.323943662 | AO52: 1.323943662 | AP52: 1.323943662 | AQ52: 1.323943662 | AR52: 1.323943662 | AS52: 1.323943662 | AT52: 1.323943662 | AU52: 1.323943662 | AV52: 1.323943662 | AW52: 1.323943662 | AX52: 1.323943662 | AY52: 1.323943662 | AZ52: 1.323943662 | BA52: 1.323943662 | BB52: 1.323943662 | BC52: 1.323943662 | BD52: 1.323943662 | BE52: 1.323943662 | BF52: 1.323943662 | BG52: 1.323943662 | BH52: 1.323943662 | BI52: 1.323943662 | BJ52: 1.323943662 | BK52: 1.323943662 | BL52: 1.323943662 | BM52: 1.323943662 | BN52: 1.323943662 | BO52: 1.323943662 | BP52: 1.323943662 | BQ52: 1.323943662 | BR52: 1.323943662 | BS52: 1.323943662
D53: Total Cost of Diesel | G53: AUD | K53: =SUM(N53:BS53) -> 24153879.23 | N53: =N52*N43 -> 0 | O53: =O52*O43 -> 0 | P53: 0 | Q53: 0 | R53: 0 | S53: 0 | T53: 0 | U53: 0 | V53: 0 | W53: 0 | X53: 0 | Y53: 0 | Z53: 525084.331 | AA53: 525084.331 | AB53: 525084.331 | AC53: 525084.331 | AD53: 525084.331 | AE53: 525084.331 | AF53: 525084.331 | AG53: 525084.331 | AH53: 525084.331 | AI53: 525084.331 | AJ53: 525084.331 | AK53: 525084.331 | AL53: 525084.331 | AM53: 525084.331 | AN53: 525084.331 | AO53: 525084.331 | AP53: 525084.331 | AQ53: 525084.331 | AR53: 525084.331 | AS53: 525084.331 | AT53: 525084.331 | AU53: 525084.331 | AV53: 525084.331 | AW53: 525084.331 | AX53: 525084.331 | AY53: 525084.331 | AZ53: 525084.331 | BA53: 525084.331 | BB53: 525084.331 | BC53: 525084.331 | BD53: 525084.331 | BE53: 525084.331 | BF53: 525084.331 | BG53: 525084.331 | BH53: 525084.331 | BI53: 525084.331 | BJ53: 525084.331 | BK53: 525084.331 | BL53: 525084.331 | BM53: 525084.331 | BN53: 525084.331 | BO53: 525084.331 | BP53: 525084.331 | BQ53: 525084.331 | BR53: 525084.331 | BS53: 525084.331
D55: Equivalent Cost of Hydrogen/kg | G55: AUD/kg | K55: =MAX(N55:BS55) -> 7.870234141 | N55: =IF(N46,N53/N46) -> FALSE | O55: =IF(O46,O53/O46) -> FALSE | P55: FALSE | Q55: FALSE | R55: FALSE | S55: FALSE | T55: FALSE | U55: FALSE | V55: FALSE | W55: FALSE | X55: FALSE | Y55: FALSE | Z55: 7.870234141 | AA55: 7.870234141 | AB55: 7.870234141 | AC55: 7.870234141 | AD55: 7.870234141 | AE55: 7.870234141 | AF55: 7.870234141 | AG55: 7.870234141 | AH55: 7.870234141 | AI55: 7.870234141 | AJ55: 7.870234141 | AK55: 7.870234141 | AL55: 7.870234141 | AM55: 7.870234141 | AN55: 7.870234141 | AO55: 7.870234141 | AP55: 7.870234141 | AQ55: 7.870234141 | AR55: 7.870234141 | AS55: 7.870234141 | AT55: 7.870234141 | AU55: 7.870234141 | AV55: 7.870234141 | AW55: 7.870234141 | AX55: 7.870234141 | AY55: 7.870234141 | AZ55: 7.870234141 | BA55: 7.870234141 | BB55: 7.870234141 | BC55: 7.870234141 | BD55: 7.870234141 | BE55: 7.870234141 | BF55: 7.870234141 | BG55: 7.870234141 | BH55: 7.870234141 | BI55: 7.870234141 | BJ55: 7.870234141 | BK55: 7.870234141 | BL55: 7.870234141 | BM55: 7.870234141 | BN55: 7.870234141 | BO55: 7.870234141 | BP55: 7.870234141 | BQ55: 7.870234141 | BR55: 7.870234141 | BS55: 7.870234141
D56: Equivalent Cost of Hydrogen/kg | G56: USD/kg | K56: =MAX(N56:BS56) -> 5.58786624 | N56: =N55/$H$48 -> 0 | O56: =O55/$H$48 -> 0 | P56: 0 | Q56: 0 | R56: 0 | S56: 0 | T56: 0 | U56: 0 | V56: 0 | W56: 0 | X56: 0 | Y56: 0 | Z56: 5.58786624 | AA56: 5.58786624 | AB56: 5.58786624 | AC56: 5.58786624 | AD56: 5.58786624 | AE56: 5.58786624 | AF56: 5.58786624 | AG56: 5.58786624 | AH56: 5.58786624 | AI56: 5.58786624 | AJ56: 5.58786624 | AK56: 5.58786624 | AL56: 5.58786624 | AM56: 5.58786624 | AN56: 5.58786624 | AO56: 5.58786624 | AP56: 5.58786624 | AQ56: 5.58786624 | AR56: 5.58786624 | AS56: 5.58786624 | AT56: 5.58786624 | AU56: 5.58786624 | AV56: 5.58786624 | AW56: 5.58786624 | AX56: 5.58786624 | AY56: 5.58786624 | AZ56: 5.58786624 | BA56: 5.58786624 | BB56: 5.58786624 | BC56: 5.58786624 | BD56: 5.58786624 | BE56: 5.58786624 | BF56: 5.58786624 | BG56: 5.58786624 | BH56: 5.58786624 | BI56: 5.58786624 | BJ56: 5.58786624 | BK56: 5.58786624 | BL56: 5.58786624 | BM56: 5.58786624 | BN56: 5.58786624 | BO56: 5.58786624 | BP56: 5.58786624 | BQ56: 5.58786624 | BR56: 5.58786624 | BS56: 5.58786624
D57: Cost of Hydrogen Check | G57: AUD | K57: =SUM(N57:BS57) -> 24153879.23 | N57: =N55*N46 -> 0 | O57: =O55*O46 -> 0 | P57: 0 | Q57: 0 | R57: 0 | S57: 0 | T57: 0 | U57: 0 | V57: 0 | W57: 0 | X57: 0 | Y57: 0 | Z57: 525084.331 | AA57: 525084.331 | AB57: 525084.331 | AC57: 525084.331 | AD57: 525084.331 | AE57: 525084.331 | AF57: 525084.331 | AG57: 525084.331 | AH57: 525084.331 | AI57: 525084.331 | AJ57: 525084.331 | AK57: 525084.331 | AL57: 525084.331 | AM57: 525084.331 | AN57: 525084.331 | AO57: 525084.331 | AP57: 525084.331 | AQ57: 525084.331 | AR57: 525084.331 | AS57: 525084.331 | AT57: 525084.331 | AU57: 525084.331 | AV57: 525084.331 | AW57: 525084.331 | AX57: 525084.331 | AY57: 525084.331 | AZ57: 525084.331 | BA57: 525084.331 | BB57: 525084.331 | BC57: 525084.331 | BD57: 525084.331 | BE57: 525084.331 | BF57: 525084.331 | BG57: 525084.331 | BH57: 525084.331 | BI57: 525084.331 | BJ57: 525084.331 | BK57: 525084.331 | BL57: 525084.331 | BM57: 525084.331 | BN57: 525084.331 | BO57: 525084.331 | BP57: 525084.331 | BQ57: 525084.331 | BR57: 525084.331 | BS57: 525084.331
D59: New Trucks | G59: Number | K59: =SUM(N59:BS59) -> 31 | N59: =N16 -> 0 | O59: 0 | P59: 0 | Q59: 0 | R59: 0 | S59: 0 | T59: 0 | U59: 0 | V59: 0 | W59: 0 | X59: 0 | Y59: 0 | Z59: 31 | AA59: 0 | AB59: 0 | AC59: 0 | AD59: 0 | AE59: 0 | AF59: 0 | AG59: 0 | AH59: 0 | AI59: 0 | AJ59: 0 | AK59: 0 | AL59: 0 | AM59: 0 | AN59: 0 | AO59: 0 | AP59: 0 | AQ59: 0 | AR59: 0 | AS59: 0 | AT59: =AT16 -> 0 | AU59: 0 | AV59: 0 | AW59: 0 | AX59: 0 | AY59: 0 | AZ59: 0 | BA59: 0 | BB59: 0 | BC59: 0 | BD59: 0 | BE59: 0 | BF59: 0 | BG59: 0 | BH59: 0 | BI59: 0 | BJ59: 0 | BK59: 0 | BL59: 0 | BM59: 0 | BN59: 0 | BO59: 0 | BP59: 0 | BQ59: 0 | BR59: 0 | BS59: 0
D60: Exchange Rate
D61: Cost of Standard Truck | G61: AUD | H61: =Inputs!F72 -> 435000 | K61: =SUM(N61:BS61) -> 13485000 | N61: =N59*$H$61 -> 0 | O61: =O59*$H$61 -> 0 | P61: 0 | Q61: 0 | R61: 0 | S61: 0 | T61: 0 | U61: 0 | V61: 0 | W61: 0 | X61: 0 | Y61: 0 | Z61: 13485000 | AA61: 0 | AB61: 0 | AC61: 0 | AD61: 0 | AE61: 0 | AF61: 0 | AG61: 0 | AH61: 0 | AI61: 0 | AJ61: 0 | AK61: 0 | AL61: 0 | AM61: 0 | AN61: 0 | AO61: 0 | AP61: 0 | AQ61: 0 | AR61: 0 | AS61: 0 | AT61: 0 | AU61: 0 | AV61: 0 | AW61: 0 | AX61: 0 | AY61: 0 | AZ61: 0 | BA61: 0 | BB61: 0 | BC61: 0 | BD61: 0 | BE61: 0 | BF61: 0 | BG61: 0 | BH61: 0 | BI61: 0 | BJ61: 0 | BK61: 0 | BL61: 0 | BM61: 0 | BN61: 0 | BO61: 0 | BP61: 0 | BQ61: 0 | BR61: 0 | BS61: 0
D62: Cost of Hydrogen Truck | G62: AUD | H62: =Inputs!F75 -> 823235.2941 | K62: =SUM(N62:BS62) -> 25520294.12 | N62: =$H$62*N59 -> 0 | O62: =$H$62*O59 -> 0 | P62: 0 | Q62: 0 | R62: 0 | S62: 0 | T62: 0 | U62: 0 | V62: 0 | W62: 0 | X62: 0 | Y62: 0 | Z62: 25520294.12 | AA62: 0 | AB62: 0 | AC62: 0 | AD62: 0 | AE62: 0 | AF62: 0 | AG62: 0 | AH62: 0 | AI62: 0 | AJ62: 0 | AK62: 0 | AL62: 0 | AM62: 0 | AN62: 0 | AO62: 0 | AP62: 0 | AQ62: 0 | AR62: 0 | AS62: 0 | AT62: 0 | AU62: 0 | AV62: 0 | AW62: 0 | AX62: 0 | AY62: 0 | AZ62: 0 | BA62: 0 | BB62: 0 | BC62: 0 | BD62: 0 | BE62: 0 | BF62: 0 | BG62: 0 | BH62: 0 | BI62: 0 | BJ62: 0 | BK62: 0 | BL62: 0 | BM62: 0 | BN62: 0 | BO62: 0 | BP62: 0 | BQ62: 0 | BR62: 0 | BS62: 0
D63: Added Cost of Hydrogen Trucks | G63: AUD | H63: =Inputs!F41 -> FALSE | K63: =SUM(N63:BS63) -> 0 | N63: =(N62-N61)*$H$63 -> 0 | O63: =(O62-O61)*$H$63 -> 0 | P63: 0 | Q63: 0 | R63: 0 | S63: 0 | T63: 0 | U63: 0 | V63: 0 | W63: 0 | X63: 0 | Y63: 0 | Z63: 0 | AA63: 0 | AB63: 0 | AC63: 0 | AD63: 0 | AE63: 0 | AF63: 0 | AG63: 0 | AH63: 0 | AI63: 0 | AJ63: 0 | AK63: 0 | AL63: 0 | AM63: 0 | AN63: 0 | AO63: 0 | AP63: 0 | AQ63: 0 | AR63: 0 | AS63: 0 | AT63: 0 | AU63: 0 | AV63: 0 | AW63: 0 | AX63: 0 | AY63: 0 | AZ63: 0 | BA63: 0 | BB63: 0 | BC63: 0 | BD63: 0 | BE63: 0 | BF63: 0 | BG63: 0 | BH63: 0 | BI63: 0 | BJ63: 0 | BK63: 0 | BL63: 0 | BM63: 0 | BN63: 0 | BO63: 0 | BP63: 0 | BQ63: 0 | BR63: 0 | BS63: 0
B65: Electrolyzer
C67: Capacity and Efficiency of Electrolyzer
D69: Total Capacity of Electrolyzer per hour | G69: kg/hour | H69: =Inputs!F85 -> 17.14285714 | I69: Tons/hour | K69: =MAX(N69:BS69) -> 17.14285714 | N69: =$H69*N8 -> 0 | O69: 0 | P69: 0 | Q69: 0 | R69: 0 | S69: 0 | T69: 0 | U69: 0 | V69: 0 | W69: 0 | X69: 0 | Y69: 0 | Z69: 17.14285714 | AA69: 17.14285714 | AB69: 17.14285714 | AC69: 17.14285714 | AD69: 17.14285714 | AE69: 17.14285714 | AF69: 17.14285714 | AG69: 17.14285714 | AH69: 17.14285714 | AI69: 17.14285714 | AJ69: 17.14285714 | AK69: 17.14285714 | AL69: 17.14285714 | AM69: 17.14285714 | AN69: 17.14285714 | AO69: 17.14285714 | AP69: 17.14285714 | AQ69: 17.14285714 | AR69: 17.14285714 | AS69: 17.14285714 | AT69: =$H69*AT8 -> 0 | AU69: 0 | AV69: 0 | AW69: 0 | AX69: 0 | AY69: 0 | AZ69: 0 | BA69: 0 | BB69: 0 | BC69: 0 | BD69: 0 | BE69: 0 | BF69: 0 | BG69: 0 | BH69: 0 | BI69: 0 | BJ69: 0 | BK69: 0 | BL69: 0 | BM69: 0 | BN69: 0 | BO69: 0 | BP69: 0 | BQ69: 0 | BR69: 0 | BS69: 0
D70: Efficiency of Electrolyzer (Including Compression) | G70: kWh/kg | H70: =Inputs!F86 -> 70 | K70: =MAX(N70:BS70) -> 70 | N70: =$H$70 -> 70 | O70: =$H$70 -> 70 | P70: 70 | Q70: 70 | R70: 70 | S70: 70 | T70: 70 | U70: 70 | V70: 70 | W70: 70 | X70: 70 | Y70: 70 | Z70: 70 | AA70: 70 | AB70: 70 | AC70: 70 | AD70: 70 | AE70: 70 | AF70: 70 | AG70: 70 | AH70: 70 | AI70: 70 | AJ70: 70 | AK70: 70 | AL70: 70 | AM70: 70 | AN70: 70 | AO70: 70 | AP70: 70 | AQ70: 70 | AR70: 70 | AS70: 70 | AT70: 70 | AU70: 70 | AV70: 70 | AW70: 70 | AX70: 70 | AY70: 70 | AZ70: 70 | BA70: 70 | BB70: 70 | BC70: 70 | BD70: 70 | BE70: 70 | BF70: 70 | BG70: 70 | BH70: 70 | BI70: 70 | BJ70: 70 | BK70: 70 | BL70: 70 | BM70: 70 | BN70: 70 | BO70: 70 | BP70: 70 | BQ70: 70 | BR70: 70 | BS70: 70
D71: Total Electricity Used per Hour | G71: kW | K71: =MAX(N71:CN71) -> 1200 | N71: =N69*N70 -> 0 | O71: =O69*O70 -> 0 | P71: 0 | Q71: 0 | R71: 0 | S71: 0 | T71: 0 | U71: 0 | V71: 0 | W71: 0 | X71: 0 | Y71: 0 | Z71: 1200 | AA71: 1200 | AB71: 1200 | AC71: 1200 | AD71: 1200 | AE71: 1200 | AF71: 1200 | AG71: 1200 | AH71: 1200 | AI71: 1200 | AJ71: 1200 | AK71: 1200 | AL71: 1200 | AM71: 1200 | AN71: 1200 | AO71: 1200 | AP71: 1200 | AQ71: 1200 | AR71: 1200 | AS71: 1200 | AT71: 0 | AU71: 0 | AV71: 0 | AW71: 0 | AX71: 0 | AY71: 0 | AZ71: 0 | BA71: 0 | BB71: 0 | BC71: 0 | BD71: 0 | BE71: 0 | BF71: 0 | BG71: 0 | BH71: 0 | BI71: 0 | BJ71: 0 | BK71: 0 | BL71: 0 | BM71: 0 | BN71: 0 | BO71: 0 | BP71: 0 | BQ71: 0 | BR71: 0 | BS71: 0
D72: Degradation per Year | G72: % p.a.
D73: Degradation Index | G73: Index
D74: Availabile Capacity per Hour | G74: kg/hour | H74: =Inputs!F90 -> 0.97 | K74: =SUM(N74:BS74) -> 332.5714286 | N74: =N69*$H$74 -> 0 | O74: =O69*$H$74 -> 0 | P74: 0 | Q74: 0 | R74: 0 | S74: 0 | T74: 0 | U74: 0 | V74: 0 | W74: 0 | X74: 0 | Y74: 0 | Z74: 16.62857143 | AA74: 16.62857143 | AB74: 16.62857143 | AC74: 16.62857143 | AD74: 16.62857143 | AE74: 16.62857143 | AF74: 16.62857143 | AG74: 16.62857143 | AH74: 16.62857143 | AI74: 16.62857143 | AJ74: 16.62857143 | AK74: 16.62857143 | AL74: 16.62857143 | AM74: 16.62857143 | AN74: 16.62857143 | AO74: 16.62857143 | AP74: 16.62857143 | AQ74: 16.62857143 | AR74: 16.62857143 | AS74: 16.62857143 | AT74: 0 | AU74: 0 | AV74: 0 | AW74: 0 | AX74: 0 | AY74: 0 | AZ74: 0 | BA74: 0 | BB74: 0 | BC74: 0 | BD74: 0 | BE74: 0 | BF74: 0 | BG74: 0 | BH74: 0 | BI74: 0 | BJ74: 0 | BK74: 0 | BL74: 0 | BM74: 0 | BN74: 0 | BO74: 0 | BP74: 0 | BQ74: 0 | BR74: 0 | BS74: 0
D76: Total Annual Potential Production from Capacity | G76: kg/year | H76: 8760 | K76: =MAX(N76:BS76) -> 145666.2857 | N76: =N74*$H$76 -> 0 | O76: =O74*$H$76 -> 0 | P76: 0 | Q76: 0 | R76: 0 | S76: 0 | T76: 0 | U76: 0 | V76: 0 | W76: 0 | X76: 0 | Y76: 0 | Z76: 145666.2857 | AA76: 145666.2857 | AB76: 145666.2857 | AC76: 145666.2857 | AD76: 145666.2857 | AE76: 145666.2857 | AF76: 145666.2857 | AG76: 145666.2857 | AH76: 145666.2857 | AI76: 145666.2857 | AJ76: 145666.2857 | AK76: 145666.2857 | AL76: 145666.2857 | AM76: 145666.2857 | AN76: 145666.2857 | AO76: 145666.2857 | AP76: 145666.2857 | AQ76: 145666.2857 | AR76: 145666.2857 | AS76: 145666.2857 | AT76: 0 | AU76: 0 | AV76: 0 | AW76: 0 | AX76: 0 | AY76: 0 | AZ76: 0 | BA76: 0 | BB76: 0 | BC76: 0 | BD76: 0 | BE76: 0 | BF76: 0 | BG76: 0 | BH76: 0 | BI76: 0 | BJ76: 0 | BK76: 0 | BL76: 0 | BM76: 0 | BN76: 0 | BO76: 0 | BP76: 0 | BQ76: 0 | BR76: 0 | BS76: 0
D77: Demanded Production from Trucks | G77: kg/year | K77: =MAX(N77:BS77) -> 66717.75218 | N77: =N46 -> 0 | O77: =O46 -> 0 | P77: 0 | Q77: 0 | R77: 0 | S77: 0 | T77: 0 | U77: 0 | V77: 0 | W77: 0 | X77: 0 | Y77: 0 | Z77: 66717.75218 | AA77: 66717.75218 | AB77: 66717.75218 | AC77: 66717.75218 | AD77: 66717.75218 | AE77: 66717.75218 | AF77: 66717.75218 | AG77: 66717.75218 | AH77: 66717.75218 | AI77: 66717.75218 | AJ77: 66717.75218 | AK77: 66717.75218 | AL77: 66717.75218 | AM77: 66717.75218 | AN77: 66717.75218 | AO77: 66717.75218 | AP77: 66717.75218 | AQ77: 66717.75218 | AR77: 66717.75218 | AS77: 66717.75218 | AT77: 66717.75218 | AU77: 66717.75218 | AV77: 66717.75218 | AW77: 66717.75218 | AX77: 66717.75218 | AY77: 66717.75218 | AZ77: 66717.75218 | BA77: 66717.75218 | BB77: 66717.75218 | BC77: 66717.75218 | BD77: 66717.75218 | BE77: 66717.75218 | BF77: 66717.75218 | BG77: 66717.75218 | BH77: 66717.75218 | BI77: 66717.75218 | BJ77: 66717.75218 | BK77: 66717.75218 | BL77: 66717.75218 | BM77: 66717.75218 | BN77: 66717.75218 | BO77: 66717.75218 | BP77: 66717.75218 | BQ77: 66717.75218 | BR77: 66717.75218 | BS77: 66717.75218
D78: Total Annual Production (Min) | G78: kg/year | K78: =MAX(N78:BS78) -> 66717.75218 | N78: =MIN(N76,N46) -> 0 | O78: =MIN(O76,O46) -> 0 | P78: 0 | Q78: 0 | R78: 0 | S78: 0 | T78: 0 | U78: 0 | V78: 0 | W78: 0 | X78: 0 | Y78: 0 | Z78: 66717.75218 | AA78: 66717.75218 | AB78: 66717.75218 | AC78: 66717.75218 | AD78: 66717.75218 | AE78: 66717.75218 | AF78: 66717.75218 | AG78: 66717.75218 | AH78: 66717.75218 | AI78: 66717.75218 | AJ78: 66717.75218 | AK78: 66717.75218 | AL78: 66717.75218 | AM78: 66717.75218 | AN78: 66717.75218 | AO78: 66717.75218 | AP78: 66717.75218 | AQ78: 66717.75218 | AR78: 66717.75218 | AS78: 66717.75218 | AT78: =MIN(AT76,AT46) -> 0 | AU78: 0 | AV78: 0 | AW78: 0 | AX78: 0 | AY78: 0 | AZ78: 0 | BA78: 0 | BB78: 0 | BC78: 0 | BD78: 0 | BE78: 0 | BF78: 0 | BG78: 0 | BH78: 0 | BI78: 0 | BJ78: 0 | BK78: 0 | BL78: 0 | BM78: 0 | BN78: 0 | BO78: 0 | BP78: 0 | BQ78: 0 | BR78: 0 | BS78: 0
D79: Capacity Factor | G79: % | K79: =MAX(N79:BS79) -> 0.4580178032 | N79: =IF(N76,N78/N76) -> FALSE | O79: =IF(O76,O78/O76) -> FALSE | P79: FALSE | Q79: FALSE | R79: FALSE | S79: FALSE | T79: FALSE | U79: FALSE | V79: FALSE | W79: FALSE | X79: FALSE | Y79: FALSE | Z79: 0.4580178032 | AA79: 0.4580178032 | AB79: 0.4580178032 | AC79: 0.4580178032 | AD79: 0.4580178032 | AE79: 0.4580178032 | AF79: 0.4580178032 | AG79: 0.4580178032 | AH79: 0.4580178032 | AI79: 0.4580178032 | AJ79: 0.4580178032 | AK79: 0.4580178032 | AL79: 0.4580178032 | AM79: 0.4580178032 | AN79: 0.4580178032 | AO79: 0.4580178032 | AP79: 0.4580178032 | AQ79: 0.4580178032 | AR79: 0.4580178032 | AS79: 0.4580178032 | AT79: FALSE | AU79: FALSE | AV79: FALSE | AW79: FALSE | AX79: FALSE | AY79: FALSE | AZ79: FALSE | BA79: FALSE | BB79: FALSE | BC79: FALSE | BD79: FALSE | BE79: FALSE | BF79: FALSE | BG79: FALSE | BH79: FALSE | BI79: FALSE | BJ79: FALSE | BK79: FALSE | BL79: FALSE | BM79: FALSE | BN79: FALSE | BO79: FALSE | BP79: FALSE | BQ79: FALSE | BR79: FALSE | BS79: FALSE
D81: Accumulated Hours of Operation | G81: Hours | H81: 8760 | K81: =MAX(N81:BS81) -> 80244.71911 | N81: =M81+N79*$H$81 -> 0 | O81: =N81+O79*$H$81 -> 0 | P81: 0 | Q81: 0 | R81: 0 | S81: 0 | T81: 0 | U81: 0 | V81: 0 | W81: 0 | X81: 0 | Y81: 0 | Z81: 4012.235956 | AA81: 8024.471911 | AB81: 12036.70787 | AC81: 16048.94382 | AD81: 20061.17978 | AE81: 24073.41573 | AF81: 28085.65169 | AG81: 32097.88765 | AH81: 36110.1236 | AI81: 40122.35956 | AJ81: 44134.59551 | AK81: 48146.83147 | AL81: 52159.06742 | AM81: 56171.30338 | AN81: 60183.53933 | AO81: 64195.77529 | AP81: 68208.01125 | AQ81: 72220.2472 | AR81: 76232.48316 | AS81: 80244.71911 | AT81: 80244.71911 | AU81: 80244.71911 | AV81: 80244.71911 | AW81: 80244.71911 | AX81: 80244.71911 | AY81: 80244.71911 | AZ81: 80244.71911 | BA81: 80244.71911 | BB81: 80244.71911 | BC81: 80244.71911 | BD81: 80244.71911 | BE81: 80244.71911 | BF81: 80244.71911 | BG81: 80244.71911 | BH81: 80244.71911 | BI81: 80244.71911 | BJ81: 80244.71911 | BK81: 80244.71911 | BL81: 80244.71911 | BM81: 80244.71911 | BN81: 80244.71911 | BO81: 80244.71911 | BP81: 80244.71911 | BQ81: 80244.71911 | BR81: 80244.71911 | BS81: 80244.71911
D82: Lifetime Hours of Operation | G82: Hours | H82: =Inputs!F92 -> 100000 | N82: =$H$82 -> 100000 | O82: =$H$82 -> 100000 | P82: 100000 | Q82: 100000 | R82: 100000 | S82: 100000 | T82: 100000 | U82: 100000 | V82: 100000 | W82: 100000 | X82: 100000 | Y82: 100000 | Z82: 100000 | AA82: 100000 | AB82: 100000 | AC82: 100000 | AD82: 100000 | AE82: 100000 | AF82: 100000 | AG82: 100000 | AH82: 100000 | AI82: 100000 | AJ82: 100000 | AK82: 100000 | AL82: 100000 | AM82: 100000 | AN82: 100000 | AO82: 100000 | AP82: 100000 | AQ82: 100000 | AR82: 100000 | AS82: 100000 | AT82: 100000 | AU82: 100000 | AV82: 100000 | AW82: 100000 | AX82: 100000 | AY82: 100000 | AZ82: 100000 | BA82: 100000 | BB82: 100000 | BC82: 100000 | BD82: 100000 | BE82: 100000 | BF82: 100000 | BG82: 100000 | BH82: 100000 | BI82: 100000 | BJ82: 100000 | BK82: 100000 | BL82: 100000 | BM82: 100000 | BN82: 100000 | BO82: 100000 | BP82: 100000 | BQ82: 100000 | BR82: 100000 | BS82: 100000
D83: Percent of Life Expired | G83: % | K83: =MAX(N83:BS83) -> 0.8024471911 | N83: =N81/N82 -> 0 | O83: =O81/O82 -> 0 | P83: 0 | Q83: 0 | R83: 0 | S83: 0 | T83: 0 | U83: 0 | V83: 0 | W83: 0 | X83: 0 | Y83: 0 | Z83: 0.04012235956 | AA83: 0.08024471911 | AB83: 0.1203670787 | AC83: 0.1604894382 | AD83: 0.2006117978 | AE83: 0.2407341573 | AF83: 0.2808565169 | AG83: 0.3209788765 | AH83: 0.361101236 | AI83: 0.4012235956 | AJ83: 0.4413459551 | AK83: 0.4814683147 | AL83: 0.5215906742 | AM83: 0.5617130338 | AN83: 0.6018353933 | AO83: 0.6419577529 | AP83: 0.6820801125 | AQ83: 0.722202472 | AR83: 0.7623248316 | AS83: 0.8024471911 | AT83: 0.8024471911 | AU83: 0.8024471911 | AV83: 0.8024471911 | AW83: 0.8024471911 | AX83: 0.8024471911 | AY83: 0.8024471911 | AZ83: 0.8024471911 | BA83: 0.8024471911 | BB83: 0.8024471911 | BC83: 0.8024471911 | BD83: 0.8024471911 | BE83: 0.8024471911 | BF83: 0.8024471911 | BG83: 0.8024471911 | BH83: 0.8024471911 | BI83: 0.8024471911 | BJ83: 0.8024471911 | BK83: 0.8024471911 | BL83: 0.8024471911 | BM83: 0.8024471911 | BN83: 0.8024471911 | BO83: 0.8024471911 | BP83: 0.8024471911 | BQ83: 0.8024471911 | BR83: 0.8024471911 | BS83: 0.8024471911
D84: Exchange Rate | H84: =1/Inputs!$F$23 -> 1.408450704
C85: Capital Cost of Electrolyzer | G85: =L4 -> AUD | H85: =Inputs!F96*H84 -> 3056200 | K85: =SUM(N85:BS85) -> 3056200 | N85: =$H$85*N7 -> 0 | O85: 0 | P85: 0 | Q85: 0 | R85: 0 | S85: 0 | T85: 0 | U85: 0 | V85: 0 | W85: 0 | X85: 0 | Y85: 0 | Z85: 3056200 | AA85: 0 | AB85: 0 | AC85: 0 | AD85: 0 | AE85: 0 | AF85: 0 | AG85: 0 | AH85: 0 | AI85: 0 | AJ85: 0 | AK85: 0 | AL85: 0 | AM85: 0 | AN85: 0 | AO85: 0 | AP85: 0 | AQ85: 0 | AR85: 0 | AS85: 0 | AT85: =$H$85*AT7 -> 0 | AU85: 0 | AV85: 0 | AW85: 0 | AX85: 0 | AY85: 0 | AZ85: 0 | BA85: 0 | BB85: 0 | BC85: 0 | BD85: 0 | BE85: 0 | BF85: 0 | BG85: 0 | BH85: 0 | BI85: 0 | BJ85: 0 | BK85: 0 | BL85: 0 | BM85: 0 | BN85: 0 | BO85: 0 | BP85: 0 | BQ85: 0 | BR85: 0 | BS85: 0
C87: Electricy Costs
E88: Electricity Required | G88: kWh | K88: =MAX(N88:BS88) -> 4670242.652 | N88: =N78*N70 -> 0 | O88: =O78*O70 -> 0 | P88: 0 | Q88: 0 | R88: 0 | S88: 0 | T88: 0 | U88: 0 | V88: 0 | W88: 0 | X88: 0 | Y88: 0 | Z88: 4670242.652 | AA88: 4670242.652 | AB88: 4670242.652 | AC88: 4670242.652 | AD88: 4670242.652 | AE88: 4670242.652 | AF88: 4670242.652 | AG88: 4670242.652 | AH88: 4670242.652 | AI88: 4670242.652 | AJ88: 4670242.652 | AK88: 4670242.652 | AL88: 4670242.652 | AM88: 4670242.652 | AN88: 4670242.652 | AO88: 4670242.652 | AP88: 4670242.652 | AQ88: 4670242.652 | AR88: 4670242.652 | AS88: 4670242.652 | AT88: 0 | AU88: 0 | AV88: 0 | AW88: 0 | AX88: 0 | AY88: 0 | AZ88: 0 | BA88: 0 | BB88: 0 | BC88: 0 | BD88: 0 | BE88: 0 | BF88: 0 | BG88: 0 | BH88: 0 | BI88: 0 | BJ88: 0 | BK88: 0 | BL88: 0 | BM88: 0 | BN88: 0 | BO88: 0 | BP88: 0 | BQ88: 0 | BR88: 0 | BS88: 0
E89: Electricity Cost/Unit | G89: =L4&"/kWh" -> AUD/kWh | H89: =Inputs!F101*H84 -> 70.42253521 | J89: =H89/1000 -> 0.07042253521 | N89: =$J$89 -> 0.07042253521 | O89: 0.07042253521 | P89: 0.07042253521 | Q89: 0.07042253521 | R89: 0.07042253521 | S89: 0.07042253521 | T89: 0.07042253521 | U89: 0.07042253521 | V89: 0.07042253521 | W89: 0.07042253521 | X89: 0.07042253521 | Y89: 0.07042253521 | Z89: 0.07042253521 | AA89: 0.07042253521 | AB89: 0.07042253521 | AC89: 0.07042253521 | AD89: 0.07042253521 | AE89: 0.07042253521 | AF89: 0.07042253521 | AG89: 0.07042253521 | AH89: 0.07042253521 | AI89: 0.07042253521 | AJ89: 0.07042253521 | AK89: 0.07042253521 | AL89: 0.07042253521 | AM89: 0.07042253521 | AN89: 0.07042253521 | AO89: 0.07042253521 | AP89: 0.07042253521 | AQ89: 0.07042253521 | AR89: 0.07042253521 | AS89: 0.07042253521 | AT89: =$J$89 -> 0.07042253521 | AU89: 0.07042253521 | AV89: 0.07042253521 | AW89: 0.07042253521 | AX89: 0.07042253521 | AY89: 0.07042253521 | AZ89: 0.07042253521 | BA89: 0.07042253521 | BB89: 0.07042253521 | BC89: 0.07042253521 | BD89: 0.07042253521 | BE89: 0.07042253521 | BF89: 0.07042253521 | BG89: 0.07042253521 | BH89: 0.07042253521 | BI89: 0.07042253521 | BJ89: 0.07042253521 | BK89: 0.07042253521 | BL89: 0.07042253521 | BM89: 0.07042253521 | BN89: 0.07042253521 | BO89: 0.07042253521 | BP89: 0.07042253521 | BQ89: 0.07042253521 | BR89: 0.07042253521 | BS89: 0.07042253521
E90: Total Electricity Cost | G90: AUD/Year | K90: =MAX(N90:BS90) -> 328890.3276 | N90: =N88*N89 -> 0 | O90: =O88*O89 -> 0 | P90: 0 | Q90: 0 | R90: 0 | S90: 0 | T90: 0 | U90: 0 | V90: 0 | W90: 0 | X90: 0 | Y90: 0 | Z90: 328890.3276 | AA90: 328890.3276 | AB90: 328890.3276 | AC90: 328890.3276 | AD90: 328890.3276 | AE90: 328890.3276 | AF90: 328890.3276 | AG90: 328890.3276 | AH90: 328890.3276 | AI90: 328890.3276 | AJ90: 328890.3276 | AK90: 328890.3276 | AL90: 328890.3276 | AM90: 328890.3276 | AN90: 328890.3276 | AO90: 328890.3276 | AP90: 328890.3276 | AQ90: 328890.3276 | AR90: 328890.3276 | AS90: 328890.3276 | AT90: 0 | AU90: 0 | AV90: 0 | AW90: 0 | AX90: 0 | AY90: 0 | AZ90: 0 | BA90: 0 | BB90: 0 | BC90: 0 | BD90: 0 | BE90: 0 | BF90: 0 | BG90: 0 | BH90: 0 | BI90: 0 | BJ90: 0 | BK90: 0 | BL90: 0 | BM90: 0 | BN90: 0 | BO90: 0 | BP90: 0 | BQ90: 0 | BR90: 0 | BS90: 0
E91: Electricity Cost/kg | G91: AUD/kg | K91: =MAX(N91:BS91) -> 4.929577465 | N91: =IF(N78,N90/N78) -> FALSE | O91: =IF(O78,O90/O78) -> FALSE | P91: FALSE | Q91: FALSE | R91: FALSE | S91: FALSE | T91: FALSE | U91: FALSE | V91: FALSE | W91: FALSE | X91: FALSE | Y91: FALSE | Z91: 4.929577465 | AA91: 4.929577465 | AB91: 4.929577465 | AC91: 4.929577465 | AD91: 4.929577465 | AE91: 4.929577465 | AF91: 4.929577465 | AG91: 4.929577465 | AH91: 4.929577465 | AI91: 4.929577465 | AJ91: 4.929577465 | AK91: 4.929577465 | AL91: 4.929577465 | AM91: 4.929577465 | AN91: 4.929577465 | AO91: 4.929577465 | AP91: 4.929577465 | AQ91: 4.929577465 | AR91: 4.929577465 | AS91: 4.929577465 | AT91: FALSE | AU91: FALSE | AV91: FALSE | AW91: FALSE | AX91: FALSE | AY91: FALSE | AZ91: FALSE | BA91: FALSE | BB91: FALSE | BC91: FALSE | BD91: FALSE | BE91: FALSE | BF91: FALSE | BG91: FALSE | BH91: FALSE | BI91: FALSE | BJ91: FALSE | BK91: FALSE | BL91: FALSE | BM91: FALSE | BN91: FALSE | BO91: FALSE | BP91: FALSE | BQ91: FALSE | BR91: FALSE | BS91: FALSE
C93: Water Costs
E94: Water Efficiency | G94: L/kg | H94: =Inputs!F88 -> 11.62 | N94: =$H$94 -> 11.62 | O94: =$H$94 -> 11.62 | P94: 11.62 | Q94: 11.62 | R94: 11.62 | S94: 11.62 | T94: 11.62 | U94: 11.62 | V94: 11.62 | W94: 11.62 | X94: 11.62 | Y94: 11.62 | Z94: 11.62 | AA94: 11.62 | AB94: 11.62 | AC94: 11.62 | AD94: 11.62 | AE94: 11.62 | AF94: 11.62 | AG94: 11.62 | AH94: 11.62 | AI94: 11.62 | AJ94: 11.62 | AK94: 11.62 | AL94: 11.62 | AM94: 11.62 | AN94: 11.62 | AO94: 11.62 | AP94: 11.62 | AQ94: 11.62 | AR94: 11.62 | AS94: 11.62 | AT94: 11.62 | AU94: 11.62 | AV94: 11.62 | AW94: 11.62 | AX94: 11.62 | AY94: 11.62 | AZ94: 11.62 | BA94: 11.62 | BB94: 11.62 | BC94: 11.62 | BD94: 11.62 | BE94: 11.62 | BF94: 11.62 | BG94: 11.62 | BH94: 11.62 | BI94: 11.62 | BJ94: 11.62 | BK94: 11.62 | BL94: 11.62 | BM94: 11.62 | BN94: 11.62 | BO94: 11.62 | BP94: 11.62 | BQ94: 11.62 | BR94: 11.62 | BS94: 11.62
E95: Total Water Used | G95: Litres | K95: =MAX(N95:BS95) -> 775260.2803 | N95: =N94*N78 -> 0 | O95: =O94*O78 -> 0 | P95: 0 | Q95: 0 | R95: 0 | S95: 0 | T95: 0 | U95: 0 | V95: 0 | W95: 0 | X95: 0 | Y95: 0 | Z95: 775260.2803 | AA95: 775260.2803 | AB95: 775260.2803 | AC95: 775260.2803 | AD95: 775260.2803 | AE95: 775260.2803 | AF95: 775260.2803 | AG95: 775260.2803 | AH95: 775260.2803 | AI95: 775260.2803 | AJ95: 775260.2803 | AK95: 775260.2803 | AL95: 775260.2803 | AM95: 775260.2803 | AN95: 775260.2803 | AO95: 775260.2803 | AP95: 775260.2803 | AQ95: 775260.2803 | AR95: 775260.2803 | AS95: 775260.2803 | AT95: 0 | AU95: 0 | AV95: 0 | AW95: 0 | AX95: 0 | AY95: 0 | AZ95: 0 | BA95: 0 | BB95: 0 | BC95: 0 | BD95: 0 | BE95: 0 | BF95: 0 | BG95: 0 | BH95: 0 | BI95: 0 | BJ95: 0 | BK95: 0 | BL95: 0 | BM95: 0 | BN95: 0 | BO95: 0 | BP95: 0 | BQ95: 0 | BR95: 0 | BS95: 0
E96: Water Cost/Unit | G96: AUD/Litre | H96: =Inputs!F104/Inputs!F23 -> 2.1 | N96: =$H$96 -> 2.1 | O96: =$H$96 -> 2.1 | P96: 2.1 | Q96: 2.1 | R96: 2.1 | S96: 2.1 | T96: 2.1 | U96: 2.1 | V96: 2.1 | W96: 2.1 | X96: 2.1 | Y96: 2.1 | Z96: 2.1 | AA96: 2.1 | AB96: 2.1 | AC96: 2.1 | AD96: 2.1 | AE96: 2.1 | AF96: 2.1 | AG96: 2.1 | AH96: 2.1 | AI96: 2.1 | AJ96: 2.1 | AK96: 2.1 | AL96: 2.1 | AM96: 2.1 | AN96: 2.1 | AO96: 2.1 | AP96: 2.1 | AQ96: 2.1 | AR96: 2.1 | AS96: 2.1 | AT96: 2.1 | AU96: 2.1 | AV96: 2.1 | AW96: 2.1 | AX96: 2.1 | AY96: 2.1 | AZ96: 2.1 | BA96: 2.1 | BB96: 2.1 | BC96: 2.1 | BD96: 2.1 | BE96: 2.1 | BF96: 2.1 | BG96: 2.1 | BH96: 2.1 | BI96: 2.1 | BJ96: 2.1 | BK96: 2.1 | BL96: 2.1 | BM96: 2.1 | BN96: 2.1 | BO96: 2.1 | BP96: 2.1 | BQ96: 2.1 | BR96: 2.1 | BS96: 2.1
E97: Total Cost of Water | G97: AUD | K97: =MAX(N97:BS97) -> 1628.046589 | N97: =N95*N96/1000 -> 0 | O97: =O95*O96/1000 -> 0 | P97: 0 | Q97: 0 | R97: 0 | S97: 0 | T97: 0 | U97: 0 | V97: 0 | W97: 0 | X97: 0 | Y97: 0 | Z97: 1628.046589 | AA97: 1628.046589 | AB97: 1628.046589 | AC97: 1628.046589 | AD97: 1628.046589 | AE97: 1628.046589 | AF97: 1628.046589 | AG97: 1628.046589 | AH97: 1628.046589 | AI97: 1628.046589 | AJ97: 1628.046589 | AK97: 1628.046589 | AL97: 1628.046589 | AM97: 1628.046589 | AN97: 1628.046589 | AO97: 1628.046589 | AP97: 1628.046589 | AQ97: 1628.046589 | AR97: 1628.046589 | AS97: 1628.046589 | AT97: 0 | AU97: 0 | AV97: 0 | AW97: 0 | AX97: 0 | AY97: 0 | AZ97: 0 | BA97: 0 | BB97: 0 | BC97: 0 | BD97: 0 | BE97: 0 | BF97: 0 | BG97: 0 | BH97: 0 | BI97: 0 | BJ97: 0 | BK97: 0 | BL97: 0 | BM97: 0 | BN97: 0 | BO97: 0 | BP97: 0 | BQ97: 0 | BR97: 0 | BS97: 0
E98: Cost of Water per kg | G98: AUD/kg | K98: =MAX(N98:BS98) -> 0.024402 | N98: =IF(N78,N97/N78) -> FALSE | O98: =IF(O78,O97/O78) -> FALSE | P98: FALSE | Q98: FALSE | R98: FALSE | S98: FALSE | T98: FALSE | U98: FALSE | V98: FALSE | W98: FALSE | X98: FALSE | Y98: FALSE | Z98: 0.024402 | AA98: 0.024402 | AB98: 0.024402 | AC98: 0.024402 | AD98: 0.024402 | AE98: 0.024402 | AF98: 0.024402 | AG98: 0.024402 | AH98: 0.024402 | AI98: 0.024402 | AJ98: 0.024402 | AK98: 0.024402 | AL98: 0.024402 | AM98: 0.024402 | AN98: 0.024402 | AO98: 0.024402 | AP98: 0.024402 | AQ98: 0.024402 | AR98: 0.024402 | AS98: 0.024402 | AT98: FALSE | AU98: FALSE | AV98: FALSE | AW98: FALSE | AX98: FALSE | AY98: FALSE | AZ98: FALSE | BA98: FALSE | BB98: FALSE | BC98: FALSE | BD98: FALSE | BE98: FALSE | BF98: FALSE | BG98: FALSE | BH98: FALSE | BI98: FALSE | BJ98: FALSE | BK98: FALSE | BL98: FALSE | BM98: FALSE | BN98: FALSE | BO98: FALSE | BP98: FALSE | BQ98: FALSE | BR98: FALSE | BS98: FALSE
C100: Maintenance and Other
E101: Age of Compressor | G101: Years | N101: =M101+N8 -> 0 | O101: 0 | P101: 0 | Q101: 0 | R101: 0 | S101: 0 | T101: 0 | U101: 0 | V101: 0 | W101: 0 | X101: 0 | Y101: 0 | Z101: 1 | AA101: 2 | AB101: 3 | AC101: 4 | AD101: 5 | AE101: 6 | AF101: 7 | AG101: 8 | AH101: 9 | AI101: 10 | AJ101: 11 | AK101: 12 | AL101: 13 | AM101: 14 | AN101: 15 | AO101: 16 | AP101: 17 | AQ101: 18 | AR101: 19 | AS101: 20 | AT101: =AS101+AT8 -> 20 | AU101: 20 | AV101: 20 | AW101: 20 | AX101: 20 | AY101: 20 | AZ101: 20 | BA101: 20 | BB101: 20 | BC101: 20 | BD101: 20 | BE101: 20 | BF101: 20 | BG101: 20 | BH101: 20 | BI101: 20 | BJ101: 20 | BK101: 20 | BL101: 20 | BM101: 20 | BN101: 20 | BO101: 20 | BP101: 20 | BQ101: 20 | BR101: 20 | BS101: 20
E102: Year of Maintenance | G102: Flag | H102: =Inputs!F106 -> 8 | K102: =SUM(N102:BS102) -> 1 | N102: =(N101=$H$102)*1 -> 0 | O102: =(O101=$H$102)*1 -> 0 | P102: 0 | Q102: 0 | R102: 0 | S102: 0 | T102: 0 | U102: 0 | V102: 0 | W102: 0 | X102: 0 | Y102: 0 | Z102: 0 | AA102: 0 | AB102: 0 | AC102: 0 | AD102: 0 | AE102: 0 | AF102: 0 | AG102: 1 | AH102: 0 | AI102: 0 | AJ102: 0 | AK102: 0 | AL102: 0 | AM102: 0 | AN102: 0 | AO102: 0 | AP102: 0 | AQ102: 0 | AR102: 0 | AS102: 0 | AT102: 0 | AU102: 0 | AV102: 0 | AW102: 0 | AX102: 0 | AY102: 0 | AZ102: 0 | BA102: 0 | BB102: 0 | BC102: 0 | BD102: 0 | BE102: 0 | BF102: 0 | BG102: 0 | BH102: 0 | BI102: 0 | BJ102: 0 | BK102: 0 | BL102: 0 | BM102: 0 | BN102: 0 | BO102: 0 | BP102: 0 | BQ102: 0 | BR102: 0 | BS102: 0
E103: Extraordinary Maintenance | G103: AUD/Year | H103: =Inputs!F109 -> 1000000 | J103: =1/Inputs!$F$23 -> 1.408450704
E104: Extraordinary Maintenance | G104: AUD/Year | H104: =H103*J103 -> 1408450.704 | K104: =AVERAGE(N104:BS104) -> 70422.53521 | N104: =IF(N8,$H$104*N102) -> FALSE | O104: FALSE | P104: FALSE | Q104: FALSE | R104: FALSE | S104: FALSE | T104: FALSE | U104: FALSE | V104: FALSE | W104: FALSE | X104: FALSE | Y104: FALSE | Z104: 0 | AA104: 0 | AB104: 0 | AC104: 0 | AD104: 0 | AE104: 0 | AF104: 0 | AG104: 1408450.704 | AH104: 0 | AI104: 0 | AJ104: 0 | AK104: 0 | AL104: 0 | AM104: 0 | AN104: 0 | AO104: 0 | AP104: 0 | AQ104: 0 | AR104: 0 | AS104: 0 | AT104: =IF(AT8,$H$104*AT102) -> FALSE | AU104: FALSE | AV104: FALSE | AW104: FALSE | AX104: FALSE | AY104: FALSE | AZ104: FALSE | BA104: FALSE | BB104: FALSE | BC104: FALSE | BD104: FALSE | BE104: FALSE | BF104: FALSE | BG104: FALSE | BH104: FALSE | BI104: FALSE | BJ104: FALSE | BK104: FALSE | BL104: FALSE | BM104: FALSE | BN104: FALSE | BO104: FALSE | BP104: FALSE | BQ104: FALSE | BR104: FALSE | BS104: FALSE
E106: Other Maintenance Costs | G106: AUD/Year | H106: =Inputs!F111 -> 0.03 | J106: =H106*K85 -> 91686 | K106: =MAX(N106:BS106) -> 91686 | N106: =$J$106*N8 -> 0 | O106: 0 | P106: 0 | Q106: 0 | R106: 0 | S106: 0 | T106: 0 | U106: 0 | V106: 0 | W106: 0 | X106: 0 | Y106: 0 | Z106: 91686 | AA106: 91686 | AB106: 91686 | AC106: 91686 | AD106: 91686 | AE106: 91686 | AF106: 91686 | AG106: 91686 | AH106: 91686 | AI106: 91686 | AJ106: 91686 | AK106: 91686 | AL106: 91686 | AM106: 91686 | AN106: 91686 | AO106: 91686 | AP106: 91686 | AQ106: 91686 | AR106: 91686 | AS106: 91686 | AT106: =$J$106*AT8 -> 0 | AU106: 0 | AV106: 0 | AW106: 0 | AX106: 0 | AY106: 0 | AZ106: 0 | BA106: 0 | BB106: 0 | BC106: 0 | BD106: 0 | BE106: 0 | BF106: 0 | BG106: 0 | BH106: 0 | BI106: 0 | BJ106: 0 | BK106: 0 | BL106: 0 | BM106: 0 | BN106: 0 | BO106: 0 | BP106: 0 | BQ106: 0 | BR106: 0 | BS106: 0
E107: Other Maintenance Costs per kg | G107: =L4&"/kg" -> AUD/kg | K107: =MAX(N107:BS107) -> 1.374236946 | N107: =IF(N78,N106/N78) -> FALSE | O107: =IF(O78,O106/O78) -> FALSE | P107: FALSE | Q107: FALSE | R107: FALSE | S107: FALSE | T107: FALSE | U107: FALSE | V107: FALSE | W107: FALSE | X107: FALSE | Y107: FALSE | Z107: 1.374236946 | AA107: 1.374236946 | AB107: 1.374236946 | AC107: 1.374236946 | AD107: 1.374236946 | AE107: 1.374236946 | AF107: 1.374236946 | AG107: 1.374236946 | AH107: 1.374236946 | AI107: 1.374236946 | AJ107: 1.374236946 | AK107: 1.374236946 | AL107: 1.374236946 | AM107: 1.374236946 | AN107: 1.374236946 | AO107: 1.374236946 | AP107: 1.374236946 | AQ107: 1.374236946 | AR107: 1.374236946 | AS107: 1.374236946 | AT107: FALSE | AU107: FALSE | AV107: FALSE | AW107: FALSE | AX107: FALSE | AY107: FALSE | AZ107: FALSE | BA107: FALSE | BB107: FALSE | BC107: FALSE | BD107: FALSE | BE107: FALSE | BF107: FALSE | BG107: FALSE | BH107: FALSE | BI107: FALSE | BJ107: FALSE | BK107: FALSE | BL107: FALSE | BM107: FALSE | BN107: FALSE | BO107: FALSE | BP107: FALSE | BQ107: FALSE | BR107: FALSE | BS107: FALSE
E109: Total Maintenance and Other | G109: AUD/Year | K109: =MAX(N109:BS109) -> 1500136.704 | N109: =SUM(N104:N106) -> 0 | O109: =SUM(O104:O106) -> 0 | P109: 0 | Q109: 0 | R109: 0 | S109: 0 | T109: 0 | U109: 0 | V109: 0 | W109: 0 | X109: 0 | Y109: 0 | Z109: 91686 | AA109: 91686 | AB109: 91686 | AC109: 91686 | AD109: 91686 | AE109: 91686 | AF109: 91686 | AG109: 1500136.704 | AH109: 91686 | AI109: 91686 | AJ109: 91686 | AK109: 91686 | AL109: 91686 | AM109: 91686 | AN109: 91686 | AO109: 91686 | AP109: 91686 | AQ109: 91686 | AR109: 91686 | AS109: 91686 | AT109: 0 | AU109: 0 | AV109: 0 | AW109: 0 | AX109: 0 | AY109: 0 | AZ109: 0 | BA109: 0 | BB109: 0 | BC109: 0 | BD109: 0 | BE109: 0 | BF109: 0 | BG109: 0 | BH109: 0 | BI109: 0 | BJ109: 0 | BK109: 0 | BL109: 0 | BM109: 0 | BN109: 0 | BO109: 0 | BP109: 0 | BQ109: 0 | BR109: 0 | BS109: 0
E110: Maintenance and Other per kg | G110: AUD/kg | K110: =K109/K78 -> 22.48482084 | N110: =IF(N78,N109/N78) -> FALSE | O110: =IF(O78,O109/O78) -> FALSE | P110: FALSE | Q110: FALSE | R110: FALSE | S110: FALSE | T110: FALSE | U110: FALSE | V110: FALSE | W110: FALSE | X110: FALSE | Y110: FALSE | Z110: 1.374236946 | AA110: 1.374236946 | AB110: 1.374236946 | AC110: 1.374236946 | AD110: 1.374236946 | AE110: 1.374236946 | AF110: 1.374236946 | AG110: 22.48482084 | AH110: 1.374236946 | AI110: 1.374236946 | AJ110: 1.374236946 | AK110: 1.374236946 | AL110: 1.374236946 | AM110: 1.374236946 | AN110: 1.374236946 | AO110: 1.374236946 | AP110: 1.374236946 | AQ110: 1.374236946 | AR110: 1.374236946 | AS110: 1.374236946 | AT110: FALSE | AU110: FALSE | AV110: FALSE | AW110: FALSE | AX110: FALSE | AY110: FALSE | AZ110: FALSE | BA110: FALSE | BB110: FALSE | BC110: FALSE | BD110: FALSE | BE110: FALSE | BF110: FALSE | BG110: FALSE | BH110: FALSE | BI110: FALSE | BJ110: FALSE | BK110: FALSE | BL110: FALSE | BM110: FALSE | BN110: FALSE | BO110: FALSE | BP110: FALSE | BQ110: FALSE | BR110: FALSE | BS110: FALSE
E112: Grand Total Operation Costs | G112: AUD/Year | K112: =SUM(N112:BS112) -> 9852538.189 | N112: =N109+N97+N90 -> 0 | O112: =O109+O97+O90 -> 0 | P112: 0 | Q112: 0 | R112: 0 | S112: 0 | T112: 0 | U112: 0 | V112: 0 | W112: 0 | X112: 0 | Y112: 0 | Z112: 422204.3742 | AA112: 422204.3742 | AB112: 422204.3742 | AC112: 422204.3742 | AD112: 422204.3742 | AE112: 422204.3742 | AF112: 422204.3742 | AG112: 1830655.078 | AH112: 422204.3742 | AI112: 422204.3742 | AJ112: 422204.3742 | AK112: 422204.3742 | AL112: 422204.3742 | AM112: 422204.3742 | AN112: 422204.3742 | AO112: 422204.3742 | AP112: 422204.3742 | AQ112: 422204.3742 | AR112: 422204.3742 | AS112: 422204.3742 | AT112: 0 | AU112: 0 | AV112: 0 | AW112: 0 | AX112: 0 | AY112: 0 | AZ112: 0 | BA112: 0 | BB112: 0 | BC112: 0 | BD112: 0 | BE112: 0 | BF112: 0 | BG112: 0 | BH112: 0 | BI112: 0 | BJ112: 0 | BK112: 0 | BL112: 0 | BM112: 0 | BN112: 0 | BO112: 0 | BP112: 0 | BQ112: 0 | BR112: 0 | BS112: 0
B114: Compression and Storage
C115: Storate Capacity
D116: Storage Capacity | G116: kg | H116: =Inputs!F117 -> 345 | N116: =$H$116*N8 -> 0 | O116: 0 | P116: 0 | Q116: 0 | R116: 0 | S116: 0 | T116: 0 | U116: 0 | V116: 0 | W116: 0 | X116: 0 | Y116: 0 | Z116: 345 | AA116: 345 | AB116: 345 | AC116: 345 | AD116: 345 | AE116: 345 | AF116: 345 | AG116: 345 | AH116: 345 | AI116: 345 | AJ116: 345 | AK116: 345 | AL116: 345 | AM116: 345 | AN116: 345 | AO116: 345 | AP116: 345 | AQ116: 345 | AR116: 345 | AS116: 345 | AT116: =$H$116*AT8 -> 0 | AU116: 0 | AV116: 0 | AW116: 0 | AX116: 0 | AY116: 0 | AZ116: 0 | BA116: 0 | BB116: 0 | BC116: 0 | BD116: 0 | BE116: 0 | BF116: 0 | BG116: 0 | BH116: 0 | BI116: 0 | BJ116: 0 | BK116: 0 | BL116: 0 | BM116: 0 | BN116: 0 | BO116: 0 | BP116: 0 | BQ116: 0 | BR116: 0 | BS116: 0
D117: Average Hourly Production | G117: kg/hour | N117: =N78/8760 -> 0 | O117: =O78/8760 -> 0 | P117: 0 | Q117: 0 | R117: 0 | S117: 0 | T117: 0 | U117: 0 | V117: 0 | W117: 0 | X117: 0 | Y117: 0 | Z117: 7.616181755 | AA117: 7.616181755 | AB117: 7.616181755 | AC117: 7.616181755 | AD117: 7.616181755 | AE117: 7.616181755 | AF117: 7.616181755 | AG117: 7.616181755 | AH117: 7.616181755 | AI117: 7.616181755 | AJ117: 7.616181755 | AK117: 7.616181755 | AL117: 7.616181755 | AM117: 7.616181755 | AN117: 7.616181755 | AO117: 7.616181755 | AP117: 7.616181755 | AQ117: 7.616181755 | AR117: 7.616181755 | AS117: 7.616181755 | AT117: 0 | AU117: 0 | AV117: 0 | AW117: 0 | AX117: 0 | AY117: 0 | AZ117: 0 | BA117: 0 | BB117: 0 | BC117: 0 | BD117: 0 | BE117: 0 | BF117: 0 | BG117: 0 | BH117: 0 | BI117: 0 | BJ117: 0 | BK117: 0 | BL117: 0 | BM117: 0 | BN117: 0 | BO117: 0 | BP117: 0 | BQ117: 0 | BR117: 0 | BS117: 0
D118: Potential Hours of Storage | G118: Hrs | K118: =MAX(N118:BS118) -> 45.29828871 | N118: =IF(N117,N116/N117) -> FALSE | O118: =IF(O117,O116/O117) -> FALSE | P118: FALSE | Q118: FALSE | R118: FALSE | S118: FALSE | T118: FALSE | U118: FALSE | V118: FALSE | W118: FALSE | X118: FALSE | Y118: FALSE | Z118: 45.29828871 | AA118: 45.29828871 | AB118: 45.29828871 | AC118: 45.29828871 | AD118: 45.29828871 | AE118: 45.29828871 | AF118: 45.29828871 | AG118: 45.29828871 | AH118: 45.29828871 | AI118: 45.29828871 | AJ118: 45.29828871 | AK118: 45.29828871 | AL118: 45.29828871 | AM118: 45.29828871 | AN118: 45.29828871 | AO118: 45.29828871 | AP118: 45.29828871 | AQ118: 45.29828871 | AR118: 45.29828871 | AS118: 45.29828871 | AT118: FALSE | AU118: FALSE | AV118: FALSE | AW118: FALSE | AX118: FALSE | AY118: FALSE | AZ118: FALSE | BA118: FALSE | BB118: FALSE | BC118: FALSE | BD118: FALSE | BE118: FALSE | BF118: FALSE | BG118: FALSE | BH118: FALSE | BI118: FALSE | BJ118: FALSE | BK118: FALSE | BL118: FALSE | BM118: FALSE | BN118: FALSE | BO118: FALSE | BP118: FALSE | BQ118: FALSE | BR118: FALSE | BS118: FALSE
H119: =1/Inputs!$F$23 -> 1.408450704
D120: Cost of Compressor and Storage | G120: AUD | H120: =Inputs!F121*H119 -> 2225142 | K120: =SUM(N120:BS120) -> 2225142 | N120: =$H$120*N7 -> 0 | O120: 0 | P120: 0 | Q120: 0 | R120: 0 | S120: 0 | T120: 0 | U120: 0 | V120: 0 | W120: 0 | X120: 0 | Y120: 0 | Z120: 2225142 | AA120: 0 | AB120: 0 | AC120: 0 | AD120: 0 | AE120: 0 | AF120: 0 | AG120: 0 | AH120: 0 | AI120: 0 | AJ120: 0 | AK120: 0 | AL120: 0 | AM120: 0 | AN120: 0 | AO120: 0 | AP120: 0 | AQ120: 0 | AR120: 0 | AS120: 0 | AT120: =$H$120*AT7 -> 0 | AU120: 0 | AV120: 0 | AW120: 0 | AX120: 0 | AY120: 0 | AZ120: 0 | BA120: 0 | BB120: 0 | BC120: 0 | BD120: 0 | BE120: 0 | BF120: 0 | BG120: 0 | BH120: 0 | BI120: 0 | BJ120: 0 | BK120: 0 | BL120: 0 | BM120: 0 | BN120: 0 | BO120: 0 | BP120: 0 | BQ120: 0 | BR120: 0 | BS120: 0
C122: Maintenance and Other
E123: Year of Maintence | G123: Flag | K123: =SUM(N123:BS123) -> 1 | N123: =N102 -> 0 | O123: =O102 -> 0 | P123: 0 | Q123: 0 | R123: 0 | S123: 0 | T123: 0 | U123: 0 | V123: 0 | W123: 0 | X123: 0 | Y123: 0 | Z123: 0 | AA123: 0 | AB123: 0 | AC123: 0 | AD123: 0 | AE123: 0 | AF123: 0 | AG123: 1 | AH123: 0 | AI123: 0 | AJ123: 0 | AK123: 0 | AL123: 0 | AM123: 0 | AN123: 0 | AO123: 0 | AP123: 0 | AQ123: 0 | AR123: 0 | AS123: 0 | AT123: 0 | AU123: 0 | AV123: 0 | AW123: 0 | AX123: 0 | AY123: 0 | AZ123: 0 | BA123: 0 | BB123: 0 | BC123: 0 | BD123: 0 | BE123: 0 | BF123: 0 | BG123: 0 | BH123: 0 | BI123: 0 | BJ123: 0 | BK123: 0 | BL123: 0 | BM123: 0 | BN123: 0 | BO123: 0 | BP123: 0 | BQ123: 0 | BR123: 0 | BS123: 0
E124: Levelised Maintenance | G124: AUD/Year | H124: =Inputs!F130 -> 0 | K124: =MAX(N124:BS124) -> 0 | N124: =$H$124*N8 -> 0 | O124: 0 | P124: 0 | Q124: 0 | R124: 0 | S124: 0 | T124: 0 | U124: 0 | V124: 0 | W124: 0 | X124: 0 | Y124: 0 | Z124: 0 | AA124: 0 | AB124: 0 | AC124: 0 | AD124: 0 | AE124: 0 | AF124: 0 | AG124: 0 | AH124: 0 | AI124: 0 | AJ124: 0 | AK124: 0 | AL124: 0 | AM124: 0 | AN124: 0 | AO124: 0 | AP124: 0 | AQ124: 0 | AR124: 0 | AS124: 0 | AT124: =$H$124*AT8 -> 0 | AU124: 0 | AV124: 0 | AW124: 0 | AX124: 0 | AY124: 0 | AZ124: 0 | BA124: 0 | BB124: 0 | BC124: 0 | BD124: 0 | BE124: 0 | BF124: 0 | BG124: 0 | BH124: 0 | BI124: 0 | BJ124: 0 | BK124: 0 | BL124: 0 | BM124: 0 | BN124: 0 | BO124: 0 | BP124: 0 | BQ124: 0 | BR124: 0 | BS124: 0
E125: Other Overhead Costs | G125: AUD/Year | H125: =Inputs!F132 -> 0.1749626849 | J125: =H125*K99 -> 0 | K125: =MAX(N125:BS125) -> 389316.8185 | N125: =$H$125*N8*$H$120 -> 0 | O125: 0 | P125: 0 | Q125: 0 | R125: 0 | S125: 0 | T125: 0 | U125: 0 | V125: 0 | W125: 0 | X125: 0 | Y125: 0 | Z125: 389316.8185 | AA125: 389316.8185 | AB125: 389316.8185 | AC125: 389316.8185 | AD125: 389316.8185 | AE125: 389316.8185 | AF125: 389316.8185 | AG125: 389316.8185 | AH125: 389316.8185 | AI125: 389316.8185 | AJ125: 389316.8185 | AK125: 389316.8185 | AL125: 389316.8185 | AM125: 389316.8185 | AN125: 389316.8185 | AO125: 389316.8185 | AP125: 389316.8185 | AQ125: 389316.8185 | AR125: 389316.8185 | AS125: 389316.8185 | AT125: =$H$125*AT8*$H$120 -> 0 | AU125: 0 | AV125: 0 | AW125: 0 | AX125: 0 | AY125: 0 | AZ125: 0 | BA125: 0 | BB125: 0 | BC125: 0 | BD125: 0 | BE125: 0 | BF125: 0 | BG125: 0 | BH125: 0 | BI125: 0 | BJ125: 0 | BK125: 0 | BL125: 0 | BM125: 0 | BN125: 0 | BO125: 0 | BP125: 0 | BQ125: 0 | BR125: 0 | BS125: 0
E126: Total Maintenance and Other | G126: AUD | K126: =MAX(N126:BS126) -> 389316.8185 | N126: =SUM(N124:N125) -> 0 | O126: =SUM(O124:O125) -> 0 | P126: 0 | Q126: 0 | R126: 0 | S126: 0 | T126: 0 | U126: 0 | V126: 0 | W126: 0 | X126: 0 | Y126: 0 | Z126: 389316.8185 | AA126: 389316.8185 | AB126: 389316.8185 | AC126: 389316.8185 | AD126: 389316.8185 | AE126: 389316.8185 | AF126: 389316.8185 | AG126: 389316.8185 | AH126: 389316.8185 | AI126: 389316.8185 | AJ126: 389316.8185 | AK126: 389316.8185 | AL126: 389316.8185 | AM126: 389316.8185 | AN126: 389316.8185 | AO126: 389316.8185 | AP126: 389316.8185 | AQ126: 389316.8185 | AR126: 389316.8185 | AS126: 389316.8185 | AT126: 0 | AU126: 0 | AV126: 0 | AW126: 0 | AX126: 0 | AY126: 0 | AZ126: 0 | BA126: 0 | BB126: 0 | BC126: 0 | BD126: 0 | BE126: 0 | BF126: 0 | BG126: 0 | BH126: 0 | BI126: 0 | BJ126: 0 | BK126: 0 | BL126: 0 | BM126: 0 | BN126: 0 | BO126: 0 | BP126: 0 | BQ126: 0 | BR126: 0 | BS126: 0
E128: Total Production | G128: kg/Year | K128: =MAX(N128:BS128) -> 66717.75218 | N128: =N78 -> 0 | O128: =O78 -> 0 | P128: 0 | Q128: 0 | R128: 0 | S128: 0 | T128: 0 | U128: 0 | V128: 0 | W128: 0 | X128: 0 | Y128: 0 | Z128: 66717.75218 | AA128: 66717.75218 | AB128: 66717.75218 | AC128: 66717.75218 | AD128: 66717.75218 | AE128: 66717.75218 | AF128: 66717.75218 | AG128: 66717.75218 | AH128: 66717.75218 | AI128: 66717.75218 | AJ128: 66717.75218 | AK128: 66717.75218 | AL128: 66717.75218 | AM128: 66717.75218 | AN128: 66717.75218 | AO128: 66717.75218 | AP128: 66717.75218 | AQ128: 66717.75218 | AR128: 66717.75218 | AS128: 66717.75218 | AT128: 0 | AU128: 0 | AV128: 0 | AW128: 0 | AX128: 0 | AY128: 0 | AZ128: 0 | BA128: 0 | BB128: 0 | BC128: 0 | BD128: 0 | BE128: 0 | BF128: 0 | BG128: 0 | BH128: 0 | BI128: 0 | BJ128: 0 | BK128: 0 | BL128: 0 | BM128: 0 | BN128: 0 | BO128: 0 | BP128: 0 | BQ128: 0 | BR128: 0 | BS128: 0
E129: Cost per kg | G129: =L4&"/kg" -> AUD/kg | K129: =MAX(N129:BS129) -> 5.835280803 | N129: =IF(N128,N126/N128) -> FALSE | O129: =IF(O128,O126/O128) -> FALSE | P129: FALSE | Q129: FALSE | R129: FALSE | S129: FALSE | T129: FALSE | U129: FALSE | V129: FALSE | W129: FALSE | X129: FALSE | Y129: FALSE | Z129: 5.835280803 | AA129: 5.835280803 | AB129: 5.835280803 | AC129: 5.835280803 | AD129: 5.835280803 | AE129: 5.835280803 | AF129: 5.835280803 | AG129: 5.835280803 | AH129: 5.835280803 | AI129: 5.835280803 | AJ129: 5.835280803 | AK129: 5.835280803 | AL129: 5.835280803 | AM129: 5.835280803 | AN129: 5.835280803 | AO129: 5.835280803 | AP129: 5.835280803 | AQ129: 5.835280803 | AR129: 5.835280803 | AS129: 5.835280803 | AT129: FALSE | AU129: FALSE | AV129: FALSE | AW129: FALSE | AX129: FALSE | AY129: FALSE | AZ129: FALSE | BA129: FALSE | BB129: FALSE | BC129: FALSE | BD129: FALSE | BE129: FALSE | BF129: FALSE | BG129: FALSE | BH129: FALSE | BI129: FALSE | BJ129: FALSE | BK129: FALSE | BL129: FALSE | BM129: FALSE | BN129: FALSE | BO129: FALSE | BP129: FALSE | BQ129: FALSE | BR129: FALSE | BS129: FALSE
B131: Dispensor + Chiller +heat exchange +associated pipework
C132: Capacity
D133: Fillling Rate per Nozzel in kg/Minute | G133: kg/Minute | H133: =Inputs!F141 -> 2.941176471 | K133: =MAX(Z133:BS133) -> 2.941176471 | N133: =$H$133*N8 -> 0 | O133: 0 | P133: 0 | Q133: 0 | R133: 0 | S133: 0 | T133: 0 | U133: 0 | V133: 0 | W133: 0 | X133: 0 | Y133: 0 | Z133: 2.941176471 | AA133: 2.941176471 | AB133: 2.941176471 | AC133: 2.941176471 | AD133: 2.941176471 | AE133: 2.941176471 | AF133: 2.941176471 | AG133: 2.941176471 | AH133: 2.941176471 | AI133: 2.941176471 | AJ133: 2.941176471 | AK133: 2.941176471 | AL133: 2.941176471 | AM133: 2.941176471 | AN133: 2.941176471 | AO133: 2.941176471 | AP133: 2.941176471 | AQ133: 2.941176471 | AR133: 2.941176471 | AS133: 2.941176471 | AT133: =$H$133*AT8 -> 0 | AU133: 0 | AV133: 0 | AW133: 0 | AX133: 0 | AY133: 0 | AZ133: 0 | BA133: 0 | BB133: 0 | BC133: 0 | BD133: 0 | BE133: 0 | BF133: 0 | BG133: 0 | BH133: 0 | BI133: 0 | BJ133: 0 | BK133: 0 | BL133: 0 | BM133: 0 | BN133: 0 | BO133: 0 | BP133: 0 | BQ133: 0 | BR133: 0 | BS133: 0
D135: Production for All Trucks | G135: kg/Year | K135: =MAX(N135:BS135) -> 66717.75218 | N135: =N46 -> 0 | O135: 0 | P135: 0 | Q135: 0 | R135: 0 | S135: 0 | T135: 0 | U135: 0 | V135: 0 | W135: 0 | X135: 0 | Y135: 0 | Z135: 66717.75218 | AA135: 66717.75218 | AB135: 66717.75218 | AC135: 66717.75218 | AD135: 66717.75218 | AE135: 66717.75218 | AF135: 66717.75218 | AG135: 66717.75218 | AH135: 66717.75218 | AI135: 66717.75218 | AJ135: 66717.75218 | AK135: 66717.75218 | AL135: 66717.75218 | AM135: 66717.75218 | AN135: 66717.75218 | AO135: 66717.75218 | AP135: 66717.75218 | AQ135: 66717.75218 | AR135: 66717.75218 | AS135: 66717.75218 | AT135: =AT46 -> 66717.75218 | AU135: 66717.75218 | AV135: 66717.75218 | AW135: 66717.75218 | AX135: 66717.75218 | AY135: 66717.75218 | AZ135: 66717.75218 | BA135: 66717.75218 | BB135: 66717.75218 | BC135: 66717.75218 | BD135: 66717.75218 | BE135: 66717.75218 | BF135: 66717.75218 | BG135: 66717.75218 | BH135: 66717.75218 | BI135: 66717.75218 | BJ135: 66717.75218 | BK135: 66717.75218 | BL135: 66717.75218 | BM135: 66717.75218 | BN135: 66717.75218 | BO135: 66717.75218 | BP135: 66717.75218 | BQ135: 66717.75218 | BR135: 66717.75218 | BS135: 66717.75218
D136: Total Trucks | G136: Number | K136: =MAX(N136:BS136) -> 31 | N136: =N29 -> 0 | O136: 0 | P136: 0 | Q136: 0 | R136: 0 | S136: 0 | T136: 0 | U136: 0 | V136: 0 | W136: 0 | X136: 0 | Y136: 0 | Z136: 31 | AA136: 31 | AB136: 31 | AC136: 31 | AD136: 31 | AE136: 31 | AF136: 31 | AG136: 31 | AH136: 31 | AI136: 31 | AJ136: 31 | AK136: 31 | AL136: 31 | AM136: 31 | AN136: 31 | AO136: 31 | AP136: 31 | AQ136: 31 | AR136: 31 | AS136: 31 | AT136: =AT29 -> 31 | AU136: 31 | AV136: 31 | AW136: 31 | AX136: 31 | AY136: 31 | AZ136: 31 | BA136: 31 | BB136: 31 | BC136: 31 | BD136: 31 | BE136: 31 | BF136: 31 | BG136: 31 | BH136: 31 | BI136: 31 | BJ136: 31 | BK136: 31 | BL136: 31 | BM136: 31 | BN136: 31 | BO136: 31 | BP136: 31 | BQ136: 31 | BR136: 31 | BS136: 31
D137: kg Use per Truck | G137: kg/Year/truck | K137: =MAX(N137:BS137) -> 2152.185554 | N137: =IF(N136,N135/N136) -> FALSE | O137: =IF(O136,O135/O136) -> FALSE | P137: FALSE | Q137: FALSE | R137: FALSE | S137: FALSE | T137: FALSE | U137: FALSE | V137: FALSE | W137: FALSE | X137: FALSE | Y137: FALSE | Z137: 2152.185554 | AA137: 2152.185554 | AB137: 2152.185554 | AC137: 2152.185554 | AD137: 2152.185554 | AE137: 2152.185554 | AF137: 2152.185554 | AG137: 2152.185554 | AH137: 2152.185554 | AI137: 2152.185554 | AJ137: 2152.185554 | AK137: 2152.185554 | AL137: 2152.185554 | AM137: 2152.185554 | AN137: 2152.185554 | AO137: 2152.185554 | AP137: 2152.185554 | AQ137: 2152.185554 | AR137: 2152.185554 | AS137: 2152.185554 | AT137: 2152.185554 | AU137: 2152.185554 | AV137: 2152.185554 | AW137: 2152.185554 | AX137: 2152.185554 | AY137: 2152.185554 | AZ137: 2152.185554 | BA137: 2152.185554 | BB137: 2152.185554 | BC137: 2152.185554 | BD137: 2152.185554 | BE137: 2152.185554 | BF137: 2152.185554 | BG137: 2152.185554 | BH137: 2152.185554 | BI137: 2152.185554 | BJ137: 2152.185554 | BK137: 2152.185554 | BL137: 2152.185554 | BM137: 2152.185554 | BN137: 2152.185554 | BO137: 2152.185554 | BP137: 2152.185554 | BQ137: 2152.185554 | BR137: 2152.185554 | BS137: 2152.185554
D138: Required kg per Day per Truck | G138: kg/Truck/Day | K138: =MAX(Z138:BS138) -> 5.896398778 | N138: =N137/365 -> 0 | O138: =O137/365 -> 0 | P138: 0 | Q138: 0 | R138: 0 | S138: 0 | T138: 0 | U138: 0 | V138: 0 | W138: 0 | X138: 0 | Y138: 0 | Z138: 5.896398778 | AA138: 5.896398778 | AB138: 5.896398778 | AC138: 5.896398778 | AD138: 5.896398778 | AE138: 5.896398778 | AF138: 5.896398778 | AG138: 5.896398778 | AH138: 5.896398778 | AI138: 5.896398778 | AJ138: 5.896398778 | AK138: 5.896398778 | AL138: 5.896398778 | AM138: 5.896398778 | AN138: 5.896398778 | AO138: 5.896398778 | AP138: 5.896398778 | AQ138: 5.896398778 | AR138: 5.896398778 | AS138: 5.896398778 | AT138: 5.896398778 | AU138: 5.896398778 | AV138: 5.896398778 | AW138: 5.896398778 | AX138: 5.896398778 | AY138: 5.896398778 | AZ138: 5.896398778 | BA138: 5.896398778 | BB138: 5.896398778 | BC138: 5.896398778 | BD138: 5.896398778 | BE138: 5.896398778 | BF138: 5.896398778 | BG138: 5.896398778 | BH138: 5.896398778 | BI138: 5.896398778 | BJ138: 5.896398778 | BK138: 5.896398778 | BL138: 5.896398778 | BM138: 5.896398778 | BN138: 5.896398778 | BO138: 5.896398778 | BP138: 5.896398778 | BQ138: 5.896398778 | BR138: 5.896398778 | BS138: 5.896398778
D140: Minutes of Filling without Manovering per Truck | G140: Minutes/Fill | K140: =MAX(Z140:BS140) -> 2.004775585 | N140: =IF(N133,N138/N133) -> FALSE | O140: =IF(O133,O138/O133) -> FALSE | P140: FALSE | Q140: FALSE | R140: FALSE | S140: FALSE | T140: FALSE | U140: FALSE | V140: FALSE | W140: FALSE | X140: FALSE | Y140: FALSE | Z140: 2.004775585 | AA140: 2.004775585 | AB140: 2.004775585 | AC140: 2.004775585 | AD140: 2.004775585 | AE140: 2.004775585 | AF140: 2.004775585 | AG140: 2.004775585 | AH140: 2.004775585 | AI140: 2.004775585 | AJ140: 2.004775585 | AK140: 2.004775585 | AL140: 2.004775585 | AM140: 2.004775585 | AN140: 2.004775585 | AO140: 2.004775585 | AP140: 2.004775585 | AQ140: 2.004775585 | AR140: 2.004775585 | AS140: 2.004775585 | AT140: FALSE | AU140: FALSE | AV140: FALSE | AW140: FALSE | AX140: FALSE | AY140: FALSE | AZ140: FALSE | BA140: FALSE | BB140: FALSE | BC140: FALSE | BD140: FALSE | BE140: FALSE | BF140: FALSE | BG140: FALSE | BH140: FALSE | BI140: FALSE | BJ140: FALSE | BK140: FALSE | BL140: FALSE | BM140: FALSE | BN140: FALSE | BO140: FALSE | BP140: FALSE | BQ140: FALSE | BR140: FALSE | BS140: FALSE
D141: Manouvering Time | G141: Minutes/Fill | H141: =Inputs!F146 -> 1 | K141: 1 | N141: =$H$141*N8 -> 0 | O141: 0 | P141: 0 | Q141: 0 | R141: 0 | S141: 0 | T141: 0 | U141: 0 | V141: 0 | W141: 0 | X141: 0 | Y141: 0 | Z141: 1 | AA141: 1 | AB141: 1 | AC141: 1 | AD141: 1 | AE141: 1 | AF141: 1 | AG141: 1 | AH141: 1 | AI141: 1 | AJ141: 1 | AK141: 1 | AL141: 1 | AM141: 1 | AN141: 1 | AO141: 1 | AP141: 1 | AQ141: 1 | AR141: 1 | AS141: 1 | AT141: =$H$141*AT8 -> 0 | AU141: 0 | AV141: 0 | AW141: 0 | AX141: 0 | AY141: 0 | AZ141: 0 | BA141: 0 | BB141: 0 | BC141: 0 | BD141: 0 | BE141: 0 | BF141: 0 | BG141: 0 | BH141: 0 | BI141: 0 | BJ141: 0 | BK141: 0 | BL141: 0 | BM141: 0 | BN141: 0 | BO141: 0 | BP141: 0 | BQ141: 0 | BR141: 0 | BS141: 0
D142: Total Required Time per Truck | G142: Minutes/Day | K142: 3.004775585 | N142: =N140+N141 -> 0 | O142: =O140+O141 -> 0 | P142: 0 | Q142: 0 | R142: 0 | S142: 0 | T142: 0 | U142: 0 | V142: 0 | W142: 0 | X142: 0 | Y142: 0 | Z142: 3.004775585 | AA142: 3.004775585 | AB142: 3.004775585 | AC142: 3.004775585 | AD142: 3.004775585 | AE142: 3.004775585 | AF142: 3.004775585 | AG142: 3.004775585 | AH142: 3.004775585 | AI142: 3.004775585 | AJ142: 3.004775585 | AK142: 3.004775585 | AL142: 3.004775585 | AM142: 3.004775585 | AN142: 3.004775585 | AO142: 3.004775585 | AP142: 3.004775585 | AQ142: 3.004775585 | AR142: 3.004775585 | AS142: 3.004775585 | AT142: 0 | AU142: 0 | AV142: 0 | AW142: 0 | AX142: 0 | AY142: 0 | AZ142: 0 | BA142: 0 | BB142: 0 | BC142: 0 | BD142: 0 | BE142: 0 | BF142: 0 | BG142: 0 | BH142: 0 | BI142: 0 | BJ142: 0 | BK142: 0 | BL142: 0 | BM142: 0 | BN142: 0 | BO142: 0 | BP142: 0 | BQ142: 0 | BR142: 0 | BS142: 0
D143: Total Trucks | G143: Number | K143: =MAX(N143:BS143) -> 31 | N143: =N136 -> 0 | O143: =O136 -> 0 | P143: 0 | Q143: 0 | R143: 0 | S143: 0 | T143: 0 | U143: 0 | V143: 0 | W143: 0 | X143: 0 | Y143: 0 | Z143: 31 | AA143: 31 | AB143: 31 | AC143: 31 | AD143: 31 | AE143: 31 | AF143: 31 | AG143: 31 | AH143: 31 | AI143: 31 | AJ143: 31 | AK143: 31 | AL143: 31 | AM143: 31 | AN143: 31 | AO143: 31 | AP143: 31 | AQ143: 31 | AR143: 31 | AS143: 31 | AT143: 31 | AU143: 31 | AV143: 31 | AW143: 31 | AX143: 31 | AY143: 31 | AZ143: 31 | BA143: 31 | BB143: 31 | BC143: 31 | BD143: 31 | BE143: 31 | BF143: 31 | BG143: 31 | BH143: 31 | BI143: 31 | BJ143: 31 | BK143: 31 | BL143: 31 | BM143: 31 | BN143: 31 | BO143: 31 | BP143: 31 | BQ143: 31 | BR143: 31 | BS143: 31
D144: Total Required Time per Filling Period 1 Dispenser | G144: Minutes | K144: 93.14804312 | N144: =N143*N142 -> 0 | O144: =O143*O142 -> 0 | P144: 0 | Q144: 0 | R144: 0 | S144: 0 | T144: 0 | U144: 0 | V144: 0 | W144: 0 | X144: 0 | Y144: 0 | Z144: 93.14804312 | AA144: 93.14804312 | AB144: 93.14804312 | AC144: 93.14804312 | AD144: 93.14804312 | AE144: 93.14804312 | AF144: 93.14804312 | AG144: 93.14804312 | AH144: 93.14804312 | AI144: 93.14804312 | AJ144: 93.14804312 | AK144: 93.14804312 | AL144: 93.14804312 | AM144: 93.14804312 | AN144: 93.14804312 | AO144: 93.14804312 | AP144: 93.14804312 | AQ144: 93.14804312 | AR144: 93.14804312 | AS144: 93.14804312 | AT144: 0 | AU144: 0 | AV144: 0 | AW144: 0 | AX144: 0 | AY144: 0 | AZ144: 0 | BA144: 0 | BB144: 0 | BC144: 0 | BD144: 0 | BE144: 0 | BF144: 0 | BG144: 0 | BH144: 0 | BI144: 0 | BJ144: 0 | BK144: 0 | BL144: 0 | BM144: 0 | BN144: 0 | BO144: 0 | BP144: 0 | BQ144: 0 | BR144: 0 | BS144: 0
D145: Target Time for Filling | G145: Minutes | H145: =Inputs!F147 -> 30 | N145: =$H$145 -> 30 | O145: =$H$145 -> 30 | P145: 30 | Q145: 30 | R145: 30 | S145: 30 | T145: 30 | U145: 30 | V145: 30 | W145: 30 | X145: 30 | Y145: 30 | Z145: 30 | AA145: 30 | AB145: 30 | AC145: 30 | AD145: 30 | AE145: 30 | AF145: 30 | AG145: 30 | AH145: 30 | AI145: 30 | AJ145: 30 | AK145: 30 | AL145: 30 | AM145: 30 | AN145: 30 | AO145: 30 | AP145: 30 | AQ145: 30 | AR145: 30 | AS145: 30 | AT145: 30 | AU145: 30 | AV145: 30 | AW145: 30 | AX145: 30 | AY145: 30 | AZ145: 30 | BA145: 30 | BB145: 30 | BC145: 30 | BD145: 30 | BE145: 30 | BF145: 30 | BG145: 30 | BH145: 30 | BI145: 30 | BJ145: 30 | BK145: 30 | BL145: 30 | BM145: 30 | BN145: 30 | BO145: 30 | BP145: 30 | BQ145: 30 | BR145: 30 | BS145: 30
D146: Number of Dispensers without Round | G146: Number | K146: =MAX(N146:BS146) -> 3.104934771 | N146: =N144/N145 -> 0 | O146: =O144/O145 -> 0 | P146: 0 | Q146: 0 | R146: 0 | S146: 0 | T146: 0 | U146: 0 | V146: 0 | W146: 0 | X146: 0 | Y146: 0 | Z146: 3.104934771 | AA146: 3.104934771 | AB146: 3.104934771 | AC146: 3.104934771 | AD146: 3.104934771 | AE146: 3.104934771 | AF146: 3.104934771 | AG146: 3.104934771 | AH146: 3.104934771 | AI146: 3.104934771 | AJ146: 3.104934771 | AK146: 3.104934771 | AL146: 3.104934771 | AM146: 3.104934771 | AN146: 3.104934771 | AO146: 3.104934771 | AP146: 3.104934771 | AQ146: 3.104934771 | AR146: 3.104934771 | AS146: 3.104934771 | AT146: 0 | AU146: 0 | AV146: 0 | AW146: 0 | AX146: 0 | AY146: 0 | AZ146: 0 | BA146: 0 | BB146: 0 | BC146: 0 | BD146: 0 | BE146: 0 | BF146: 0 | BG146: 0 | BH146: 0 | BI146: 0 | BJ146: 0 | BK146: 0 | BL146: 0 | BM146: 0 | BN146: 0 | BO146: 0 | BP146: 0 | BQ146: 0 | BR146: 0 | BS146: 0
D147: Rounded Number of Dispensers | G147: Number | K147: =MAX(N147:BS147) -> 4 | N147: =ROUNDUP(N146,0) -> 0 | O147: =ROUNDUP(O146,0) -> 0 | P147: 0 | Q147: 0 | R147: 0 | S147: 0 | T147: 0 | U147: 0 | V147: 0 | W147: 0 | X147: 0 | Y147: 0 | Z147: 4 | AA147: 4 | AB147: 4 | AC147: 4 | AD147: 4 | AE147: 4 | AF147: 4 | AG147: 4 | AH147: 4 | AI147: 4 | AJ147: 4 | AK147: 4 | AL147: 4 | AM147: 4 | AN147: 4 | AO147: 4 | AP147: 4 | AQ147: 4 | AR147: 4 | AS147: 4 | AT147: 0 | AU147: 0 | AV147: 0 | AW147: 0 | AX147: 0 | AY147: 0 | AZ147: 0 | BA147: 0 | BB147: 0 | BC147: 0 | BD147: 0 | BE147: 0 | BF147: 0 | BG147: 0 | BH147: 0 | BI147: 0 | BJ147: 0 | BK147: 0 | BL147: 0 | BM147: 0 | BN147: 0 | BO147: 0 | BP147: 0 | BQ147: 0 | BR147: 0 | BS147: 0
D149: Exchange Rate | G149: =$L$4&"/USD" -> AUD/USD | H149: =1/Inputs!$F$23 -> 1.408450704
D150: Total Capital Cost of Single Dispensor | G150: =L4 -> AUD | H150: =Inputs!F144*H149 -> 340111.0891 | J150: =Inputs!F137 -> TRUE | K150: =SUM(N150:BS150) -> 340111.0891 | N150: =$H$150*N7*$J$150 -> 0 | O150: 0 | P150: 0 | Q150: 0 | R150: 0 | S150: 0 | T150: 0 | U150: 0 | V150: 0 | W150: 0 | X150: 0 | Y150: 0 | Z150: 340111.0891 | AA150: 0 | AB150: 0 | AC150: 0 | AD150: 0 | AE150: 0 | AF150: 0 | AG150: 0 | AH150: 0 | AI150: 0 | AJ150: 0 | AK150: 0 | AL150: 0 | AM150: 0 | AN150: 0 | AO150: 0 | AP150: 0 | AQ150: 0 | AR150: 0 | AS150: 0 | AT150: =$H$150*AT7*$J$150 -> 0 | AU150: 0 | AV150: 0 | AW150: 0 | AX150: 0 | AY150: 0 | AZ150: 0 | BA150: 0 | BB150: 0 | BC150: 0 | BD150: 0 | BE150: 0 | BF150: 0 | BG150: 0 | BH150: 0 | BI150: 0 | BJ150: 0 | BK150: 0 | BL150: 0 | BM150: 0 | BN150: 0 | BO150: 0 | BP150: 0 | BQ150: 0 | BR150: 0 | BS150: 0
D151: Total Capital Cost of All Dispensors | G151: =L4 -> AUD | K151: =SUM(N151:BS151) -> 1360444.356 | N151: =N150*N147 -> 0 | O151: =O150*O147 -> 0 | P151: 0 | Q151: 0 | R151: 0 | S151: 0 | T151: 0 | U151: 0 | V151: 0 | W151: 0 | X151: 0 | Y151: 0 | Z151: 1360444.356 | AA151: 0 | AB151: 0 | AC151: 0 | AD151: 0 | AE151: 0 | AF151: 0 | AG151: 0 | AH151: 0 | AI151: 0 | AJ151: 0 | AK151: 0 | AL151: 0 | AM151: 0 | AN151: 0 | AO151: 0 | AP151: 0 | AQ151: 0 | AR151: 0 | AS151: 0 | AT151: 0 | AU151: 0 | AV151: 0 | AW151: 0 | AX151: 0 | AY151: 0 | AZ151: 0 | BA151: 0 | BB151: 0 | BC151: 0 | BD151: 0 | BE151: 0 | BF151: 0 | BG151: 0 | BH151: 0 | BI151: 0 | BJ151: 0 | BK151: 0 | BL151: 0 | BM151: 0 | BN151: 0 | BO151: 0 | BP151: 0 | BQ151: 0 | BR151: 0 | BS151: 0
D153: Operating Cost of Dispensor | G153: =L4 -> AUD | H153: =Inputs!F132 -> 0.1749626849 | K153: =SUM(N153:BS153) -> 4760539.943 | N153: =$K$151*$H$153*N8 -> 0 | O153: 0 | P153: 0 | Q153: 0 | R153: 0 | S153: 0 | T153: 0 | U153: 0 | V153: 0 | W153: 0 | X153: 0 | Y153: 0 | Z153: 238026.9972 | AA153: 238026.9972 | AB153: 238026.9972 | AC153: 238026.9972 | AD153: 238026.9972 | AE153: 238026.9972 | AF153: 238026.9972 | AG153: 238026.9972 | AH153: 238026.9972 | AI153: 238026.9972 | AJ153: 238026.9972 | AK153: 238026.9972 | AL153: 238026.9972 | AM153: 238026.9972 | AN153: 238026.9972 | AO153: 238026.9972 | AP153: 238026.9972 | AQ153: 238026.9972 | AR153: 238026.9972 | AS153: 238026.9972 | AT153: =$K$151*$H$153*AT8 -> 0 | AU153: 0 | AV153: 0 | AW153: 0 | AX153: 0 | AY153: 0 | AZ153: 0 | BA153: 0 | BB153: 0 | BC153: 0 | BD153: 0 | BE153: 0 | BF153: 0 | BG153: 0 | BH153: 0 | BI153: 0 | BJ153: 0 | BK153: 0 | BL153: 0 | BM153: 0 | BN153: 0 | BO153: 0 | BP153: 0 | BQ153: 0 | BR153: 0 | BS153: 0
D155: Total Production | G155: kg/year | K155: =MAX(N155:BS155) -> 66717.75218 | N155: =N78 -> 0 | O155: =O78 -> 0 | P155: 0 | Q155: 0 | R155: 0 | S155: 0 | T155: 0 | U155: 0 | V155: 0 | W155: 0 | X155: 0 | Y155: 0 | Z155: 66717.75218 | AA155: 66717.75218 | AB155: 66717.75218 | AC155: 66717.75218 | AD155: 66717.75218 | AE155: 66717.75218 | AF155: 66717.75218 | AG155: 66717.75218 | AH155: 66717.75218 | AI155: 66717.75218 | AJ155: 66717.75218 | AK155: 66717.75218 | AL155: 66717.75218 | AM155: 66717.75218 | AN155: 66717.75218 | AO155: 66717.75218 | AP155: 66717.75218 | AQ155: 66717.75218 | AR155: 66717.75218 | AS155: 66717.75218 | AT155: 0 | AU155: 0 | AV155: 0 | AW155: 0 | AX155: 0 | AY155: 0 | AZ155: 0 | BA155: 0 | BB155: 0 | BC155: 0 | BD155: 0 | BE155: 0 | BF155: 0 | BG155: 0 | BH155: 0 | BI155: 0 | BJ155: 0 | BK155: 0 | BL155: 0 | BM155: 0 | BN155: 0 | BO155: 0 | BP155: 0 | BQ155: 0 | BR155: 0 | BS155: 0
D156: Cost/kg | G156: =L4&"/kg" -> AUD/kg | K156: =MAX(N156:BS156) -> 3.567671113 | N156: =IF(N155,N153/N155) -> FALSE | O156: =IF(O155,O153/O155) -> FALSE | P156: FALSE | Q156: FALSE | R156: FALSE | S156: FALSE | T156: FALSE | U156: FALSE | V156: FALSE | W156: FALSE | X156: FALSE | Y156: FALSE | Z156: 3.567671113 | AA156: 3.567671113 | AB156: 3.567671113 | AC156: 3.567671113 | AD156: 3.567671113 | AE156: 3.567671113 | AF156: 3.567671113 | AG156: 3.567671113 | AH156: 3.567671113 | AI156: 3.567671113 | AJ156: 3.567671113 | AK156: 3.567671113 | AL156: 3.567671113 | AM156: 3.567671113 | AN156: 3.567671113 | AO156: 3.567671113 | AP156: 3.567671113 | AQ156: 3.567671113 | AR156: 3.567671113 | AS156: 3.567671113 | AT156: FALSE | AU156: FALSE | AV156: FALSE | AW156: FALSE | AX156: FALSE | AY156: FALSE | AZ156: FALSE | BA156: FALSE | BB156: FALSE | BC156: FALSE | BD156: FALSE | BE156: FALSE | BF156: FALSE | BG156: FALSE | BH156: FALSE | BI156: FALSE | BJ156: FALSE | BK156: FALSE | BL156: FALSE | BM156: FALSE | BN156: FALSE | BO156: FALSE | BP156: FALSE | BQ156: FALSE | BR156: FALSE | BS156: FALSE
B158: Summary of Cash Flow and Required Support
C160: Total Truck Use
D161: Total km Travelled | G161: km/year | K161: =MAX(N161:BS161) -> 387500 | N161: =N40 -> 0 | O161: =O40 -> 0 | P161: 0 | Q161: 0 | R161: 0 | S161: 0 | T161: 0 | U161: 0 | V161: 0 | W161: 0 | X161: 0 | Y161: 0 | Z161: 387500 | AA161: 387500 | AB161: 387500 | AC161: 387500 | AD161: 387500 | AE161: 387500 | AF161: 387500 | AG161: 387500 | AH161: 387500 | AI161: 387500 | AJ161: 387500 | AK161: 387500 | AL161: 387500 | AM161: 387500 | AN161: 387500 | AO161: 387500 | AP161: 387500 | AQ161: 387500 | AR161: 387500 | AS161: 387500 | AT161: 387500 | AU161: 387500 | AV161: 387500 | AW161: 387500 | AX161: 387500 | AY161: 387500 | AZ161: 387500 | BA161: 387500 | BB161: 387500 | BC161: 387500 | BD161: 387500 | BE161: 387500 | BF161: 387500 | BG161: 387500 | BH161: 387500 | BI161: 387500 | BJ161: 387500 | BK161: 387500 | BL161: 387500 | BM161: 387500 | BN161: 387500 | BO161: 387500 | BP161: 387500 | BQ161: 387500 | BR161: 387500 | BS161: 387500
D162: Effiency | G162: Litre/km | K162: =MAX(N162:BS162) -> 1.0235 | N162: =N42 -> 1.0235 | O162: =O42 -> 1.0235 | P162: 1.0235 | Q162: 1.0235 | R162: 1.0235 | S162: 1.0235 | T162: 1.0235 | U162: 1.0235 | V162: 1.0235 | W162: 1.0235 | X162: 1.0235 | Y162: 1.0235 | Z162: 1.0235 | AA162: 1.0235 | AB162: 1.0235 | AC162: 1.0235 | AD162: 1.0235 | AE162: 1.0235 | AF162: 1.0235 | AG162: 1.0235 | AH162: 1.0235 | AI162: 1.0235 | AJ162: 1.0235 | AK162: 1.0235 | AL162: 1.0235 | AM162: 1.0235 | AN162: 1.0235 | AO162: 1.0235 | AP162: 1.0235 | AQ162: 1.0235 | AR162: 1.0235 | AS162: 1.0235 | AT162: 1.0235 | AU162: 1.0235 | AV162: 1.0235 | AW162: 1.0235 | AX162: 1.0235 | AY162: 1.0235 | AZ162: 1.0235 | BA162: 1.0235 | BB162: 1.0235 | BC162: 1.0235 | BD162: 1.0235 | BE162: 1.0235 | BF162: 1.0235 | BG162: 1.0235 | BH162: 1.0235 | BI162: 1.0235 | BJ162: 1.0235 | BK162: 1.0235 | BL162: 1.0235 | BM162: 1.0235 | BN162: 1.0235 | BO162: 1.0235 | BP162: 1.0235 | BQ162: 1.0235 | BR162: 1.0235 | BS162: 1.0235
D163: Diesel Use | G163: Litre/year | K163: =MAX(N163:BS163) -> 396606.25 | N163: =N161*N162 -> 0 | O163: =O161*O162 -> 0 | P163: 0 | Q163: 0 | R163: 0 | S163: 0 | T163: 0 | U163: 0 | V163: 0 | W163: 0 | X163: 0 | Y163: 0 | Z163: 396606.25 | AA163: 396606.25 | AB163: 396606.25 | AC163: 396606.25 | AD163: 396606.25 | AE163: 396606.25 | AF163: 396606.25 | AG163: 396606.25 | AH163: 396606.25 | AI163: 396606.25 | AJ163: 396606.25 | AK163: 396606.25 | AL163: 396606.25 | AM163: 396606.25 | AN163: 396606.25 | AO163: 396606.25 | AP163: 396606.25 | AQ163: 396606.25 | AR163: 396606.25 | AS163: 396606.25 | AT163: 396606.25 | AU163: 396606.25 | AV163: 396606.25 | AW163: 396606.25 | AX163: 396606.25 | AY163: 396606.25 | AZ163: 396606.25 | BA163: 396606.25 | BB163: 396606.25 | BC163: 396606.25 | BD163: 396606.25 | BE163: 396606.25 | BF163: 396606.25 | BG163: 396606.25 | BH163: 396606.25 | BI163: 396606.25 | BJ163: 396606.25 | BK163: 396606.25 | BL163: 396606.25 | BM163: 396606.25 | BN163: 396606.25 | BO163: 396606.25 | BP163: 396606.25 | BQ163: 396606.25 | BR163: 396606.25 | BS163: 396606.25
D164: Diesel Price | G164: =L4&"/Litre" -> AUD/Litre | H164: =Inputs!F64*J164 -> 1.323943662 | J164: =1/Inputs!$F$23 -> 1.408450704 | N164: =$H$164 -> 1.323943662 | O164: =$H$164 -> 1.323943662 | P164: 1.323943662 | Q164: 1.323943662 | R164: 1.323943662 | S164: 1.323943662 | T164: 1.323943662 | U164: 1.323943662 | V164: 1.323943662 | W164: 1.323943662 | X164: 1.323943662 | Y164: 1.323943662 | Z164: 1.323943662 | AA164: 1.323943662 | AB164: 1.323943662 | AC164: 1.323943662 | AD164: 1.323943662 | AE164: 1.323943662 | AF164: 1.323943662 | AG164: 1.323943662 | AH164: 1.323943662 | AI164: 1.323943662 | AJ164: 1.323943662 | AK164: 1.323943662 | AL164: 1.323943662 | AM164: 1.323943662 | AN164: 1.323943662 | AO164: 1.323943662 | AP164: 1.323943662 | AQ164: 1.323943662 | AR164: 1.323943662 | AS164: 1.323943662 | AT164: 1.323943662 | AU164: 1.323943662 | AV164: 1.323943662 | AW164: 1.323943662 | AX164: 1.323943662 | AY164: 1.323943662 | AZ164: 1.323943662 | BA164: 1.323943662 | BB164: 1.323943662 | BC164: 1.323943662 | BD164: 1.323943662 | BE164: 1.323943662 | BF164: 1.323943662 | BG164: 1.323943662 | BH164: 1.323943662 | BI164: 1.323943662 | BJ164: 1.323943662 | BK164: 1.323943662 | BL164: 1.323943662 | BM164: 1.323943662 | BN164: 1.323943662 | BO164: 1.323943662 | BP164: 1.323943662 | BQ164: 1.323943662 | BR164: 1.323943662 | BS164: 1.323943662
D165: Total Diesel Cost | G165: =L4 -> AUD | K165: =MAX(N165:BS165) -> 525084.331 | N165: =N163*N164 -> 0 | O165: =O163*O164 -> 0 | P165: 0 | Q165: 0 | R165: 0 | S165: 0 | T165: 0 | U165: 0 | V165: 0 | W165: 0 | X165: 0 | Y165: 0 | Z165: 525084.331 | AA165: 525084.331 | AB165: 525084.331 | AC165: 525084.331 | AD165: 525084.331 | AE165: 525084.331 | AF165: 525084.331 | AG165: 525084.331 | AH165: 525084.331 | AI165: 525084.331 | AJ165: 525084.331 | AK165: 525084.331 | AL165: 525084.331 | AM165: 525084.331 | AN165: 525084.331 | AO165: 525084.331 | AP165: 525084.331 | AQ165: 525084.331 | AR165: 525084.331 | AS165: 525084.331 | AT165: 525084.331 | AU165: 525084.331 | AV165: 525084.331 | AW165: 525084.331 | AX165: 525084.331 | AY165: 525084.331 | AZ165: 525084.331 | BA165: 525084.331 | BB165: 525084.331 | BC165: 525084.331 | BD165: 525084.331 | BE165: 525084.331 | BF165: 525084.331 | BG165: 525084.331 | BH165: 525084.331 | BI165: 525084.331 | BJ165: 525084.331 | BK165: 525084.331 | BL165: 525084.331 | BM165: 525084.331 | BN165: 525084.331 | BO165: 525084.331 | BP165: 525084.331 | BQ165: 525084.331 | BR165: 525084.331 | BS165: 525084.331
C167: Revenues
D168: Unadjusted Annual Demand | G168: kg/Year | K168: =MAX(N168:BS168) -> 66717.75218 | N168: =N46 -> 0 | O168: 0 | P168: 0 | Q168: 0 | R168: 0 | S168: 0 | T168: 0 | U168: 0 | V168: 0 | W168: 0 | X168: 0 | Y168: 0 | Z168: 66717.75218 | AA168: 66717.75218 | AB168: 66717.75218 | AC168: 66717.75218 | AD168: 66717.75218 | AE168: 66717.75218 | AF168: 66717.75218 | AG168: 66717.75218 | AH168: 66717.75218 | AI168: 66717.75218 | AJ168: 66717.75218 | AK168: 66717.75218 | AL168: 66717.75218 | AM168: 66717.75218 | AN168: 66717.75218 | AO168: 66717.75218 | AP168: 66717.75218 | AQ168: 66717.75218 | AR168: 66717.75218 | AS168: 66717.75218 | AT168: =AT46 -> 66717.75218 | AU168: 66717.75218 | AV168: 66717.75218 | AW168: 66717.75218 | AX168: 66717.75218 | AY168: 66717.75218 | AZ168: 66717.75218 | BA168: 66717.75218 | BB168: 66717.75218 | BC168: 66717.75218 | BD168: 66717.75218 | BE168: 66717.75218 | BF168: 66717.75218 | BG168: 66717.75218 | BH168: 66717.75218 | BI168: 66717.75218 | BJ168: 66717.75218 | BK168: 66717.75218 | BL168: 66717.75218 | BM168: 66717.75218 | BN168: 66717.75218 | BO168: 66717.75218 | BP168: 66717.75218 | BQ168: 66717.75218 | BR168: 66717.75218 | BS168: 66717.75218
D169: Equivalent Cost of Diesel | G169: AUD/kg | K169: =MAX(N169:BS169) -> 7.870234141 | N169: =IF(N168,N165/N168) -> FALSE | O169: =IF(O168,O165/O168) -> FALSE | P169: FALSE | Q169: FALSE | R169: FALSE | S169: FALSE | T169: FALSE | U169: FALSE | V169: FALSE | W169: FALSE | X169: FALSE | Y169: FALSE | Z169: 7.870234141 | AA169: 7.870234141 | AB169: 7.870234141 | AC169: 7.870234141 | AD169: 7.870234141 | AE169: 7.870234141 | AF169: 7.870234141 | AG169: 7.870234141 | AH169: 7.870234141 | AI169: 7.870234141 | AJ169: 7.870234141 | AK169: 7.870234141 | AL169: 7.870234141 | AM169: 7.870234141 | AN169: 7.870234141 | AO169: 7.870234141 | AP169: 7.870234141 | AQ169: 7.870234141 | AR169: 7.870234141 | AS169: 7.870234141 | AT169: 7.870234141 | AU169: 7.870234141 | AV169: 7.870234141 | AW169: 7.870234141 | AX169: 7.870234141 | AY169: 7.870234141 | AZ169: 7.870234141 | BA169: 7.870234141 | BB169: 7.870234141 | BC169: 7.870234141 | BD169: 7.870234141 | BE169: 7.870234141 | BF169: 7.870234141 | BG169: 7.870234141 | BH169: 7.870234141 | BI169: 7.870234141 | BJ169: 7.870234141 | BK169: 7.870234141 | BL169: 7.870234141 | BM169: 7.870234141 | BN169: 7.870234141 | BO169: 7.870234141 | BP169: 7.870234141 | BQ169: 7.870234141 | BR169: 7.870234141 | BS169: 7.870234141
D170: Total Revenues | G170: AUD | K170: =MAX(N170:BS170) -> 525084.331 | N170: =N169*N168 -> 0 | O170: =O169*O168 -> 0 | P170: 0 | Q170: 0 | R170: 0 | S170: 0 | T170: 0 | U170: 0 | V170: 0 | W170: 0 | X170: 0 | Y170: 0 | Z170: 525084.331 | AA170: 525084.331 | AB170: 525084.331 | AC170: 525084.331 | AD170: 525084.331 | AE170: 525084.331 | AF170: 525084.331 | AG170: 525084.331 | AH170: 525084.331 | AI170: 525084.331 | AJ170: 525084.331 | AK170: 525084.331 | AL170: 525084.331 | AM170: 525084.331 | AN170: 525084.331 | AO170: 525084.331 | AP170: 525084.331 | AQ170: 525084.331 | AR170: 525084.331 | AS170: 525084.331 | AT170: 525084.331 | AU170: 525084.331 | AV170: 525084.331 | AW170: 525084.331 | AX170: 525084.331 | AY170: 525084.331 | AZ170: 525084.331 | BA170: 525084.331 | BB170: 525084.331 | BC170: 525084.331 | BD170: 525084.331 | BE170: 525084.331 | BF170: 525084.331 | BG170: 525084.331 | BH170: 525084.331 | BI170: 525084.331 | BJ170: 525084.331 | BK170: 525084.331 | BL170: 525084.331 | BM170: 525084.331 | BN170: 525084.331 | BO170: 525084.331 | BP170: 525084.331 | BQ170: 525084.331 | BR170: 525084.331 | BS170: 525084.331
C172: Capital Expenditures
D173: Truck Cost | G173: =$L$4 -> AUD | K173: =SUM(N173:BS173) -> 0 | N173: =N63 -> 0 | O173: 0 | P173: 0 | Q173: 0 | R173: 0 | S173: 0 | T173: 0 | U173: 0 | V173: 0 | W173: 0 | X173: 0 | Y173: 0 | Z173: 0 | AA173: 0 | AB173: 0 | AC173: 0 | AD173: 0 | AE173: 0 | AF173: 0 | AG173: 0 | AH173: 0 | AI173: 0 | AJ173: 0 | AK173: 0 | AL173: 0 | AM173: 0 | AN173: 0 | AO173: 0 | AP173: 0 | AQ173: 0 | AR173: 0 | AS173: 0 | AT173: =AT63 -> 0 | AU173: 0 | AV173: 0 | AW173: 0 | AX173: 0 | AY173: 0 | AZ173: 0 | BA173: 0 | BB173: 0 | BC173: 0 | BD173: 0 | BE173: 0 | BF173: 0 | BG173: 0 | BH173: 0 | BI173: 0 | BJ173: 0 | BK173: 0 | BL173: 0 | BM173: 0 | BN173: 0 | BO173: 0 | BP173: 0 | BQ173: 0 | BR173: 0 | BS173: 0
D174: Electrolyzer Cap Exp | G174: =$L$4 -> AUD | K174: =SUM(N174:BS174) -> 3056200 | N174: =N85 -> 0 | O174: 0 | P174: 0 | Q174: 0 | R174: 0 | S174: 0 | T174: 0 | U174: 0 | V174: 0 | W174: 0 | X174: 0 | Y174: 0 | Z174: 3056200 | AA174: 0 | AB174: 0 | AC174: 0 | AD174: 0 | AE174: 0 | AF174: 0 | AG174: 0 | AH174: 0 | AI174: 0 | AJ174: 0 | AK174: 0 | AL174: 0 | AM174: 0 | AN174: 0 | AO174: 0 | AP174: 0 | AQ174: 0 | AR174: 0 | AS174: 0 | AT174: =AT85 -> 0 | AU174: 0 | AV174: 0 | AW174: 0 | AX174: 0 | AY174: 0 | AZ174: 0 | BA174: 0 | BB174: 0 | BC174: 0 | BD174: 0 | BE174: 0 | BF174: 0 | BG174: 0 | BH174: 0 | BI174: 0 | BJ174: 0 | BK174: 0 | BL174: 0 | BM174: 0 | BN174: 0 | BO174: 0 | BP174: 0 | BQ174: 0 | BR174: 0 | BS174: 0
D175: Storage and Compression Cap Exp | G175: AUD | K175: =SUM(N175:BS175) -> 2225142 | N175: =N120 -> 0 | O175: 0 | P175: 0 | Q175: 0 | R175: 0 | S175: 0 | T175: 0 | U175: 0 | V175: 0 | W175: 0 | X175: 0 | Y175: 0 | Z175: 2225142 | AA175: 0 | AB175: 0 | AC175: 0 | AD175: 0 | AE175: 0 | AF175: 0 | AG175: 0 | AH175: 0 | AI175: 0 | AJ175: 0 | AK175: 0 | AL175: 0 | AM175: 0 | AN175: 0 | AO175: 0 | AP175: 0 | AQ175: 0 | AR175: 0 | AS175: 0 | AT175: =AT120 -> 0 | AU175: 0 | AV175: 0 | AW175: 0 | AX175: 0 | AY175: 0 | AZ175: 0 | BA175: 0 | BB175: 0 | BC175: 0 | BD175: 0 | BE175: 0 | BF175: 0 | BG175: 0 | BH175: 0 | BI175: 0 | BJ175: 0 | BK175: 0 | BL175: 0 | BM175: 0 | BN175: 0 | BO175: 0 | BP175: 0 | BQ175: 0 | BR175: 0 | BS175: 0
D176: Dispenser | G176: AUD | K176: =SUM(N176:BS176) -> 1360444.356 | N176: =N151 -> 0 | O176: =O151 -> 0 | P176: 0 | Q176: 0 | R176: 0 | S176: 0 | T176: 0 | U176: 0 | V176: 0 | W176: 0 | X176: 0 | Y176: 0 | Z176: 1360444.356 | AA176: 0 | AB176: 0 | AC176: 0 | AD176: 0 | AE176: 0 | AF176: 0 | AG176: 0 | AH176: 0 | AI176: 0 | AJ176: 0 | AK176: 0 | AL176: 0 | AM176: 0 | AN176: 0 | AO176: 0 | AP176: 0 | AQ176: 0 | AR176: 0 | AS176: 0 | AT176: 0 | AU176: 0 | AV176: 0 | AW176: 0 | AX176: 0 | AY176: 0 | AZ176: 0 | BA176: 0 | BB176: 0 | BC176: 0 | BD176: 0 | BE176: 0 | BF176: 0 | BG176: 0 | BH176: 0 | BI176: 0 | BJ176: 0 | BK176: 0 | BL176: 0 | BM176: 0 | BN176: 0 | BO176: 0 | BP176: 0 | BQ176: 0 | BR176: 0 | BS176: 0
D177: Total Capital Expenditures | G177: =L4 -> AUD | K177: =SUM(N177:BS177) -> 6641786.356 | N177: =SUM(N173:N176) -> 0 | O177: =SUM(O173:O176) -> 0 | P177: 0 | Q177: 0 | R177: 0 | S177: 0 | T177: 0 | U177: 0 | V177: 0 | W177: 0 | X177: 0 | Y177: 0 | Z177: 6641786.356 | AA177: 0 | AB177: 0 | AC177: 0 | AD177: 0 | AE177: 0 | AF177: 0 | AG177: 0 | AH177: 0 | AI177: 0 | AJ177: 0 | AK177: 0 | AL177: 0 | AM177: 0 | AN177: 0 | AO177: 0 | AP177: 0 | AQ177: 0 | AR177: 0 | AS177: 0 | AT177: 0 | AU177: 0 | AV177: 0 | AW177: 0 | AX177: 0 | AY177: 0 | AZ177: 0 | BA177: 0 | BB177: 0 | BC177: 0 | BD177: 0 | BE177: 0 | BF177: 0 | BG177: 0 | BH177: 0 | BI177: 0 | BJ177: 0 | BK177: 0 | BL177: 0 | BM177: 0 | BN177: 0 | BO177: 0 | BP177: 0 | BQ177: 0 | BR177: 0 | BS177: 0
C179: Operating Expenditures
D180: Electrolyzer | G180: =$L$4 -> AUD | H180: =NOT(Inputs!$F$173) -> TRUE | K180: =SUM(N180:BS180) -> 9852538.189 | N180: =N112*$H$180 -> 0 | O180: =O112*$H$180 -> 0 | P180: 0 | Q180: 0 | R180: 0 | S180: 0 | T180: 0 | U180: 0 | V180: 0 | W180: 0 | X180: 0 | Y180: 0 | Z180: 422204.3742 | AA180: 422204.3742 | AB180: 422204.3742 | AC180: 422204.3742 | AD180: 422204.3742 | AE180: 422204.3742 | AF180: 422204.3742 | AG180: 1830655.078 | AH180: 422204.3742 | AI180: 422204.3742 | AJ180: 422204.3742 | AK180: 422204.3742 | AL180: 422204.3742 | AM180: 422204.3742 | AN180: 422204.3742 | AO180: 422204.3742 | AP180: 422204.3742 | AQ180: 422204.3742 | AR180: 422204.3742 | AS180: 422204.3742 | AT180: 0 | AU180: 0 | AV180: 0 | AW180: 0 | AX180: 0 | AY180: 0 | AZ180: 0 | BA180: 0 | BB180: 0 | BC180: 0 | BD180: 0 | BE180: 0 | BF180: 0 | BG180: 0 | BH180: 0 | BI180: 0 | BJ180: 0 | BK180: 0 | BL180: 0 | BM180: 0 | BN180: 0 | BO180: 0 | BP180: 0 | BQ180: 0 | BR180: 0 | BS180: 0
D181: Storage and Compression | G181: =$L$4 -> AUD | H181: =NOT(Inputs!$F$173) -> TRUE | K181: =SUM(N181:BS181) -> 7786336.37 | N181: =N126*$H$181 -> 0 | O181: =O126*$H$181 -> 0 | P181: 0 | Q181: 0 | R181: 0 | S181: 0 | T181: 0 | U181: 0 | V181: 0 | W181: 0 | X181: 0 | Y181: 0 | Z181: 389316.8185 | AA181: 389316.8185 | AB181: 389316.8185 | AC181: 389316.8185 | AD181: 389316.8185 | AE181: 389316.8185 | AF181: 389316.8185 | AG181: 389316.8185 | AH181: 389316.8185 | AI181: 389316.8185 | AJ181: 389316.8185 | AK181: 389316.8185 | AL181: 389316.8185 | AM181: 389316.8185 | AN181: 389316.8185 | AO181: 389316.8185 | AP181: 389316.8185 | AQ181: 389316.8185 | AR181: 389316.8185 | AS181: 389316.8185 | AT181: 0 | AU181: 0 | AV181: 0 | AW181: 0 | AX181: 0 | AY181: 0 | AZ181: 0 | BA181: 0 | BB181: 0 | BC181: 0 | BD181: 0 | BE181: 0 | BF181: 0 | BG181: 0 | BH181: 0 | BI181: 0 | BJ181: 0 | BK181: 0 | BL181: 0 | BM181: 0 | BN181: 0 | BO181: 0 | BP181: 0 | BQ181: 0 | BR181: 0 | BS181: 0
D182: Dispenser | G182: AUD | H182: =NOT(Inputs!$F$173) -> TRUE | K182: =SUM(N182:BS182) -> 4760539.943 | N182: =N153*$H$182 -> 0 | O182: =O153*$H$182 -> 0 | P182: 0 | Q182: 0 | R182: 0 | S182: 0 | T182: 0 | U182: 0 | V182: 0 | W182: 0 | X182: 0 | Y182: 0 | Z182: 238026.9972 | AA182: 238026.9972 | AB182: 238026.9972 | AC182: 238026.9972 | AD182: 238026.9972 | AE182: 238026.9972 | AF182: 238026.9972 | AG182: 238026.9972 | AH182: 238026.9972 | AI182: 238026.9972 | AJ182: 238026.9972 | AK182: 238026.9972 | AL182: 238026.9972 | AM182: 238026.9972 | AN182: 238026.9972 | AO182: 238026.9972 | AP182: 238026.9972 | AQ182: 238026.9972 | AR182: 238026.9972 | AS182: 238026.9972 | AT182: 0 | AU182: 0 | AV182: 0 | AW182: 0 | AX182: 0 | AY182: 0 | AZ182: 0 | BA182: 0 | BB182: 0 | BC182: 0 | BD182: 0 | BE182: 0 | BF182: 0 | BG182: 0 | BH182: 0 | BI182: 0 | BJ182: 0 | BK182: 0 | BL182: 0 | BM182: 0 | BN182: 0 | BO182: 0 | BP182: 0 | BQ182: 0 | BR182: 0 | BS182: 0
D183: Total Operating Expenses | G183: =G182 -> AUD | K183: =SUM(N183:BS183) -> 22399414.5 | N183: =SUM(N180:N182) -> 0 | O183: =SUM(O180:O182) -> 0 | P183: 0 | Q183: 0 | R183: 0 | S183: 0 | T183: 0 | U183: 0 | V183: 0 | W183: 0 | X183: 0 | Y183: 0 | Z183: 1049548.19 | AA183: 1049548.19 | AB183: 1049548.19 | AC183: 1049548.19 | AD183: 1049548.19 | AE183: 1049548.19 | AF183: 1049548.19 | AG183: 2457998.894 | AH183: 1049548.19 | AI183: 1049548.19 | AJ183: 1049548.19 | AK183: 1049548.19 | AL183: 1049548.19 | AM183: 1049548.19 | AN183: 1049548.19 | AO183: 1049548.19 | AP183: 1049548.19 | AQ183: 1049548.19 | AR183: 1049548.19 | AS183: 1049548.19 | AT183: 0 | AU183: 0 | AV183: 0 | AW183: 0 | AX183: 0 | AY183: 0 | AZ183: 0 | BA183: 0 | BB183: 0 | BC183: 0 | BD183: 0 | BE183: 0 | BF183: 0 | BG183: 0 | BH183: 0 | BI183: 0 | BJ183: 0 | BK183: 0 | BL183: 0 | BM183: 0 | BN183: 0 | BO183: 0 | BP183: 0 | BQ183: 0 | BR183: 0 | BS183: 0
D185: NPV of Cash Flow | H185: =NPV(G188,N185:BS185) -> 21679176.58 | K185: =SUM(N185:BS185) -> 29041200.86 | N185: =IF(N8,N177+N183) -> FALSE | O185: FALSE | P185: FALSE | Q185: FALSE | R185: FALSE | S185: FALSE | T185: FALSE | U185: FALSE | V185: FALSE | W185: FALSE | X185: FALSE | Y185: FALSE | Z185: 7691334.546 | AA185: 1049548.19 | AB185: 1049548.19 | AC185: 1049548.19 | AD185: 1049548.19 | AE185: 1049548.19 | AF185: 1049548.19 | AG185: 2457998.894 | AH185: 1049548.19 | AI185: 1049548.19 | AJ185: 1049548.19 | AK185: 1049548.19 | AL185: 1049548.19 | AM185: 1049548.19 | AN185: 1049548.19 | AO185: 1049548.19 | AP185: 1049548.19 | AQ185: 1049548.19 | AR185: 1049548.19 | AS185: 1049548.19 | AT185: =IF(AT8,AT177+AT183) -> FALSE | AU185: FALSE | AV185: FALSE | AW185: FALSE | AX185: FALSE | AY185: FALSE | AZ185: FALSE | BA185: FALSE | BB185: FALSE | BC185: FALSE | BD185: FALSE | BE185: FALSE | BF185: FALSE | BG185: FALSE | BH185: FALSE | BI185: FALSE | BJ185: FALSE | BK185: FALSE | BL185: FALSE | BM185: FALSE | BN185: FALSE | BO185: FALSE | BP185: FALSE | BQ185: FALSE | BR185: FALSE | BS185: FALSE
D186: Periods | K186: =SUM(N186:BS186) -> 20 | N186: =N8 -> 0 | O186: 0 | P186: 0 | Q186: 0 | R186: 0 | S186: 0 | T186: 0 | U186: 0 | V186: 0 | W186: 0 | X186: 0 | Y186: 0 | Z186: 1 | AA186: 1 | AB186: 1 | AC186: 1 | AD186: 1 | AE186: 1 | AF186: 1 | AG186: 1 | AH186: 1 | AI186: 1 | AJ186: 1 | AK186: 1 | AL186: 1 | AM186: 1 | AN186: 1 | AO186: 1 | AP186: 1 | AQ186: 1 | AR186: 1 | AS186: 1 | AT186: =AT8 -> 0 | AU186: 0 | AV186: 0 | AW186: 0 | AX186: 0 | AY186: 0 | AZ186: 0 | BA186: 0 | BB186: 0 | BC186: 0 | BD186: 0 | BE186: 0 | BF186: 0 | BG186: 0 | BH186: 0 | BI186: 0 | BJ186: 0 | BK186: 0 | BL186: 0 | BM186: 0 | BN186: 0 | BO186: 0 | BP186: 0 | BQ186: 0 | BR186: 0 | BS186: 0
D188: Payment Factor | G188: =Inputs!F171 -> 0.04 | K188: =PMT(G188,K186,-1) -> 0.07358175033 | L188: 0
D189: Annual Payment | K189: =H185*K188 -> 1595191.759
D191: Required Revenues | H191: =K189 -> 1595191.759 | K191: =MAX(N191:BS191) -> 1595191.759 | N191: =$H$191*N8 -> 0 | O191: 0 | P191: 0 | Q191: 0 | R191: 0 | S191: 0 | T191: 0 | U191: 0 | V191: 0 | W191: 0 | X191: 0 | Y191: 0 | Z191: 1595191.759 | AA191: 1595191.759 | AB191: 1595191.759 | AC191: 1595191.759 | AD191: 1595191.759 | AE191: 1595191.759 | AF191: 1595191.759 | AG191: 1595191.759 | AH191: 1595191.759 | AI191: 1595191.759 | AJ191: 1595191.759 | AK191: 1595191.759 | AL191: 1595191.759 | AM191: 1595191.759 | AN191: 1595191.759 | AO191: 1595191.759 | AP191: 1595191.759 | AQ191: 1595191.759 | AR191: 1595191.759 | AS191: 1595191.759 | AT191: =$H$191*AT8 -> 0 | AU191: 0 | AV191: 0 | AW191: 0 | AX191: 0 | AY191: 0 | AZ191: 0 | BA191: 0 | BB191: 0 | BC191: 0 | BD191: 0 | BE191: 0 | BF191: 0 | BG191: 0 | BH191: 0 | BI191: 0 | BJ191: 0 | BK191: 0 | BL191: 0 | BM191: 0 | BN191: 0 | BO191: 0 | BP191: 0 | BQ191: 0 | BR191: 0 | BS191: 0
D192: Net Cash Flow | N192: =IF(N8,N191-N185) -> FALSE | O192: FALSE | P192: FALSE | Q192: FALSE | R192: FALSE | S192: FALSE | T192: FALSE | U192: FALSE | V192: FALSE | W192: FALSE | X192: FALSE | Y192: FALSE | Z192: -6096142.787 | AA192: 545643.5688 | AB192: 545643.5688 | AC192: 545643.5688 | AD192: 545643.5688 | AE192: 545643.5688 | AF192: 545643.5688 | AG192: -862807.1354 | AH192: 545643.5688 | AI192: 545643.5688 | AJ192: 545643.5688 | AK192: 545643.5688 | AL192: 545643.5688 | AM192: 545643.5688 | AN192: 545643.5688 | AO192: 545643.5688 | AP192: 545643.5688 | AQ192: 545643.5688 | AR192: 545643.5688 | AS192: 545643.5688 | AT192: =IF(AT8,AT191-AT185) -> FALSE | AU192: FALSE | AV192: FALSE | AW192: FALSE | AX192: FALSE | AY192: FALSE | AZ192: FALSE | BA192: FALSE | BB192: FALSE | BC192: FALSE | BD192: FALSE | BE192: FALSE | BF192: FALSE | BG192: FALSE | BH192: FALSE | BI192: FALSE | BJ192: FALSE | BK192: FALSE | BL192: FALSE | BM192: FALSE | BN192: FALSE | BO192: FALSE | BP192: FALSE | BQ192: FALSE | BR192: FALSE | BS192: FALSE
D194: NPV of Net Cash Flow Check | H194: =NPV(G188,N192:BS192) -> -9.346807089e-09
D196: Diesel Costs | G196: =L4 -> AUD | K196: =MAX(N196:BS196) -> 525084.331 | N196: =N165 -> 0 | O196: =O165 -> 0 | P196: 0 | Q196: 0 | R196: 0 | S196: 0 | T196: 0 | U196: 0 | V196: 0 | W196: 0 | X196: 0 | Y196: 0 | Z196: 525084.331 | AA196: 525084.331 | AB196: 525084.331 | AC196: 525084.331 | AD196: 525084.331 | AE196: 525084.331 | AF196: 525084.331 | AG196: 525084.331 | AH196: 525084.331 | AI196: 525084.331 | AJ196: 525084.331 | AK196: 525084.331 | AL196: 525084.331 | AM196: 525084.331 | AN196: 525084.331 | AO196: 525084.331 | AP196: 525084.331 | AQ196: 525084.331 | AR196: 525084.331 | AS196: 525084.331 | AT196: 525084.331 | AU196: 525084.331 | AV196: 525084.331 | AW196: 525084.331 | AX196: 525084.331 | AY196: 525084.331 | AZ196: 525084.331 | BA196: 525084.331 | BB196: 525084.331 | BC196: 525084.331 | BD196: 525084.331 | BE196: 525084.331 | BF196: 525084.331 | BG196: 525084.331 | BH196: 525084.331 | BI196: 525084.331 | BJ196: 525084.331 | BK196: 525084.331 | BL196: 525084.331 | BM196: 525084.331 | BN196: 525084.331 | BO196: 525084.331 | BP196: 525084.331 | BQ196: 525084.331 | BR196: 525084.331 | BS196: 525084.331
D197: Percent increase in Revenues | G197: % p.a. | K197: =MAX(N197:BS197) -> 2.037972502 | L197: =K191/K196-1 -> 2.037972502 | N197: =IF(N196,N191/N196-1) -> FALSE | O197: =IF(O196,O191/O196-1) -> FALSE | P197: FALSE | Q197: FALSE | R197: FALSE | S197: FALSE | T197: FALSE | U197: FALSE | V197: FALSE | W197: FALSE | X197: FALSE | Y197: FALSE | Z197: 2.037972502 | AA197: 2.037972502 | AB197: 2.037972502 | AC197: 2.037972502 | AD197: 2.037972502 | AE197: 2.037972502 | AF197: 2.037972502 | AG197: 2.037972502 | AH197: 2.037972502 | AI197: 2.037972502 | AJ197: 2.037972502 | AK197: 2.037972502 | AL197: 2.037972502 | AM197: 2.037972502 | AN197: 2.037972502 | AO197: 2.037972502 | AP197: 2.037972502 | AQ197: 2.037972502 | AR197: 2.037972502 | AS197: 2.037972502 | AT197: -1 | AU197: -1 | AV197: -1 | AW197: -1 | AX197: -1 | AY197: -1 | AZ197: -1 | BA197: -1 | BB197: -1 | BC197: -1 | BD197: -1 | BE197: -1 | BF197: -1 | BG197: -1 | BH197: -1 | BI197: -1 | BJ197: -1 | BK197: -1 | BL197: -1 | BM197: -1 | BN197: -1 | BO197: -1 | BP197: -1 | BQ197: -1 | BR197: -1 | BS197: -1
D198: Total Hydrogen Required | G198: kg | K198: =MAX(N198:BS198) -> 66717.75218 | N198: =N46 -> 0 | O198: =O46 -> 0 | P198: 0 | Q198: 0 | R198: 0 | S198: 0 | T198: 0 | U198: 0 | V198: 0 | W198: 0 | X198: 0 | Y198: 0 | Z198: 66717.75218 | AA198: 66717.75218 | AB198: 66717.75218 | AC198: 66717.75218 | AD198: 66717.75218 | AE198: 66717.75218 | AF198: 66717.75218 | AG198: 66717.75218 | AH198: 66717.75218 | AI198: 66717.75218 | AJ198: 66717.75218 | AK198: 66717.75218 | AL198: 66717.75218 | AM198: 66717.75218 | AN198: 66717.75218 | AO198: 66717.75218 | AP198: 66717.75218 | AQ198: 66717.75218 | AR198: 66717.75218 | AS198: 66717.75218 | AT198: 66717.75218 | AU198: 66717.75218 | AV198: 66717.75218 | AW198: 66717.75218 | AX198: 66717.75218 | AY198: 66717.75218 | AZ198: 66717.75218 | BA198: 66717.75218 | BB198: 66717.75218 | BC198: 66717.75218 | BD198: 66717.75218 | BE198: 66717.75218 | BF198: 66717.75218 | BG198: 66717.75218 | BH198: 66717.75218 | BI198: 66717.75218 | BJ198: 66717.75218 | BK198: 66717.75218 | BL198: 66717.75218 | BM198: 66717.75218 | BN198: 66717.75218 | BO198: 66717.75218 | BP198: 66717.75218 | BQ198: 66717.75218 | BR198: 66717.75218 | BS198: 66717.75218
D199: Cost per kg of Hydrogen | G199: =L4&"/kg" -> AUD/kg | K199: =MAX(N199:BS199) -> 23.9095549 | N199: =IF(N198,N191/N198) -> FALSE | O199: =IF(O198,O191/O198) -> FALSE | P199: FALSE | Q199: FALSE | R199: FALSE | S199: FALSE | T199: FALSE | U199: FALSE | V199: FALSE | W199: FALSE | X199: FALSE | Y199: FALSE | Z199: 23.9095549 | AA199: 23.9095549 | AB199: 23.9095549 | AC199: 23.9095549 | AD199: 23.9095549 | AE199: 23.9095549 | AF199: 23.9095549 | AG199: 23.9095549 | AH199: 23.9095549 | AI199: 23.9095549 | AJ199: 23.9095549 | AK199: 23.9095549 | AL199: 23.9095549 | AM199: 23.9095549 | AN199: 23.9095549 | AO199: 23.9095549 | AP199: 23.9095549 | AQ199: 23.9095549 | AR199: 23.9095549 | AS199: 23.9095549 | AT199: 0 | AU199: 0 | AV199: 0 | AW199: 0 | AX199: 0 | AY199: 0 | AZ199: 0 | BA199: 0 | BB199: 0 | BC199: 0 | BD199: 0 | BE199: 0 | BF199: 0 | BG199: 0 | BH199: 0 | BI199: 0 | BJ199: 0 | BK199: 0 | BL199: 0 | BM199: 0 | BN199: 0 | BO199: 0 | BP199: 0 | BQ199: 0 | BR199: 0 | BS199: 0
D201: Total Diesel Used | G201: Litres | K201: =MAX(N201:BS201) -> 396606.25 | N201: =N163 -> 0 | O201: =O163 -> 0 | P201: 0 | Q201: 0 | R201: 0 | S201: 0 | T201: 0 | U201: 0 | V201: 0 | W201: 0 | X201: 0 | Y201: 0 | Z201: 396606.25 | AA201: 396606.25 | AB201: 396606.25 | AC201: 396606.25 | AD201: 396606.25 | AE201: 396606.25 | AF201: 396606.25 | AG201: 396606.25 | AH201: 396606.25 | AI201: 396606.25 | AJ201: 396606.25 | AK201: 396606.25 | AL201: 396606.25 | AM201: 396606.25 | AN201: 396606.25 | AO201: 396606.25 | AP201: 396606.25 | AQ201: 396606.25 | AR201: 396606.25 | AS201: 396606.25 | AT201: 396606.25 | AU201: 396606.25 | AV201: 396606.25 | AW201: 396606.25 | AX201: 396606.25 | AY201: 396606.25 | AZ201: 396606.25 | BA201: 396606.25 | BB201: 396606.25 | BC201: 396606.25 | BD201: 396606.25 | BE201: 396606.25 | BF201: 396606.25 | BG201: 396606.25 | BH201: 396606.25 | BI201: 396606.25 | BJ201: 396606.25 | BK201: 396606.25 | BL201: 396606.25 | BM201: 396606.25 | BN201: 396606.25 | BO201: 396606.25 | BP201: 396606.25 | BQ201: 396606.25 | BR201: 396606.25 | BS201: 396606.25
D202: Equivelant Cost of Diesel | G202: =L4&"/L" -> AUD/L | K202: =MAX(N202:BS202) -> 4.022104439 | N202: =IF(N201,N191/N201) -> FALSE | O202: =IF(O201,O191/O201) -> FALSE | P202: FALSE | Q202: FALSE | R202: FALSE | S202: FALSE | T202: FALSE | U202: FALSE | V202: FALSE | W202: FALSE | X202: FALSE | Y202: FALSE | Z202: 4.022104439 | AA202: 4.022104439 | AB202: 4.022104439 | AC202: 4.022104439 | AD202: 4.022104439 | AE202: 4.022104439 | AF202: 4.022104439 | AG202: 4.022104439 | AH202: 4.022104439 | AI202: 4.022104439 | AJ202: 4.022104439 | AK202: 4.022104439 | AL202: 4.022104439 | AM202: 4.022104439 | AN202: 4.022104439 | AO202: 4.022104439 | AP202: 4.022104439 | AQ202: 4.022104439 | AR202: 4.022104439 | AS202: 4.022104439 | AT202: 0 | AU202: 0 | AV202: 0 | AW202: 0 | AX202: 0 | AY202: 0 | AZ202: 0 | BA202: 0 | BB202: 0 | BC202: 0 | BD202: 0 | BE202: 0 | BF202: 0 | BG202: 0 | BH202: 0 | BI202: 0 | BJ202: 0 | BK202: 0 | BL202: 0 | BM202: 0 | BN202: 0 | BO202: 0 | BP202: 0 | BQ202: 0 | BR202: 0 | BS202: 0

Sheet Electrolyzer Database
E1: Scenario No | G1: 1
H2: 1 | I2: 2 | J2: 3 | K2: 4 | L2: 5 | M2: 6 | N2: 7 | O2: 8 | P2: 9 | Q2: 10 | R2: 11 | S2: 12 | T2: 13 | U2: 14 | V2: 15 | W2: 16 | X2: 17 | Y2: 18 | Z2: 19 | AA2: 20 | AB2: 21 | AC2: 22 | AD2: 23 | AE2: 24 | AF2: 25 | AG2: 26 | AH2: 27 | AI2: 28 | AJ2: 29 | AK2: 30 | AL2: 31 | AM2: 32 | AN2: 33 | AO2: 34 | AP2: 35
E3: Applied | G3: Applied | H3: Base Case | I3: Average | J3: Median | K3: Mario 2 | L3: Mario 3 | M3: Stanford 1 | N3: Stanford 2 | O3: Forecourt Current | P3: Central Current | Q3: AEC Small | R3: AEC Med | S3: AEC Large | T3: PEM Small | U3: PEM Med | V3: PEM Large | W3: SOEC Small | X3: SOEC Med | Y3: SOEC Large | Z3: HTP-Small | AA3: HTP-Med | AB3: HTP-Large | AC3: Forecourt Future | AD3: Central Future | AE3: AEC Small | AF3: AEC Med | AG3: AEC Large | AH3: PEM Small | AI3: PEM Med | AJ3: PEM Large | AK3: SOEC Small | AL3: SOEC Med | AM3: SOEC Large | AN3: HTP-Small | AO3: HTP-Med | AP3: HTP-Large
H4: 2020 | K4: 2020 | L4: 2020 | M4: 2016 | N4: 2016 | O4: 2020 | P4: 2020 | Q4: 2020 | R4: 2020 | S4: 2020 | T4: 2020 | U4: 2020 | V4: 2020 | W4: 2020 | X4: 2020 | Y4: 2020 | Z4: 2020 | AA4: 2020 | AB4: 2020 | AC4: 2025 | AD4: 2025 | AE4: 2025 | AF4: 2025 | AG4: 2025 | AH4: 2025 | AI4: 2025 | AJ4: 2025 | AK4: 2025 | AL4: 2025 | AM4: 2025 | AN4: 2025 | AO4: 2025 | AP4: 2025
Q5: 2019 @ P atm | R5: 2019 @ P atm | S5: 2019 @ P atm | T5: 2019 @ 30 bar | U5: 2019 @ 30 bar | V5: 2019 @ 30 bar | W5: 2019 @ P atm | X5: 2019 @ P atm | Y5: 2019 @ P atm | Z5: 2019 @ 20 bar | AA5: 2019 @ 20 bar | AB5: 2019 @ 20 bar | AE5: 2025 @ 15 bar | AF5: 2025 @ 15 bar | AG5: 2025 @ 15 bar | AH5: 2019 @ 30 bar | AI5: 2019 @ 30 bar | AJ5: 2019 @ 30 bar | AK5: 2025 @ 20 bar | AL5: 2025 @ 20 bar | AM5: 2025 @ 20 bar | AN5: 2025 @ 50 bar | AO5: 2025 @ 50 bar | AP5: 2025 @ 50 bar
B6: Production and Efficiency
C7: Production capacity | D7: kg/h | F7: 1 | G7: =INDEX(H7:AP7,F7) -> 17.14285714 | H7: =H11/H12 -> 17.14285714 | I7: =AVERAGE(K7:AP7) -> 286.4906895 | J7: =MEDIAN(K7:AP7) -> 95.2467344 | K7: 20 | L7: 20 | M7: 20 | N7: 20 | O7: ='NREL Backup'!N9 -> 62.5 | P7: ='NREL Backup'!P9 -> 2083.333333 | Q7: =Q11/Q12 -> 17.24137931 | R7: 96.15384615 | S7: 392.1568627 | T7: 15.87301587 | U7: 81.96721311 | V7: 344.8275862 | W7: 27.77777778 | X7: 142.8571429 | Y7: 588.2352941 | Z7: 20.83333333 | AA7: 108.6956522 | AB7: 454.5454545 | AC7: ='NREL Backup'!O9 -> 62.5 | AD7: ='NREL Backup'!Q9 -> 2083.333333 | AE7: =AE11/AE12 -> 18.18181818 | AF7: 100 | AG7: 408.1632653 | AH7: 18.51851852 | AI7: 94.33962264 | AJ7: 384.6153846 | AK7: 29.41176471 | AL7: 151.5151515 | AM7: 625 | AN7: 23.80952381 | AO7: 125 | AP7: 526.3157895
C8: Production capacity | D8: kg/day | F8: 1 | G8: =INDEX(H8:AP8,F8) -> 411.4285714 | H8: =H7*24 -> 411.4285714 | I8: =AVERAGE(K8:AP8) -> 6875.776548 | J8: =MEDIAN(K8:AP8) -> 2285.921626 | K8: =K7*24 -> 480 | L8: =L7*24 -> 480 | M8: =M7*24 -> 480 | N8: =N7*24 -> 480 | O8: ='NREL Backup'!N5 -> 1500 | P8: ='NREL Backup'!P5 -> 50000 | Q8: =Q7*24 -> 413.7931034 | R8: 2307.692308 | S8: 9411.764706 | T8: 380.952381 | U8: 1967.213115 | V8: 8275.862069 | W8: 666.6666667 | X8: 3428.571429 | Y8: 14117.64706 | Z8: 500 | AA8: 2608.695652 | AB8: 10909.09091 | AC8: ='NREL Backup'!O5 -> 1500 | AD8: ='NREL Backup'!Q5 -> 50000 | AE8: =AE7*24 -> 436.3636364 | AF8: 2400 | AG8: 9795.918367 | AH8: 444.4444444 | AI8: 2264.150943 | AJ8: 9230.769231 | AK8: 705.8823529 | AL8: 3636.363636 | AM8: 15000 | AN8: 571.4285714 | AO8: 3000 | AP8: 12631.57895
C9: Water consumption | D9: L/kg | F9: 1 | G9: =INDEX(H9:AP9,F9) -> 11.62 | H9: 11.62 | I9: 12.892325 | J9: 13.31 | K9: 11.62 | L9: 11.62 | M9: 11.62 | N9: 11.62 | O9: ='NREL Backup'!N28*'NREL Backup'!N29 -> 17.9928 | P9: ='NREL Backup'!P28*'NREL Backup'!P29 -> 17.9928 | Q9: 15 | R9: 15 | S9: 15 | T9: 15 | U9: 15 | V9: 15 | W9: 10 | X9: 10 | Y9: 10 | Z9: 10 | AA9: 10 | AB9: 10 | AC9: ='NREL Backup'!O28*'NREL Backup'!O29 -> 15.0444 | AD9: ='NREL Backup'!Q28*'NREL Backup'!Q29 -> 15.0444 | AE9: 15 | AF9: 15 | AG9: 15 | AH9: 15 | AI9: 15 | AJ9: 15 | AK9: 10 | AL9: 10 | AM9: 10 | AN9: 10 | AO9: 10 | AP9: 10
C10: Nominal power | D10: MW | F10: 1 | G10: =INDEX(H10:AP10,F10) -> 1.2 | H10: =H7*H12/1000 -> 1.2 | I10: 13.64563322 | J10: 5 | K10: =K7*K12/1000 -> 1.4 | L10: =L7*L12/1000 -> 1.16 | M10: =M7*M12/1000 -> 1.052631579 | N10: =N7*N12/1000 -> 1.052631579 | O10: ='NREL Backup'!N7/1000 -> 3.143 | P10: ='NREL Backup'!P7/1000 -> 113.125 | Q10: 1 | R10: 5 | S10: 20 | T10: 1 | U10: 5 | V10: 20 | W10: 1 | X10: 5 | Y10: 20 | Z10: 1 | AA10: 5 | AB10: 20 | AC10: ='NREL Backup'!O7/1000 -> 3.144 | AD10: ='NREL Backup'!Q7/1000 -> 104.583 | AE10: 1 | AF10: 5 | AG10: 20 | AH10: 1 | AI10: 5 | AJ10: 20 | AK10: 1 | AL10: 5 | AM10: 20 | AN10: 1 | AO10: 5 | AP10: 20
C11: Nominal Power | D11: kWh | F11: 1 | G11: =INDEX(H11:AP11,F11) -> 1200 | H11: 1200 | I11: 13645.63322 | J11: 5000 | K11: =K10*1000 -> 1400 | L11: =L10*1000 -> 1160 | M11: =M10*1000 -> 1052.631579 | N11: =N10*1000 -> 1052.631579 | O11: ='NREL Backup'!N7 -> 3143 | P11: ='NREL Backup'!P7 -> 113125 | Q11: =Q10*1000 -> 1000 | R11: 5000 | S11: 20000 | T11: 1000 | U11: 5000 | V11: 20000 | W11: 1000 | X11: 5000 | Y11: 20000 | Z11: 1000 | AA11: 5000 | AB11: 20000 | AC11: ='NREL Backup'!O7 -> 3144 | AD11: ='NREL Backup'!Q7 -> 104583 | AE11: =AE10*1000 -> 1000 | AF11: 5000 | AG11: 20000 | AH11: 1000 | AI11: 5000 | AJ11: 20000 | AK11: 1000 | AL11: 5000 | AM11: 20000 | AN11: 1000 | AO11: 5000 | AP11: 20000
C12: Efficiency | D12: kWh/kg | F12: 1 | G12: =INDEX(H12:AP12,F12) -> 70 | H12: 70 | I12: 48.63609368 | J12: 50.296 | K12: 70 | L12: 58 | M12: ='Stanford Article'!C4 -> 52.63157895 | N12: ='Stanford Article'!D4 -> 52.63157895 | O12: ='NREL Backup'!N10 -> 50.288 | P12: ='NREL Backup'!P10 -> 54.3 | Q12: 58 | R12: 52 | S12: 51 | T12: 63 | U12: 61 | V12: 58 | W12: 36 | X12: 35 | Y12: 34 | Z12: 48 | AA12: 46 | AB12: 44 | AC12: ='NREL Backup'!O10 -> 50.304 | AD12: ='NREL Backup'!Q10 -> 50.19984 | AE12: 55 | AF12: 50 | AG12: 49 | AH12: 54 | AI12: 53 | AJ12: 52 | AK12: 34 | AL12: 33 | AM12: 32 | AN12: 42 | AO12: 40 | AP12: 38
C13: Efficieny | D13: kg/kWh | F13: 1 | G13: =INDEX(H13:AP13,F13) -> 0.01428571429 | H13: =1/H12 -> 0.01428571429 | I13: 0.02142419112 | J13: 0.01988229731 | K13: =1/K12 -> 0.01428571429 | L13: =1/L12 -> 0.01724137931 | M13: 0.019 | N13: 0.019 | O13: 0.01988545975 | P13: 0.01841620626 | Q13: 0.01724137931 | R13: 0.01923076923 | S13: 0.01960784314 | T13: 0.01587301587 | U13: 0.01639344262 | V13: 0.01724137931 | W13: 0.02777777778 | X13: 0.02857142857 | Y13: 0.02941176471 | Z13: 0.02083333333 | AA13: 0.02173913043 | AB13: 0.02272727273 | AC13: 0.01987913486 | AD13: 0.01992038222 | AE13: 0.01818181818 | AF13: 0.02 | AG13: 0.02040816327 | AH13: 0.01851851852 | AI13: 0.01886792453 | AJ13: 0.01923076923 | AK13: 0.02941176471 | AL13: 0.0303030303 | AM13: 0.03125 | AN13: 0.02380952381 | AO13: 0.025 | AP13: 0.02631578947
C14: Availability | D14: %/year | F14: 1 | G14: =INDEX(H14:AP14,F14) -> 0.97 | H14: 0.97 | I14: 0.9775 | J14: 0.98 | K14: 0.97 | L14: 0.97 | M14: 0.97 | N14: 0.97 | O14: ='NREL Backup'!N4 -> 0.97 | P14: ='NREL Backup'!P4 -> 0.97 | Q14: 0.98 | R14: 0.98 | S14: 0.98 | T14: 0.98 | U14: 0.98 | V14: 0.98 | W14: 0.98 | X14: 0.98 | Y14: 0.98 | Z14: 0.98 | AA14: 0.98 | AB14: 0.98 | AC14: ='NREL Backup'!O4 -> 0.97 | AD14: ='NREL Backup'!Q4 -> 0.97 | AE14: 0.98 | AF14: 0.98 | AG14: 0.98 | AH14: 0.98 | AI14: 0.98 | AJ14: 0.98 | AK14: 0.98 | AL14: 0.98 | AM14: 0.98 | AN14: 0.98 | AO14: 0.98 | AP14: 0.98
B16: Lifetime and Cap Exp | F16: 1
C17: Lifetime - System | D17: Years | F17: 1 | G17: =INDEX(H17:AP17,F17) -> 20 | H17: 20 | I17: =AVERAGE(K17:AP17) -> 20 | J17: =MEDIAN(K17:AP17) -> 20 | K17: 20 | L17: 20 | M17: 20 | N17: 20 | O17: 20 | P17: 20 | Q17: 20 | R17: 20 | S17: 20 | T17: 20 | U17: 20 | V17: 20 | W17: 20 | X17: 20 | Y17: 20 | Z17: 20 | AA17: 20 | AB17: 20 | AC17: 20 | AD17: 20 | AE17: 20 | AF17: 20 | AG17: 20 | AH17: 20 | AI17: 20 | AJ17: 20 | AK17: 20 | AL17: 20 | AM17: 20 | AN17: 20 | AO17: 20 | AP17: 20
C18: Degradation - system | D18: %/1000 h | F18: 1 | G18: =INDEX(H18:AP18,F18) -> 0.001 | H18: 0.001 | I18: =AVERAGE(K18:AP18) -> 0.017668 | J18: =MEDIAN(K18:AP18) -> 0.0025 | K18: 0.001 | Q18: 0.0013 | R18: 0.0013 | S18: 0.0013 | T18: 0.0025 | U18: 0.0025 | V18: 0.0025 | W18: 0.05 | X18: 0.05 | Y18: 0.05 | Z18: 0.03 | AA18: 0.03 | AB18: 0.03 | AE18: 0.0011 | AF18: 0.0011 | AG18: 0.0011 | AH18: 0.002 | AI18: 0.002 | AJ18: 0.002 | AK18: 0.03 | AL18: 0.03 | AM18: 0.03 | AN18: 0.03 | AO18: 0.03 | AP18: 0.03
F19: 1
C20: CAPEX - total system equipment | D20: €/kW | F20: 1 | G20: =INDEX(H20:AP20,F20) -> 2357 | H20: 2357 | I20: =AVERAGE(K20:AP20) -> 1373.928571 | J20: =MEDIAN(K20:AP20) -> 1250 | K20: 2357 | L20: =H20 -> 2357 | M20: ='Stanford Article'!C2 -> 2287 | N20: ='Stanford Article'!D2 -> 2009 | Q20: 1200 | R20: 830 | S20: 750 | T20: 1500 | U20: 1300 | V20: 1200 | W20: 2500 | X20: 2000 | Y20: 1800 | Z20: 1700 | AA20: 1500 | AB20: 1300 | AE20: 900 | AF20: 600 | AG20: 480 | AH20: 1000 | AI20: 900 | AJ20: 700 | AK20: 1600 | AL20: 1400 | AM20: 1200 | AN20: 1200 | AO20: 1000 | AP20: 900
C21: Exchange Rate | D21: ##/USD | F21: 1 | G21: =INDEX(H21:AP21,F21) -> 0.71 | H21: 0.71 | I21: =AVERAGE(K21:AP21) -> 1.143846154 | J21: =MEDIAN(K21:AP21) -> 1.18 | K21: 0.71 | L21: 0.71 | Q21: 1.18 | R21: 1.18 | S21: 1.18 | T21: 1.18 | U21: 1.18 | V21: 1.18 | W21: 1.18 | X21: 1.18 | Y21: 1.18 | Z21: 1.18 | AA21: 1.18 | AB21: 1.18 | AE21: 1.18 | AF21: 1.18 | AG21: 1.18 | AH21: 1.18 | AI21: 1.18 | AJ21: 1.18 | AK21: 1.18 | AL21: 1.18 | AM21: 1.18 | AN21: 1.18 | AO21: 1.18 | AP21: 1.18
C22: CAPEX - total system equipment | D22: USD/kW | F22: 1 | G22: =INDEX(H22:AP22,F22) -> 1808.251667 | H22: 1808.251667 | I22: 1430.602188 | J22: 1416 | K22: =K20*K21 -> 1673.47 | L22: =L20 -> 2357 | M22: =M20 -> 2287 | N22: =N20 -> 2009 | O22: ='NREL Backup'!N12 -> 940 | P22: ='NREL Backup'!P12 -> 900 | Q22: =Q20*Q21 -> 1416 | R22: 979.4 | S22: 885 | T22: 1770 | U22: 1534 | V22: 1416 | W22: 2950 | X22: 2360 | Y22: 2124 | Z22: 2006 | AA22: 1770 | AB22: 1534 | AC22: ='NREL Backup'!O12 -> 450 | AD22: ='NREL Backup'!Q12 -> 400 | AE22: =AE20*AE21 -> 1062 | AF22: 708 | AG22: 566.4 | AH22: 1180 | AI22: 1062 | AJ22: 826 | AK22: 1888 | AL22: 1652 | AM22: 1416 | AN22: 1416 | AO22: 1180 | AP22: 1062
C23: CAPEX - total system equipment | D23: USD | F23: 1 | G23: =INDEX(H23:AP23,F23) -> 2169902 | H23: =H22*H11 -> 2169902 | I23: 13253656.35 | J23: 5103500 | K23: =K22*K11 -> 2342858 | L23: =L22*L11 -> 2734120 | M23: 2407368.421 | N23: 2114736.842 | O23: 2954420 | P23: 101812500 | Q23: 1416000 | R23: 4897000 | S23: 17700000 | T23: 1770000 | U23: 7670000 | V23: 28320000 | W23: 2950000 | X23: 11800000 | Y23: 42480000 | Z23: 2006000 | AA23: 8850000 | AB23: 30680000 | AC23: 1414800 | AD23: 41833200 | AE23: 1062000 | AF23: 3540000 | AG23: 11328000 | AH23: 1180000 | AI23: 5310000 | AJ23: 16520000 | AK23: 1888000 | AL23: 8260000 | AM23: 28320000 | AN23: 1416000 | AO23: 5900000 | AP23: 21240000
C24: CAPEX - total system equipment | D24: USD/kg-hr | F24: 1 | G24: =INDEX(H24:AP24,F24) -> 126577.6167 | H24: =H23/H7 -> 126577.6167 | I24: 68312.65685 | J24: 61596 | K24: =K23/K7 -> 117142.9 | L24: =L23/L7 -> 136706 | M24: 120368.4211 | N24: 105736.8421 | O24: 47270.72 | P24: 48870 | Q24: 82128 | R24: 50928.8 | S24: 45135 | T24: 111510 | U24: 93574 | V24: 82128 | W24: 106200 | X24: 82600 | Y24: 72216 | Z24: 96288 | AA24: 81420 | AB24: 67496 | AC24: 22636.8 | AD24: 20079.936 | AE24: 58410 | AF24: 35400 | AG24: 27753.6 | AH24: 63720 | AI24: 56286 | AJ24: 42952 | AK24: 64192 | AL24: 54516 | AM24: 45312 | AN24: 59472 | AO24: 47200 | AP24: 40356
F25: 1
B26: O&M Cost | F26: 1
C27: OPEX - Electrolyser system | D27: €/kW/year | F27: 1 | Q27: =Q20*0.04 -> 48 | R27: =R20*0.03 -> 24.9 | S27: =S20*0.02 -> 15 | T27: =T20*0.04 -> 60 | U27: =U20*0.03 -> 39 | V27: =V20*0.02 -> 24 | W27: =W20*0.04 -> 100 | X27: =X20*0.03 -> 60 | Y27: =Y20*0.02 -> 36 | Z27: =Z20*0.04 -> 68 | AA27: =AA20*0.03 -> 45 | AB27: =AB20*0.02 -> 26 | AE27: =AE20*0.04 -> 36 | AF27: =AF20*0.03 -> 18 | AG27: =AG20*0.02 -> 9.6 | AH27: =AH20*0.04 -> 40 | AI27: =AI20*0.03 -> 27 | AJ27: =AJ20*0.02 -> 14 | AK27: =AK20*0.04 -> 64 | AL27: =AL20*0.03 -> 42 | AM27: =AM20*0.02 -> 24 | AN27: =AN20*0.04 -> 48 | AO27: =AO20*0.03 -> 30 | AP27: =AP20*0.02 -> 18
C28: O&M percent | D28: % of Capital | F28: 1 | G28: =INDEX(H28:AP28,F28) -> 0.03 | H28: 0.03 | I28: =AVERAGE(K28:AP28) -> 0.03 | J28: =MEDIAN(K28:AP28) -> 0.03 | K28: 0.03 | L28: 0.03 | M28: 0.03 | N28: 0.03 | O28: ='NREL Backup'!N23 -> 0.032 | P28: ='NREL Backup'!P23 -> 0.03 | Q28: =Q27/Q20 -> 0.04 | R28: 0.03 | S28: 0.02 | T28: 0.04 | U28: 0.03 | V28: 0.02 | W28: 0.04 | X28: 0.03 | Y28: 0.02 | Z28: 0.04 | AA28: 0.03 | AB28: 0.02 | AC28: ='NREL Backup'!O23 -> 0.028 | AD28: ='NREL Backup'!Q23 -> 0.03 | AE28: =AE27/AE20 -> 0.04 | AF28: 0.03 | AG28: 0.02 | AH28: 0.04 | AI28: 0.03 | AJ28: 0.02 | AK28: 0.04 | AL28: 0.03 | AM28: 0.02 | AN28: 0.04 | AO28: 0.03 | AP28: 0.02
F29: 1
C30: Lifetime - Stack @ full charge | D30: Hours | F30: 1 | Q30: 80000 | R30: 80000 | S30: 80000 | T30: 40000 | U30: 40000 | V30: 40000 | W30: 10000 | X30: 10000 | Y30: 10000 | Z30: 10000 | AA30: 10000 | AB30: 10000 | AE30: 90000 | AF30: 90000 | AG30: 90000 | AH30: 50000 | AI30: 50000 | AJ30: 50000 | AK30: 20000 | AL30: 20000 | AM30: 20000 | AN30: 25000 | AO30: 25000 | AP30: 25000
C31: Replacement Year | D31: Year | F31: 1 | G31: =INDEX(H31:AP31,F31) -> 8 | H31: 8 | I31: =AVERAGE(K31:AP31) -> 8.824914384 | J31: =MEDIAN(K31:AP31) -> 9 | K31: 8 | L31: 8 | M31: 8 | N31: 8 | O31: ='NREL Backup'!N25 -> 7 | P31: ='NREL Backup'!P25 -> 7 | Q31: =Q30/8760 -> 9.132420091 | R31: =R30/8760 -> 9.132420091 | S31: =S30/8760 -> 9.132420091 | T31: 9 | U31: 9 | V31: 9 | W31: 9 | X31: 9 | Y31: 9 | Z31: 9 | AA31: 9 | AB31: 9 | AC31: ='NREL Backup'!O25 -> 10 | AD31: ='NREL Backup'!Q25 -> 10 | AE31: 9 | AF31: 9 | AG31: 9 | AH31: 9 | AI31: 9 | AJ31: 9 | AK31: 9 | AL31: 9 | AM31: 9 | AN31: 9 | AO31: 9 | AP31: 9
C32: CAPEX - Stack replacement* | D32: €/kW | F32: 1 | G32: =INDEX(H32:AP32,F32) -> 1000000 | H32: 1000000 | I32: 77296.46154 | J32: 437.5 | K32: 1000000 | L32: 1000000 | Q32: =Q20*0.3 -> 360 | R32: =R20*0.3 -> 249 | S32: =S20*0.3 -> 225 | T32: 525 | U32: 455 | V32: 420 | W32: 700 | X32: 620 | Y32: 580 | Z32: 525 | AA32: 455 | AB32: 420 | AE32: =AE20*0.3 -> 270 | AF32: =AF20*0.3 -> 180 | AG32: =AG20*0.3 -> 144 | AH32: 300 | AI32: 270 | AJ32: 210 | AK32: 525 | AL32: 455 | AM32: 420 | AN32: 525 | AO32: 455 | AP32: 420
C33: Replacement Percent | F33: 1 | G33: =INDEX(H33:AP33,F33) -> 0.4608503057 | H33: =H32/H23 -> 0.4608503057 | I33: 0.2680664495 | J33: 0.2556497175 | K33: =K32/K23 -> 0.4268291121 | L33: =L32/L23 -> 0.3657483944 | M33: 0.25 | N33: 0.25 | O33: ='NREL Backup'!N26 -> 0.15 | P33: ='NREL Backup'!P26 -> 0.15 | Q33: =Q32/Q22 -> 0.2542372881 | R33: 0.2542372881 | S33: 0.2542372881 | T33: 0.2966101695 | U33: 0.2966101695 | V33: 0.2966101695 | W33: 0.2372881356 | X33: 0.2627118644 | Y33: 0.2730696798 | Z33: 0.2617148554 | AA33: 0.2570621469 | AB33: 0.2737940026 | AC33: ='NREL Backup'!O26 -> 0.12 | AD33: ='NREL Backup'!Q26 -> 0.12 | AE33: =AE32/AE22 -> 0.2542372881 | AF33: 0.2542372881 | AG33: 0.2542372881 | AH33: 0.2542372881 | AI33: 0.2542372881 | AJ33: 0.2542372881 | AK33: 0.2780720339 | AL33: 0.2754237288 | AM33: 0.2966101695 | AN33: 0.3707627119 | AO33: 0.3855932203 | AP33: 0.395480226
F34: 1
B35: Other | F35: 1
C36: Minimum power | D36: % Pnom | F36: 1 | Q36: 0.15 | R36: 0.15 | S36: 0.15 | T36: 0.05 | U36: 0.05 | V36: 0.05 | W36: 0.3 | X36: 0.3 | Y36: 0.3 | Z36: 0.2 | AA36: 0.2 | AB36: 0.2 | AE36: 0.1 | AF36: 0.1 | AG36: 0.1 | AH36: 0 | AI36: 0 | AJ36: 0 | AK36: 0.3 | AL36: 0.3 | AM36: 0.3 | AN36: 0.2 | AO36: 0.2 | AP36: 0.2
C37: Peak power - for 10 min | D37: % Pnom | F37: 1 | Q37: 1 | R37: 1 | S37: 1 | T37: 1.6 | U37: 1.6 | V37: 1.6 | W37: 1.2 | X37: 1.2 | Y37: 1.2 | Z37: 1.2 | AA37: 1.2 | AB37: 1.2 | AE37: 1 | AF37: 1 | AG37: 1 | AH37: 2 | AI37: 2 | AJ37: 2 | AK37: 1.2 | AL37: 1.2 | AM37: 1.2 | AN37: 1.2 | AO37: 1.2 | AP37: 1.2
C38: Pressure output | D38: Bar | F38: 1 | Q38: 0 | R38: 0 | S38: 0 | T38: 30 | U38: 30 | V38: 30 | W38: 0 | X38: 0 | Y38: 0 | Z38: 20 | AA38: 20 | AB38: 20 | AE38: 15 | AF38: 15 | AG38: 15 | AH38: 60 | AI38: 60 | AJ38: 60 | AK38: 20 | AL38: 20 | AM38: 20 | AN38: 20 | AO38: 20 | AP38: 20
C41: Conversion | D41: 1nm3 =0,08.3748 kg
C42: WACC | D42: % | S42: 5
C43: Discount rate (for NPV calc) | D43: % | S43: 8
C45: * AEC =30%, PEM =40%, SOEC =50% HTP-AEC =50%
H63: 1 | I63: =TRANSPOSE(H3:AP4) -> Base Case | J63: 2020 | K63: =I63&" "&J63 -> Base Case 2020
H64: 2 | I64: Average | K64: =I64&" "&J64 -> Average
H65: 3 | I65: Median | K65: Median
H66: 4 | I66: Mario 2 | J66: 2020 | K66: Mario 2 2020
H67: 5 | I67: Mario 3 | J67: 2020 | K67: Mario 3 2020
H68: 6 | I68: Stanford 1 | J68: 2016 | K68: Stanford 1 2016
H69: 7 | I69: Stanford 2 | J69: 2016 | K69: Stanford 2 2016
H70: 8 | I70: Forecourt Current | J70: 2020 | K70: Forecourt Current 2020
H71: 9 | I71: Central Current | J71: 2020 | K71: Central Current 2020
H72: 10 | I72: AEC Small | J72: 2020 | K72: AEC Small 2020
H73: 11 | I73: AEC Med | J73: 2020 | K73: AEC Med 2020
H74: 12 | I74: AEC Large | J74: 2020 | K74: AEC Large 2020
H75: 13 | I75: PEM Small | J75: 2020 | K75: PEM Small 2020
H76: 14 | I76: PEM Med | J76: 2020 | K76: PEM Med 2020
H77: 15 | I77: PEM Large | J77: 2020 | K77: PEM Large 2020
H78: 16 | I78: SOEC Small | J78: 2020 | K78: SOEC Small 2020
H79: 17 | I79: SOEC Med | J79: 2020 | K79: SOEC Med 2020
H80: 18 | I80: SOEC Large | J80: 2020 | K80: SOEC Large 2020
H81: 19 | I81: HTP-Small | J81: 2020 | K81: HTP-Small 2020
H82: 20 | I82: HTP-Med | J82: 2020 | K82: HTP-Med 2020
H83: 21 | I83: HTP-Large | J83: 2020 | K83: HTP-Large 2020
H84: 22 | I84: Forecourt Future | J84: 2025 | K84: Forecourt Future 2025
H85: 23 | I85: Central Future | J85: 2025 | K85: Central Future 2025
H86: 24 | I86: AEC Small | J86: 2025 | K86: AEC Small 2025
H87: 25 | I87: AEC Med | J87: 2025 | K87: AEC Med 2025
H88: 26 | I88: AEC Large | J88: 2025 | K88: AEC Large 2025
H89: 27 | I89: PEM Small | J89: 2025 | K89: PEM Small 2025
H90: 28 | I90: PEM Med | J90: 2025 | K90: PEM Med 2025
H91: 29 | I91: PEM Large | J91: 2025 | K91: PEM Large 2025
H92: 30 | I92: SOEC Small | J92: 2025 | K92: SOEC Small 2025
H93: 31 | I93: SOEC Med | J93: 2025 | K93: SOEC Med 2025
H94: 32 | I94: SOEC Large | J94: 2025 | K94: SOEC Large 2025
H95: 33 | I95: HTP-Small | J95: 2025 | K95: HTP-Small 2025
H96: 34 | I96: HTP-Med | J96: 2025 | K96: HTP-Med 2025
H97: 35 | I97: HTP-Large | J97: 2025 | K97: HTP-Large 2025

Sheet Truck Database
F2: =Inputs!$F$23 -> 0.71
E4: Scenario | F4: 2
B7: Conventional Truck
I8: General Search | J8: =Databook!C17 -> LMCC (Council) Medium Duty Diesel | K8: German Study | L8: Alternative 2
C10: Cost of Truck | E10: USD/Truck | F10: 2 | G10: =INDEX(I10:N10,F10) -> 308850 | I10: 295000 | J10: =Databook!E3*0.71 -> 308850 | K10: =200000*1.18 -> 236000 | L10: =K10 -> 236000
C11: Cost of Truck | E11: AUD/Truck | F11: 2 | G11: =INDEX(I11:N11,F11) -> 435000 | H11: =H26 -> 0.71 | I11: =I10/$H$11 -> 415492.9577 | J11: =J10/$H$11 -> 435000 | K11: 332394.3662 | L11: 332394.3662
C12: Diesel Efficiency | E12: km/Litre | F12: 2 | G12: =INDEX(I12:N12,F12) -> 0.9770395701 | I12: 0.41 | J12: 0.9770395701 | K12: 0.6 | L12: 0.6
C13: Diesel Efficiency | E13: Litre/km | F13: 2 | G13: =1/G12 -> 1.0235 | I13: =1/I12 -> 2.43902439 | J13: =1/J12 -> 1.0235 | K13: 1.666666667 | L13: 1.666666667
C14: Diesel Efficiency | E14: Litre/100km | F14: 2 | G14: =G13*100 -> 102.35 | I14: =I13*100 -> 243.902439 | J14: =J13*100 -> 102.35 | K14: 166.6666667 | L14: 166.6666667
C15: For Americans | E15: Litre/Gallon | F15: 2 | G15: =0.264172 -> 0.264172 | I15: =0.264172 -> 0.264172 | J15: =0.264172 -> 0.264172 | K15: =J15 -> 0.264172 | L15: 0.264172
C16: Diesel Efficiency | E16: km/Gallon | F16: 2 | G16: =G12/G15 -> 3.698497835 | I16: =I12/I15 -> 1.552019139 | J16: =J12/J15 -> 3.698497835 | K16: 2.271247521 | L16: 2.271247521
C17: For Americans | E17: Miles/km | F17: 2 | G17: =1/0.621371 -> 1.609344498 | I17: =1/0.621371 -> 1.609344498 | J17: =1/0.621371 -> 1.609344498 | K17: =1/0.621371 -> 1.609344498 | L17: 1.609344498
C18: Diesel Efficiency | E18: Miles/Gallon | F18: 2 | G18: =G16*G17 -> 5.952157141 | I18: =I16*I17 -> 2.497733462 | J18: =J16*J17 -> 5.952157141 | K18: =K16*K17 -> 3.655219701 | L18: 3.655219701
C19: Truck Life | E19: Years | F19: 2 | G19: =INDEX(I19:N19,F19) -> 7 | I19: 12 | J19: 7 | K19: 12 | L19: 12
F21: 1
E22: Htruck | F22: 1
B23: Hydrogen Trucks
I24: =Databook!C23 -> Hydrogen FCEV Refuse Truck (@ Model) | J24: =Databook!C9 -> Hyundai 18T HFCEV Reference | K24: German Study
C25: Cost of Truck | E25: USD/Truck | F25: 1 | G25: =INDEX(I25:M25,F25) -> 584497.0588 | I25: =I26*H26 -> 584497.0588 | J25: =J26*H26 -> 600158.8235 | K25: =K27*H27 -> 501500
C26: Cost of Truck | E26: AUD/Truck | F26: 1 | G26: =INDEX(I26:M26,F26) -> 823235.2941 | H26: =Inputs!$F$19 -> 0.71 | I26: =Databook!F64 -> 823235.2941 | J26: =Databook!G64 -> 845294.1176 | K26: =K25/H26 -> 706338.0282
C27: Cost of Truck | E27: Euro/Truck | F27: 1 | G27: =INDEX(I27:M27,F27) -> 0 | H27: =Inputs!F20 -> 1.18 | K27: 425000
C28: Diesel Efficiency | E28: km/kg | F28: 1 | G28: =INDEX(I28:M28,F28) -> 0.1721748443 | I28: =Databook!G25 -> 0.1721748443 | J28: =Databook!E12/100 -> 0.0825 | K28: 0.125
C29: Diesel Efficiency | E29: kg/km | F29: 1 | G29: =1/G28 -> 5.808049393 | I29: =1/I28 -> 5.808049393 | J29: =1/J28 -> 12.12121212 | K29: =1/K28 -> 8
F35: 1 | G35: =TRANSPOSE(I8:L8) -> General Search | J35: =TRANSPOSE(I24:K24) -> Hydrogen FCEV Refuse Truck (@ Model)
F36: 2 | G36: LMCC (Council) Medium Duty Diesel | J36: Hyundai 18T HFCEV Reference
F37: 3 | G37: German Study | J37: German Study
F38: 4 | G38: Alternative 2

Sheet Refuller Database
E2: Scenario | F2: 1 | I2: =Inputs!F19 -> 0.71
F3: 2 | I3: 1 | L3: 2 | M3: 3 | N3: 4 | O3: 5
B5: Storage | I5: Base Case | J5: Alternative 1 | K5: Alternative 2 | L5: Fast Dispenser | M5: Original Estimate | N5: NREL Study Case 1 | O5: NREL Study Case 2
C6: Storage Capacity | E6: kg | F6: 1 | G6: =INDEX(I6:Q6,F6) -> 345 | I6: 345 | J6: 345 | K6: 345 | L6: 345 | M6: =L6 -> 345 | N6: =L6 -> 345 | O6: =N6 -> 345
C7: Associated Production/Day | E7: kg/day | F7: 1 | G7: =INDEX(I7:Q7,F7) -> 480 | I7: =20*24 -> 480 | J7: =20*24 -> 480 | K7: =20*24 -> 480 | L7: =20*24 -> 480 | M7: =20*24 -> 480 | N7: 480 | O7: 480
C8: Storage Relative to Daily Production | E8: % | F8: 1 | G8: =INDEX(I8:Q8,F8) -> 0.71875 | I8: =I6/I7 -> 0.71875 | J8: =J6/J7 -> 0.71875 | K8: =K6/K7 -> 0.71875 | L8: =L6/L7 -> 0.71875 | M8: =M6/M7 -> 0.71875 | N8: 0.71875 | O8: 0.71875
C9: Cost of Storage and Compressors | E9: AUD | F9: 1 | G9: =INDEX(I9:Q9,F9) -> 2225142 | I9: 2225142 | J9: 2107142 | K9: 2107142 | L9: =I9 -> 2225142 | M9: =M11-M18 -> 2714300 | N9: =N11-N18 -> 913224.385 | O9: =O11-O18 -> 555533.1957
C10: Cost of Storage and Compressors | E10: USD | F10: 1 | G10: =INDEX(I10:Q10,F10) -> 1579850.82 | H10: =Inputs!F23 -> 0.71 | I10: =I9*$H$10 -> 1579850.82 | J10: =J9*$H$10 -> 1496070.82 | K10: =K9*$H$10 -> 1496070.82 | L10: =I10 -> 1579850.82 | M10: =M9-M19 -> 2156453 | N10: =N9-N19 -> 791494.885 | O10: =O9-O19 -> 433803.6957
C11: Total Cost | E11: AUD | F11: 1 | G11: =INDEX(I11:Q11,F11) -> 2396592 | I11: =I9+I18 -> 2396592 | J11: =J9+J18 -> 2278592 | K11: =K9+K18 -> 2278592 | L11: =L9+L18 -> 3010842 | M11: =Databook!E154 -> 3500000 | N11: =N12/$H$10 -> 1084674.385 | O11: =O12/$H$10 -> 726983.1957
C12: Total Cost | E12: USD | F12: 1 | G12: =INDEX(I12:Q12,F12) -> 1701580.32 | I12: =I10+I19 -> 1701580.32 | J12: =J10+J19 -> 1617800.32 | K12: =K10+K19 -> 1617800.32 | L12: =L10+L19 -> 2137697.82 | M12: =M11*H10 -> 2485000 | N12: =N13*N6 -> 770118.8133 | O12: =O13*O6 -> 516158.069 | P12: =P6*P13 -> 0
C13: Total Cost/kg | E13: USD/kg | F13: 1 | G13: =INDEX(I13:Q13,F13) -> 4579.277739 | I13: =I10/I6 -> 4579.277739 | J13: =J10/J6 -> 4336.437159 | K13: =K10/K6 -> 4336.437159 | L13: =L10/L6 -> 4579.277739 | M13: =M12/M6 -> 7202.898551 | N13: =Refuler!B28 -> 2232.228444 | O13: =Refuler!C28 -> 1496.110345 | P13: 35000
F14: 1
B15: Dispenser | F15: 1
C16: Flow Rate - kg/Minute | E16: kg/Minute | F16: 1 | G16: =INDEX(I16:Q16,F16) -> 2.941176471 | I16: =50/I25 -> 2.941176471 | J16: =50/J25 -> 2.941176471 | K16: =50/K25 -> 2.941176471 | L16: =50/L25 -> 4.545454545 | M16: =L16 -> 4.545454545 | N16: =M16 -> 4.545454545 | O16: 4.545454545
C17: Dispenser Cost/Flow Rate | E17: USD/Minute | F17: 1 | G17: =INDEX(I17:Q17,F17) -> 41388.03 | I17: =I19/I16 -> 41388.03 | J17: =J19/J16 -> 41388.03 | K17: =K19/K16 -> 41388.03 | L17: =L19/L16 -> 122726.34 | M17: =L17 -> 122726.34 | N17: =I17 -> 41388.03 | O17: 41388.03
C18: Dispenser Cost | E18: AUD | F18: 1 | G18: =INDEX(I18:Q18,F18) -> 171450 | I18: 171450 | J18: 171450 | K18: 171450 | L18: =Databook!F251 -> 785700 | M18: =L18 -> 785700 | N18: =I18 -> 171450 | O18: 171450
C19: Dispenser Cost | E19: USD | F19: 1 | G19: =G18/I2 -> 241478.8732 | I19: =I18*$I$2 -> 121729.5 | J19: =J18*$I$2 -> 121729.5 | K19: =K18*$I$2 -> 121729.5 | L19: =L18*$I$2 -> 557847 | M19: =M18*$I$2 -> 557847 | N19: =N18*$I$2 -> 121729.5 | O19: =O18*$I$2 -> 121729.5
F20: 1
C21: O&M Percent | E21: % | F21: 1 | G21: =INDEX(I21:O21,F21) -> 0.1749626849 | I21: =Refuler!G29 -> 0.1749626849 | J21: 0.03 | K21: 0.03 | L21: 0.03 | M21: 0.03 | N21: 0.03 | O21: 0.03
B23: Other | F23: 1
C24: Minutes/kg | F24: 1 | P24: 20
C25: Flow Rate for 50 kg | E25: Minutes | F25: 1 | I25: 17 | J25: 17 | K25: 17 | L25: 11
C26: Flow Rate for 1 kG | E26: Minutes | F26: 1 | I26: =I25/50 -> 0.34 | J26: =J25/50 -> 0.34 | K26: =K25/50 -> 0.34 | L26: =L25/50 -> 0.22
H31: 1 | I31: =TRANSPOSE(I5:O5) -> Base Case
H32: 2 | I32: Alternative 1
H33: 3 | I33: Alternative 2
H34: 4 | I34: Fast Dispenser
H35: 5 | I35: Original Estimate
I36: NREL Study Case 1
I37: NREL Study Case 2

Sheet NREL Backup
N2: Forecourt Current | O2: Forecourt Future | P2: Central Current | Q2: Central Future
K4: Production Availablity | M4: % | N4: 0.97 | O4: 0.97 | P4: 0.97 | Q4: 0.97
K5: Plant Design | M5: kg/day | N5: 1500 | O5: 1500 | P5: 50000 | Q5: 50000
K6: Single Unit Size | M6: kg/day | N6: 500 | O6: 750 | P6: 500 | Q6: 750
K7: System Energy | M7: kW | N7: 3143 | O7: 3144 | P7: 113125 | Q7: 104583
K9: Capacity | M9: kg/hour | N9: =N5/24 -> 62.5 | O9: =O5/24 -> 62.5 | P9: 2083.333333 | Q9: 2083.333333
K10: Efficiency | M10: kwh/kg | N10: =N7/N9 -> 50.288 | O10: =O7/O9 -> 50.304 | P10: 54.3 | Q10: 50.19984
K12: Cost/kW | M12: USD/kW | N12: 940 | O12: 450 | P12: 900 | Q12: 400
K13: Total Cost | M13: USD | N13: =N12*N7 -> 2954420 | O13: =O12*O7 -> 1414800 | P13: 101812500 | Q13: 41833200
K15: Indirect 1 | N15: 50000 | O15: 50000 | P15: =P13*0.08 -> 8145000 | Q15: =Q13*0.08 -> 3346656
K16: Indirect 2 | N16: 30000 | O16: 30000 | P16: =P13*0.15 -> 15271875 | Q16: =Q13*0.15 -> 6274980
K18: Total Cost | N18: =N13+N15+N16 -> 3034420 | O18: =O13+O15+O16 -> 1494800 | P18: 125229375 | Q18: 51454836
K19: Cost/kg | N19: =N18/N9 -> 48550.72 | O19: =O18/O9 -> 23916.8 | P19: 60110.1 | Q19: 24698.32128
K21: AUD | L21: 0.71 | N21: =N19/$L$21 -> 68381.29577 | O21: =O19/$L$21 -> 33685.6338 | P21: 84662.11268 | Q21: 34786.368
K23: Maint % | N23: 0.032 | O23: 0.028 | P23: 0.03 | Q23: 0.03
K25: Replacement Year | N25: 7 | O25: 10 | P25: 7 | Q25: 10
K26: Replacement Percent | N26: 0.15 | O26: 0.12 | P26: 0.15 | Q26: 0.12
K28: Water Usage | L28: gal/kg | N28: 4.76 | O28: 3.98 | P28: 4.76 | Q28: 3.98
K29: Converstion | L29: L/gal | N29: 3.78 | O29: 3.78 | P29: 3.78 | Q29: 3.78
N30: =N28*N29 -> 17.9928 | O30: =O28*O29 -> 15.0444 | P30: 17.9928 | Q30: 15.0444

Sheet Email

Sheet Stanford Article
A1: Germany Texas | C1: Euro | D1: USD
A2: PtG system price SPh e/kW /kW | B2: Cost/kW | C2: 2287 | D2: 2009
A3: Conversion rate of PtG  kg/kWh kg/kWh | B3: kg/kWh | C3: 0.019 | D3: 0.019
B4: kwh/kg | C4: =1/C3 -> 52.63157895 | D4: =1/D3 -> 52.63157895
A5: Wind system price SPe e/kW /kW | B5: Cost/kW | C5: 1367 | D5: 1596
A6: Wind capacity factor CF | B6: % | C6: 30.27 | D6: 34.61
A7: Electricity price pe ect/kWh ct/kWh | C7: 3.18 | D7: 2.55
A8: Subsidy: PP or PTC ect/kWh ct/kWh | C8: 6.16 | D8: 2.3
A9: Cost of capital WACC r | C9: 4 | D9: 6
A10: Germany Texas
A11: Break even price of hydrogen e/kg /kg | C11: 3.23 | D11: 3.53
A12: Co variation coecient | C12: 0.88 | D12: 0.89
A13: Levelized cost of electricity ect/kWh ct/kWh | C13: 5.36 | D13: 3.02
A14: Wind energy pro t margin ect/kWh /kWh | C14: 0.63 | D14: -0.27
A15: Conversion premium ect/kWh /kWh | C15: 2.85 | D15: 4.23
A16: Levelized xed cost of hydrogen ect/kWh /kWh | C16: 2.54 | D16: 2.47
A17: Optimal PtG capacity kW kW | C17: 0.01 | D17: 0.29

Sheet Tornado

Sheet Fuel Economy by Vehicle Type
B2: Average Fuel Economy by Major Vehicle Category
B3: Vehicle Type | C3: MPG Gasoline | D3: MPG Diesel | E3: Source
B4: Refuse Truck | C4: =D4*0.885 -> 2.478 | D4: 2.8 | E4: A
B5: Transit Bus | C5: 3.2745 | D5: 3.7 | E5: B
B6: Class 8 Truck | C6: 5.31 | D6: 6 | E6: C
B7: School Bus | C7: 6.195 | D7: 7 | E7: D
B8: Delivery Truck | C8: 6.54015 | D8: 7.39 | E8: C
B9: Paratransit Shuttle | C9: 7.08 | D9: 8 | E9: B
B10: Light Truck/Van | C10: 17.5 | D10: =C10/0.885 -> 19.7740113 | E10: C
B11: Car | C11: 24.2 | D11: =C11/0.885 -> 27.34463277 | E11: C
B12: Ridesourcing Vehicle | C12: 25.5 | D12: =C12/0.885 -> 28.81355932 | E12: E
B13: Motorcycle | C13: 44 | D13: =C13/0.885 -> 49.71751412 | E13: C
B16: Data Sources:
B17: A: Gordon, Deborah, Juliet Burdelski, and James S. Cannon. Greening Garbage Trucks: New Technologies for Cleaner Air. Inform, Inc. 2003. ISBN #0-918780-80-2.
B18: B: Calculated from statistics found in American Public Transit Association's Public Transportation Fact Book 2019. Accessed 02/11/2020 at: apta.com/wp-content/uploads/APTA_Fact-Book-2019_FINAL.pdf
B19: C: Federal Highway Administration. Highway Statistics 2018, Table VM-1. Accessed 02/11/20 at fhwa.dot.gov/policyinformation/statistics/2018/pdf/vm1.pdf
B20: D: American School Bus Council. National School Bus Fuel Data. Accessed 11/21/18 at americanschoolbuscouncil.org/insights/environment/
B21: E: Wenzel, Tom, Clement Rames, Eleftheria Kontou, and Alejandro Henao. "Travel and energy implications of ridesourcing service in Austin, Texas." Transportation Research Part D: Transport and Environment 70 (2019): 18-34.
B23: Notes:
B24: The metric used is gasoline gallon equivalents (GGEs), representing a quantity of fuel with the same amount of energy contained in a gallon of gasoline.
B25: Numbers in bold indicate that the measurements were taken using that fuel. They are the source of the non-bold energy based conversions.
B26: Conversion between diesel and gasoline is 1 gallon gasoline = 0.885 gallons diesel (from the AFDC)
B27: Light-duty vehicles are sales-weighted combination of cars, wagons, vans, sport utility vehicles, and pickups. Vehicles with short wheelbases (<121") are generalized as cars and vehicles with long wheelbases are generalized as light trucks.
B28: Delivery trucks are single-unit trucks with 2 axles and 6 or more tires.
B29: Class 8 trucks are combined tractor/trailer trucks, also know as long-haul.
B30: Transit buses include both conventional diesel and hybrid-electric diesel.
B32: Acronyms:
B33: MPG: Miles per gallon
B35: Worksheet available at afdc.energy.gov/data
B36: Last updated 02/11/2020

Sheet Truck Databook

Sheet Refuler
A1: Component
A5: Cost | B5: ='NREL Backup'!N13 -> 2954420 | C5: ='NREL Backup'!O13 -> 1414800 | D5: ='NREL Backup'!P13 -> 101812500 | E5: ='NREL Backup'!Q13 -> 41833200
A6: kg/year | B6: ='NREL Backup'!N5*365 -> 547500 | C6: ='NREL Backup'!O5*365 -> 547500 | D6: ='NREL Backup'!P5*365 -> 18250000 | E6: ='NREL Backup'!Q5*365 -> 18250000
A7: Capital/kg Produced/yr | B7: =B5/B6 -> 5.396200913 | C7: =C5/C6 -> 2.584109589 | D7: 5.578767123 | E7: 2.292230137
B8: =B10/B7 -> 0.2501760075 | C8: =C10/C7 -> 0.2244486853 | D8: 0.2384039288 | E8: 0.2312158764
A9: Eletrolizer | B9: Current Forecourt | C9: Future Forecourt | D9: Current Central | E9: Future
A10: Capital per kg | B10: 1.35 | C10: 0.58 | D10: 1.33 | E10: 0.53
A11: Decommissioning | B11: 0.02 | C11: 0.01 | D11: 0 | E11: 0
A12: Fixed operations and maintenance (O&M | B12: 0.42 | C12: 0.18 | D12: 0.4 | E12: 0.2
A13: Feedstock | B13: 3.34 | C13: 3.46 | D13: 3.38 | E13: 3.46 | G13: 2107142
A14: Variable O&M | B14: 0.01 | C14: 0.01 | D14: 0.01 | E14: 0.01
A16: Total Production Cost (2007$/kg | B16: 5.14 | C16: 4.23 | D16: 5.12 | E16: 4.2
G17: 785700
A18: Capital | B18: 1.53 | C18: 0.92
A19: Fixed O&M | B19: 0.54 | C19: 0.38
A20: Variable O&M | B20: 0.36 | C20: 0.27
A21: Total CSD (Forecourt only (2007$/kg | B21: 2.44 | C21: 1.57
A23: Total Cost (2007$/kg | B23: 7.58 | C23: 5.79 | D23: 5.12 | E23: 4.2 | G23: 118000
A24: Cost per kg | B24: =B18/B8 -> 6.115694368 | C24: =C18/C8 -> 4.098932452 | D24: 0 | E24: 0 | G24: =G13+G23 -> 2225142
B26: =B24*B6 -> 3348342.667 | C26: =C24*C6 -> 2244165.517 | G26: 526785
B27: =B6/365 -> 1500 | C27: =C6/365 -> 1500 | G27: =G26/G24 -> 0.2367421944
B28: =B26/B27 -> 2232.228444 | C28: =C26/C27 -> 1496.110345 | G28: =G24+G17 -> 3010842
G29: =G26/G28 -> 0.1749626849

Sheet Databook
D2: Govt pays gap | E2: AUD
D3: Conventional | E3: 435000 | H3: No Payment for Trucks
D4: Hydrogen | E4: 735000
D5: Pct Govt | E5: 0
H6: Maintenance costs the same
B7: Trucks
C9: Hyundai 18T HFCEV Reference
D10: H2 Tank Capacity | E10: 33 | F10: kg
D11: Range | E11: 400 | F11: km
D12: H2 Consumption | E12: =E10/(E11/100) -> 8.25 | F12: kg/100km
D14: Diesel Medium Duty Reference
D15: Diesel Consumption | E15: 29.42546584 | F15: L/100km | H15: =E15/100 -> 0.2942546584
C17: LMCC (Council) Medium Duty Diesel
D18: Diesel Consumption | E18: 102.35 | F18: L/100km
D19: Multiple vs Reference | E19: =E18/E15 -> 3.478279683
D20: LMCC Annual Range | E20: 22000 | F20: km/Year/Truck
D21: Reference Cost of Diesel | E21: 1.32 | F21: $/L
C23: Hydrogen FCEV Refuse Truck (@ Model)
D24: Drivetrain Efficiency Uplift | E24: 0.4 | F24: 0.4
D25: H2 Consumption | E25: =(1-E24)*E19*E12 -> 17.21748443 | F25: kg/100km | G25: =E25/100 -> 0.1721748443
D26: H2 Capacity | E26: 40 | F26: kg
D27: Range | E27: =E26/E25*100 -> 232.3219757 | F27: km
D28: Annual Consumption | E28: =E20/100*E25 -> 3787.846575 | F28: kg/Truck
D29: Monthly Consumption | E29: =E28/12 -> 315.6538813 | F29: kg/Truck
D30: Breakeven Cost of H2 | E30: =E18*E21/E25 -> 7.84679089 | F30: $/kg
C32: Truck
D33: Truck Cost | E33: 520000 | F33: AUD | G33: (Select)
D34: Truck Sell | E34: 415000 | F34: AUD | G34: (Select)
D35: Truck Amortisation Period | E35: 7 | F35: Years | G35: (Fixed)
D36: Truck Buy Back Value | E36: =IF($E$33=520000,Databook!$E$43,IF($E$33=823235,Databook!$F$43,IF($E$33=845294,Databook!$G$43,"Error"))) -> 78000 | F36: AUD | G36: (Calculated)
D37: Truck H2 Consumption | E37: =Databook!$E$29 -> 315.6538813 | F37: kg/Month/Truck | G37: (Calculated)
D38: Demo Truck Cost | E38: =SUM(Databook!E53:E62) -> 310000 | F38: $ | G38: (Calculated)
C40: Amortisation
D41: Truck Lifetime | E41: =Databook!$E$35 -> 7 | F41: =Databook!$E$35 -> 7 | G41: =Databook!$E$35 -> 7 | H41: Years
D42: Residual (Factor) | E42: 0.15 | F42: 0.15 | G42: 0.15 | H42: %
D43: Residual (Buyback) Value | E43: =E64*E42 -> 78000 | F43: =F64*F42 -> 123485.2941 | G43: =G64*G42 -> 126794.1176 | H43: $
D44: Stack Refit Cost | E44: 80000 | F44: 80000 | G44: 80000 | H44: $/Stack
D45: Number of Stacks | E45: 1 | F45: 2 | G45: 2
D46: Pre-Disposal Cost | E46: =E43+E44*E45 -> 158000 | F46: =F43+F44*F45 -> 283485.2941 | G46: =G43+G44*G45 -> 286794.1176
D47: Disposal (Factor) | E47: 0.5 | F47: 0.45 | G47: 0.45 | H47: %
D48: Disposal Value | E48: =E47*E64 -> 260000 | F48: =F47*F64 -> 370455.8824 | G48: =G47*G64 -> 380382.3529
E50: =C17 -> LMCC (Council) Medium Duty Diesel | F50: =C17 -> LMCC (Council) Medium Duty Diesel | G50: =C23 -> Hydrogen FCEV Refuse Truck (@ Model)
C51: Truck Cost Scenarios | E51: 1 | F51: 2 | G51: 3
D52: Glider | E52: 100000 | F52: =485000/0.68 -> 713235.2941 | G52: =500000/0.68 -> 735294.1176
D53: Fuel Cell | E53: 150000
D54: Storage | E54: 50000
D55: Storage Subframe | E55: 10000
D56: Battery | E56: 30000
D57: Motor | E57: 20000
D58: Controller | E58: 10000
D59: Gearbox | E59: 10000
D60: Connections | E60: 10000
D61: Frames | E61: 10000
D62: Assembly | E62: 10000
D63: Compactor | E63: 110000 | F63: 110000 | G63: 110000
D64: Total | E64: =SUM(E52:E63) -> 520000 | F64: =SUM(F52:F63) -> 823235.2941 | G64: =SUM(G52:G63) -> 845294.1176
B66: Electrolyser Scenarios | E66: 1 | F66: 2 | G66: 3
D67: Rated Output (MW) | E67: 1.4 | F67: 1.4 | G67: 1.4 | H67: MW
D69: Installed Cost | E69: =SUM(Databook!$E$154:$E$157) -> 6800000 | F69: =SUM(Databook!$E$154:$E$157) -> 6800000 | G69: =SUM(Databook!$E$154:$E$157) -> 6800000 | H69: AUD
D70: Cost per kW | E70: =E$69/E67/1000 -> 4857.142857 | F70: =F$69/F67/1000 -> 4857.142857 | G70: =G$69/G67/1000 -> 4857.142857 | H70: AUD
D71: Uptime | E71: 0.98 | F71: 0.98 | G71: 0.98 | H71: %
D73: Efficiency
D74: Electrolyser (kWh/kg) | E74: 60 | F74: 60 | G74: 60 | H74: kWh/kg
D75: Compression | E75: 10 | F75: 10 | G75: 10 | H75: kWh/kg
D76: Total | E76: =E75+E74 -> 70 | F76: =F75+F74 -> 70 | G76: =G75+G74 -> 70 | H76: kWh/kg
D77: Electrolyser (kg/kWh) | E77: =1/E74 -> 0.01666666667 | F77: =1/F74 -> 0.01666666667 | G77: =1/G74 -> 0.01666666667
D78: Total kg/kWh | E78: =1/E76 -> 0.01428571429 | F78: =1/F76 -> 0.01428571429 | G78: 0.01428571429
D79: Hourly (kg) | E79: =E78*E67*1000 -> 20 | F79: =F78*F67*1000 -> 20 | G79: =G78*G67*1000 -> 20
E80: =E79*24 -> 480 | F80: =F79*24 -> 480 | G80: 480
D81: Daily (@ MAX) | E81: =E67*1000/E76*E71*24 -> 470.4 | F81: =F67*1000/F76*F71*24 -> 470.4 | G81: =G67*1000/G76*G71*24 -> 470.4 | H81: kg
D82: Monthly (@ MAX) | E82: =E81*365.25/12 -> 14317.8 | F82: =F81*365.25/12 -> 14317.8 | G82: =G81*365.25/12 -> 14317.8 | H82: kg
D83: Annually (@ MAX) | E83: =E81*365.25 -> 171813.6 | F83: =F81*365.25 -> 171813.6 | G83: =G81*365.25 -> 171813.6 | H83: kg
D85: O&M
D86: Amortisation Period | E86: 8 | F86: 14 | G86: 20 | H86: Years
D87: Stack Refits | E87: 0 | F87: 1 | G87: 2 | H87: #
D88: Stack Refit Cost | E88: 1000000 | F88: 1000000 | G88: 1000000 | H88: $/Refit
D89: Retrofit Cost Percent of Total | E89: =E88/E69 -> 0.1470588235 | F89: =F88/F69 -> 0.1470588235 | G89: 0.1470588235
D91: Output
D92: Cost/kg | E92: =E69/E79 -> 340000 | F92: =F69/F79 -> 340000 | G92: =G69/G79 -> 340000
D93: Electrolyzer Cost/kg | E93: =E157/$E$79 -> 165000
D95: Production Capacity
D97: OpEx
D98: Overhead (Factor) | E98: 0.012 | F98: 0.012 | G98: 0.012 | H98: % CapEx
D99: Monthly Cost | E99: =E100/12 -> 6800 | F99: =F100/12 -> 6800 | G99: =G100/12 -> 6800 | H99: $/Month
D100: Annual Cost | E100: =E98*E69 -> 81600 | F100: =F98*F69 -> 81600 | G100: =G98*G69 -> 81600 | H100: $/Year
D101: Lifetime Cost | E101: =E100*E86 -> 652800 | F101: =F100*F86 -> 1142400 | G101: =G100*G86 -> 1632000 | H101: $
D103: Disposal Value
D104: Residual (Factor) | E104: 0.5 | F104: 0.35 | G104: 0.2 | H104: %
D105: Residual Value | E105: =E104*E69 -> 3400000 | F105: =F104*F69 -> 2380000 | G105: =G104*G69 -> 1360000 | H105: $
B108: Hydrogen COGS Scenarios | E108: 1 | F108: 2 | G108: 3 | L108: Bond rate | M108: 0.02
D109: Energy Cost (All In) | E109: 60 | F109: 90 | G109: 120 | H109: $/MWh
D111: Production Efficiency | E111: =Databook!$E$76 -> 70 | F111: =Databook!$E$76 -> 70 | G111: =Databook!$E$76 -> 70 | H111: kWh/kg
D113: Water Cost | E113: =Databook!$E$175 -> 2.1 | F113: =Databook!$E$175 -> 2.1 | G113: =Databook!$E$175 -> 2.1 | H113: $/kL
D114: Water Supply Charge | E114: =Databook!$E$176/3 -> 833.3333333 | F114: =Databook!$E$176/3 -> 833.3333333 | G114: =Databook!$E$176/3 -> 833.3333333 | H114: $/Month
D115: Water Consumption | E115: 11.62 | F115: 11.62 | G115: 11.62 | H115: L/kg
D117: Energy
D118: Daily @ MAX | E118: =E$111*Databook!$E81 -> 32928 | F118: =F$111*Databook!$E81 -> 32928 | G118: =G$111*Databook!$E81 -> 32928 | H118: kWh
D119: Monthly @ MAX | E119: =E$111*Databook!$E82 -> 1002246 | F119: =F$111*Databook!$E82 -> 1002246 | G119: =G$111*Databook!$E82 -> 1002246 | H119: kWh
D120: Annually @ MAX | E120: =E$111*Databook!$E83 -> 12026952 | F120: =F$111*Databook!$E83 -> 12026952 | G120: =G$111*Databook!$E83 -> 12026952 | H120: kWh
D122: Energy Cost
D123: Daily @ MAX | E123: =E118*E$109/1000 -> 1975.68 | F123: 2963.52 | G123: 3951.36 | H123: $/Day
D124: Monthly @ MAX | E124: 60134.76 | F124: 90202.14 | G124: 120269.52 | H124: $/Month
D125: Annually @ MAX | E125: 721617.12 | F125: 1082425.68 | G125: 1443234.24 | H125: $/Year
D127: Water
D128: Daily @ MAX | E128: =E$115*Databook!$E81 -> 5466.048 | F128: =F$115*Databook!$E81 -> 5466.048 | G128: =G$115*Databook!$E81 -> 5466.048 | H128: L/Day
D129: Monthly @ MAX | E129: =E$115*Databook!$E82 -> 166372.836 | F129: =F$115*Databook!$E82 -> 166372.836 | G129: =G$115*Databook!$E82 -> 166372.836 | H129: L/Month
D130: Annually @ MAX | E130: =E$115*Databook!$E83 -> 1996474.032 | F130: =F$115*Databook!$E83 -> 1996474.032 | G130: =G$115*Databook!$E83 -> 1996474.032 | H130: L/Year
D132: Water
D133: Daily @ MAX | E133: =(E$114*12/365.25)+(E$113*E$128)/1000 -> 38.85720867 | F133: =(F$114*12/365.25)+(F$113*F$128)/1000 -> 38.85720867 | G133: =(G$114*12/365.25)+(G$113*G$128)/1000 -> 38.85720867 | H133: $/Day
D134: Monthly @ MAX | E134: =(E$114)+(E$113*E$129)/1000 -> 1182.716289 | F134: =(F$114)+(F$113*F$129)/1000 -> 1182.716289 | G134: =(G$114)+(G$113*G$129)/1000 -> 1182.716289 | H134: $/Month
D135: Annually @ MAX | E135: =(E$114*12)+(E$113*E$130)/1000 -> 14192.59547 | F135: =(F$114*12)+(F$113*F$130)/1000 -> 14192.59547 | G135: =(G$114*12)+(G$113*G$130)/1000 -> 14192.59547 | H135: $/Year
D137: Hydrogen COGS
D138: Daily @ MAX | E138: =E133+E123 -> 2014.537209 | F138: 3002.377209 | G138: 3990.217209 | H138: $/Day
D139: Monthly @ MAX | E139: 61317.47629 | F139: 91384.85629 | G139: 121452.2363 | H139: $/Month
D140: Annually @ MAX | E140: 735809.7155 | F140: 1096618.275 | G140: 1457426.835 | H140: $/Year
D142: Unit COGS | E142: =E138/Databook!$E$81 -> 4.28260461 | F142: =F138/Databook!$E$81 -> 6.38260461 | G142: =G138/Databook!$E$81 -> 8.48260461 | H142: $/kg
C146: Financial Inputs
D147: Investment | E147: 6000000 | F147: $ | G147: (Input)
D148: LMCC Milestone 1 Fee | E148: 200000 | F148: $ | G148: (Fixed)
D149: LMCC Milestone 2 Fee | E149: 1000000 | F149: $ | G149: (Fixed)
D150: ARENA Contribution (% Expenses) | E150: 0.4 | F150: % | G150: (Input) | I150: Lifetime of Electorlyzer | K150: 100000 | L150: hrs
D151: Model Inputs | I151: Degradation | J151: % p.a. | K151: 0.01
D153: Plant | I153: Lifetime | K153: 100000 | L153: hrs
D154: Refueller Cost | E154: 3500000 | F154: AUD | G154: (Fixed) | I154: O&M 10% of Capital
I156: Lifetime of Truck | K156: 8 | L156: yrs
D157: Electrolyser & BoP Cost | E157: 3300000 | F157: AUD | G157: (Fixed)
D159: Total Cost | E159: =E154+E157 -> 6800000
D162: Plant Amortisation Period | E162: 8 | F162: Years | G162: (Fixed)
D163: Plant Loan Value Ratio | E163: 0.8 | G163: (Select) | I163: Sell Fuel at equivalent Diesel
D164: Refueller Principal PMT | E164: =IF($E$162=8,Databook!$E$207,IF($E$162=14,Databook!$F$207,IF($E$162=20,Databook!$G$207,"Error"))) -> 10937.5 | F164: $/Month | G164: (Calculated)
D165: Refueller Interest PMT | E165: =IF($E$162=8,Databook!$E$209,IF($E$162=14,Databook!$F$209,IF($E$162=20,Databook!$G$209,"Error"))) -> 7694.572401 | F165: $/Month | G165: (Calculated)
D166: Electrolyser Principal PMT | E166: =IF($E$162=8,Databook!$E$208,IF($E$162=14,Databook!$F$208,IF($E$162=20,Databook!$G$208,"Error"))) -> 10312.5 | F166: $/Month | G166: (Calculated)
D167: Electrolyser Interest PMT | E167: =IF($E$162=8,Databook!$E$210,IF($E$162=14,Databook!$F$210,IF($E$162=20,Databook!$G$210,"Error"))) -> 7254.882549 | F167: $/Month | G167: (Calculated)
D168: Refueller Depreciation | E168: =IF($E$162=8,Databook!$E$215,IF($E$162=14,Databook!$F$215,IF($E$162=20,Databook!$G$215,"Error"))) -> 18229.16667 | F168: $/Month | G168: (Calculated)
D169: Electrolyser Depreciation | E169: =IF($E$162=8,Databook!$E$216,IF($E$162=14,Databook!$F$216,IF($E$162=20,Databook!$G$216,"Error"))) -> 17187.5 | F169: $/Month | G169: (Calculated)
D170: Refueller Residual | E170: =IF($E$162=8,E154/SUM(E154:E157)*Databook!$E$105,IF($E$162=14,E154/SUM(E154:E157)*Databook!$F$105,IF($E$162=20,E154/SUM(E154:E157)*Databook!$G$105,"Error"))) -> 1750000 | F170: $/Month | G170: (Calculated)
D171: Electrolyser Residual | E171: =IF($E$162=8,E157/SUM(E154:E157)*Databook!$E$105,IF($E$162=14,E157/SUM(E154:E157)*Databook!$F$105,IF($E$162=20,E157/SUM(E154:E157)*Databook!$G$105,"Error"))) -> 1650000 | F171: $/Month | G171: (Calculated)
D173: O&M
D174: Energy Cost | E174: 120 | F174: $/MWh | G174: (Select)
D175: Water Cost | E175: 2.1 | F175: $/kL | G175: (Fixed)
D176: Water Supply | E176: 2500 | F176: $/QTR | G176: (Calculated)
D177: Plant OpEx | E177: =IF($E$162=8,Databook!$E$99,IF($E$162=14,Databook!$F$99,IF($E$162=20,Databook!$G$99,"Error"))) -> 6800 | F177: $/Month | G177: (Calculated)
C179: Hydrogen Cost
D180: COGS (Energy + Water) | E180: =IF(E174=120,Databook!G142,IF(E174=90,Databook!F142,IF(E174=60,Databook!E142,"Error"))) -> 8.48260461 | F180: $/kg | G180: (Calculated)
D181: Plant Component @ MAX | E181: =IF(E162=8,Databook!$E$219,IF(E162=14,Databook!$F$219,IF(E162=20,Databook!$G$219,"Error"))) -> 3.992660997 | F181: $/kg | G181: (Calculated)
D182: Plant Component @ Model | E182: =IF(E162=8,Databook!$E$220,IF(E162=14,Databook!$F$220,IF(E162=20,Databook!$G$220,"Error"))) ->  | F182: $/kg | G182: (Calculated)
D183: Total Unit Cost @ MAX | E183: =E181+E180 -> 12.47526561 | F183: $/kg | G183: (Calculated)
D184: Total Unit Cost @ Model | E184: =E182+E180 ->  | F184: $/kg | G184: (Calculated)
D185: H2 Diesel Breakeven Sell Price | E185: =Databook!E30 -> 7.84679089 | F185: $/kg | G185: (Calculated)
D187: Asset Finance
D188: Cost of Capital | E188: 0.04 | G188: (Fixed)
D189: Loan Term | E189: =E162 -> 8 | F189: Years | G189: (Fixed)
D191: Other
D192: Staff incl. Overhead | E192: =Databook!E235 -> 101500 | F192: $/Month | G192: (Fixed)
D193: Imported Gas Budget | E193: 200000 | F193: $ | G193: (Fixed)
D199: Asset Finance
D200: LVR | E200: =Databook!$E$163 -> 0.8 | F200: =Databook!$E$163 -> 0.8 | G200: =Databook!$E$163 -> 0.8 | H200: %
D201: Loan Principal | E201: =E200*(E69+E87*E88) -> 5440000 | F201: =F200*(F69+F87*F88) -> 6240000 | G201: =G200*(G69+G87*G88) -> 7040000 | H201: $
D202: Total Repayable | E202: =12*E86*PMT(Databook!$E$188/12,Databook!E86*12,-1*(Databook!E201),Databook!E105,0)+E105 -> 6875147.675 | F202: =12*F86*PMT(Databook!$E$188/12,Databook!F86*12,-1*(Databook!F201),Databook!F105,0)+F105 -> 8760215.942 | G202: =12*G86*PMT(Databook!$E$188/12,Databook!G86*12,-1*(Databook!G201),Databook!G105,0)+G105 -> 10708723.85 | H202: $
D203: Monthly INT & Principal | E203: =PMT(Databook!$E$188/12,Databook!E86*12,-1*Databook!E201,Databook!E105,0) -> 36199.45495 | F203: =PMT(Databook!$E$188/12,Databook!F86*12,-1*Databook!F201,Databook!F105,0) -> 37977.47584 | G203: =PMT(Databook!$E$188/12,Databook!G86*12,-1*Databook!G201,Databook!G105,0) -> 38953.01604 | H203: $/Month
D204: Monthly Interest | E204: =(E202-E201)/(12*E86) -> 14949.45495 | F204: =(F202-F201)/(12*F86) -> 15001.28537 | G204: =(G202-G201)/(12*G86) -> 15286.34937 | H204: $/Month
D205: Mthly P&I Refueller | E205: =E207+E209 -> 18632.0724 | F205: 19547.23021 | G205: 20049.34649 | H205: $/Month
D206: Mthly P&I Electrolyser | E206: 17567.38255 | F206: 18430.24563 | G206: 18903.66955 | H206: $/Month
D207: Mthly Principal Refueller | E207: =Databook!$E$154/SUM(Databook!$E$154:$E$157)*(E203-E204) -> 10937.5 | F207: =Databook!$E$154/SUM(Databook!$E$154:$E$157)*(F203-F204) -> 11825.98039 | G207: =Databook!$E$154/SUM(Databook!$E$154:$E$157)*(G203-G204) -> 12181.37255 | H207: $/Month
D208: Mthly Principal Electrolyser | E208: =Databook!$E$157/SUM(Databook!$E$154:$E$157)*(E203-E204) -> 10312.5 | F208: =Databook!$E$157/SUM(Databook!$E$154:$E$157)*(F203-F204) -> 11150.21008 | G208: =Databook!$E$157/SUM(Databook!$E$154:$E$157)*(G203-G204) -> 11485.29412 | H208: $/Month
D209: Mthly INT Refueller | E209: =Databook!$E$154/SUM(Databook!$E$154:$E$157)*Databook!E204 -> 7694.572401 | F209: =Databook!$E$154/SUM(Databook!$E$154:$E$157)*Databook!F204 -> 7721.249821 | G209: =Databook!$E$154/SUM(Databook!$E$154:$E$157)*Databook!G204 -> 7867.973941 | H209: $/Month
D210: Mthly INT Electrolyser | E210: =Databook!$E$157/SUM(Databook!$E$154:$E$157)*Databook!E204 -> 7254.882549 | F210: =Databook!$E$157/SUM(Databook!$E$154:$E$157)*Databook!F204 -> 7280.035546 | G210: =Databook!$E$157/SUM(Databook!$E$154:$E$157)*Databook!G204 -> 7418.37543 | H210: $/Month
D212: Lifetime Asset Cost
D213: Net Exposure Ex OpEx | E213: =E69+E87*E88-E105 -> 3400000 | F213: =F69+F87*F88-F105 -> 5420000 | G213: =G69+G87*G88-G105 -> 7440000 | H213: $
D214: Monthly Depreciation | E214: =(E69-E105)/(12*E86) -> 35416.66667 | F214: =(F69-F105)/(12*F86) -> 26309.52381 | G214: =(G69-G105)/(12*G86) -> 22666.66667 | H214: $/Month
D215: Mthly Dep. Refueller | E215: =Databook!$E$154/SUM(Databook!$E$154:$E$157)*Databook!E214 -> 18229.16667 | F215: =Databook!$E$154/SUM(Databook!$E$154:$E$157)*Databook!F214 -> 13541.66667 | G215: =Databook!$E$154/SUM(Databook!$E$154:$E$157)*Databook!G214 -> 11666.66667 | H215: $/Month
D216: Mthly Dep. Electrolyser | E216: =Databook!$E$157/SUM(Databook!$E$154:$E$157)*Databook!E214 -> 17187.5 | F216: =Databook!$E$157/SUM(Databook!$E$154:$E$157)*Databook!F214 -> 12767.85714 | G216: =Databook!$E$157/SUM(Databook!$E$154:$E$157)*Databook!G214 -> 11000 | H216: $/Month
D218: Net Total Cost | E218: =(1-E200)*(E69+E87*E88)+E202+E101-E105 -> 5487947.675 | F218: =(1-F200)*(F69+F87*F88)+F202+F101-F105 -> 9082615.942 | G218: =(1-G200)*(G69+G87*G88)+G202+G101-G105 -> 12740723.85 | H218: $
D219: Plant Cost of H2 @ MAX | E219: =E218/(E86*E83) -> 3.992660997 | F219: =F218/(F86*F83) -> 3.775942542 | G219: =G218/(G86*G83) -> 3.707716924 | H219: $/kg
D220: Plant Cost of H2 @ Model | E220: =(96/(E86*12)*E218/#REF!) ->  | F220: =(96/(F86*12)*F218/#REF!) ->  | G220: =(96/(G86*12)*G218/#REF!) ->  | H220: $/kg
D223: Project Overheads
D224: Managing Director | E224: 150000 | F224: $/Year
D225: Engineering Director | E225: 150000 | F225: $/Year
D226: Commercial Director | E226: 150000 | F226: $/Year
D227: Senior Engineer, Trucks | E227: 150000 | F227: $/Year | G227: 2931200
D228: Senior Engineer | E228: 150000 | F228: $/Year | G228: 125000
D229: Project Director | E229: 120000 | F229: $/Year | G229: =SUM(G227:G228) -> 3056200
D230: Annual Subtotal | E230: =SUM(E224:E229) -> 870000 | F230: $/Year | G230: 1200 | H230: kW
G231: =G229/G230 -> 2546.833333 | H231: AUD
D232: Overhead (Factor) | E232: 0.4 | G232: =G231*0.71 -> 1808.251667 | H232: USD
D233: Overhead Value | E233: =E232*E230 -> 348000 | F233: $/Year
G234: 89280
D235: Monthly Total | E235: =E236/12 -> 101500 | F235: $/Month | G235: =G234/G229 -> 0.02921274786
D236: Annual Total | E236: =E233+E230 -> 1218000 | F236: $/Year
D241: 1 Kg of Hydrogen would need 3,33 kw/kg
F243: Cap Exp for Refueller - compressor / storage
F244: 2107142
F247: Dispensor + Chiller +heat exchange +associated pipework
F248: 171450
F249: filling rate 14-20 min for 50 kg of H2
F250: Dispensor + Chiller +heat exchange +associated pipework
F251: 785700
F252: filling rate 8-14 mins for 50 kg of H2
F253: =AVERAGE(8,14) -> 11
F255: mario, 8:21 PM
... 1 more rows

Sheet Original Assumptions
A4: Assumptions
B5: Capacity and Production | F5: USD | G5: AUD
C6: Project Lifetime | E6: years | F6: 20
C7: Capacity | F7: Use the Capacity
C9: Size of installation | E9: kW | F9: 220 | P9: =200/1.61 -> 124.2236025
C10: Availability | E10: % | F10: 0.97 | P10: =40/1.61 -> 24.8447205
C11: Hours of operation | E11: hours | F11: =8760*F10 -> 8497.2
C12: Power Conversion | E12: kWh/kg | F12: 58
C13: Power Conversion Reciprical | E13: kg/KW | F13: =1/F12 -> 0.01724137931 | J13: 48
C14: Hydrogen Capacity | E14: kg | F14: =F9*F13 -> 3.793103448
C15: Hydrogen generation | E15: kg p.a. | F15: =((F9/F12)*F11) -> 32230.75862 | P15: 1 usd ~ .78 stg
C16: Generation per Day | E16: kg p. day | F16: =F15/365 -> 88.30344828 | P16: =1/0.78 -> 1.282051282
C18: Rate of Return | E18: % | F18: 0.08 | P18: 1usd~ .62 Aud | V18: Pareto function: the first 20% of the years covers 80% of the costs (almost)
C19: Conversion from Nm3 to kg | E19: Nm3 to kg | F19: 0.083748
B21: Cap Exp for Electrolyser | F21: Cost USD
C22: Electrolyser | E22: $ | F22: =capexp*100 -> 193200 | K22: capexp | L22: 1932 | M22: base capexp | N22: 1932 | P22: Notes
C23: Stack replacement | E23: $ | F23: 57960
C24: Storage | E24: $ | F24: 32200 | P24: =515/ 1.28 -> 402.34375
C25: Compression | E25: $ | F25: 124000 | P25: =1/0.62 -> 1.612903226
C26: Direct Costs | E26: $ | F26: =SUM(F22:F25) -> 407360 | Q26: USD
P27: 220kW ITM PEM electrolyser GBP515k | Q27: =515*1.28 -> 659.2 | R27: k
C28: Civil works costs | E28: $ | F28: 161000 | P28: Rated at 57-63kW/kg/hr
C29: Grid connection costs | E29: $ | F29: 80500 | P29: Equates to 84kg / day (there is a 0.2% cost reduction per kg under this amount when delivered)…
C30: Permits costs/ shipping | E30: $ | F30: 24844
C31: Project costs | E31: $ | F31: =SUM(F28:F30) -> 266344 | P31: GBP 40k install | Q31: =40*1.28 -> 51.2 | R31: k
P32: GBP 25-40k shipping | Q32: =35*1.28 -> 44.8 | R32: k
D33: CAPEX total | E33: $ | F33: =F31+F26 -> 673704 | P33: GBP 94k per annum maintenance | Q33: =94*1.28 -> 120.32 | R33: annual
D35: Capital Cost/kW | E35: $/kW | F35: =F33/F9 -> 3062.290909 | P35: Haskel compressor $AUD200k (slow mechanical style pump) | Q35: =200*0.62 -> 124 | R35: k
D36: Capital Cost/kg | E36: $/kg | F36: =F33/F14 -> 177612.8727 | P36: Refueller $AUD1.4M (this is from Linde – | Q36: =1.4*1.61 -> 2.254 | R36: m
D38: O&M costs | E38: $/a | F38: 7728 | G38: =F38/F15 -> 0.239770962
D39: Labor costs | E39: $/a | F39: 0
D40: Wastewater treatment costs | E40: $ | F40: 5000
D41: Feedstock - water | E41: $ | F41: 500
D42: OPEX total | E42: $ | F42: =opexp -> 13228 | K42: opexp | L42: 13228 | M42: base opexp | N42: 13228
D44: Price of electricity | E44: $/MWh | F44: =L44 -> 45 | G44: 100 | K44: electricity | L44: 45 | M44: base electricity | N44: 40
D45: Feedstock - electricity | E45: $/a | F45: =F44*F11 -> 382374
D49: Year | F49: CAPEX | J49: OPEX | K49: Feed - EL | L49: Feed - water | M49: Hydrogen | O49: CAPEX(0) | P49: OPEX(0) | Q49: Feed - EL(0) | R49: Feed - water(0) | S49: Hydrogen(0) | U49: CAPEX_sum | V49: OPEX_sum | W49: Feed-EL_sum | X49: Feed-water_sum | Y49: Hydrogen_sum | Z49: LCOH(t)
D50: 1 | F50: =+$F$33 -> 673704 | J50: =+$F$42 -> 13228 | K50: =+$F$45 -> 382374 | L50: =+$F$41 -> 500 | M50: =+$F$15 -> 32230.75862 | O50: =+F50/(1+$F$18/100)^$D50 -> 673165.4676 | P50: =+J50/(1+$F$18/100)^$D50 -> 13217.42606 | Q50: 382068.3453 | R50: 499.6003197 | S50: 32204.99462 | U50: =+O50 -> 673165.4676 | V50: =+P50 -> 13217.42606 | W50: =+Q50 -> 382068.3453 | X50: =+R50 -> 499.6003197 | Y50: =+S50 -> 32204.99462 | Z50: =SUM(U50:X50)/Y50 -> 33.19208253
D51: 2 | F51: 0 | J51: 13228 | K51: 382374 | L51: 500 | M51: =+$F$15 -> 32230.75862 | O51: 0 | P51: 13206.86057 | Q51: 381762.935 | R51: 499.200959 | S51: 32179.25122 | U51: =+O51+U50 -> 673165.4676 | V51: 26424.28663 | W51: 763831.2803 | X51: 998.8012787 | Y51: =+S51+Y50 -> 64384.24585 | Z51: =SUM(U51:X51)/Y51 -> 22.74500255
D52: 3 | F52: 0 | J52: 13228 | K52: 382374 | L52: 500 | M52: 32230.75862 | O52: 0 | P52: 13196.30353 | Q52: 381457.7688 | R52: 498.8019174 | S52: 32153.5284 | U52: 673165.4676 | V52: 39620.59016 | W52: 1145289.049 | X52: 1497.603196 | Y52: 96537.77425 | Z52: 19.2626433
D53: 4 | F53: 0 | J53: 13228 | K53: 382374 | L53: 500 | M53: 32230.75862 | O53: 0 | P53: 13185.75492 | Q53: 381152.8465 | R53: 498.4031949 | S53: 32127.82614 | U53: 673165.4676 | V53: 52806.34508 | W53: 1526441.896 | X53: 1996.006391 | Y53: 128665.6004 | Z53: 17.52146423
D54: 5 | F54: 0 | J54: 13228 | K54: 382374 | L54: 500 | M54: 32230.75862 | O54: 0 | P54: 13175.21475 | Q54: 380848.1679 | R54: 498.0047911 | S54: 32102.14442 | U54: 673165.4676 | V54: 65981.55983 | W54: 1907290.063 | X54: 2494.011182 | Y54: 160767.7448 | Z54: 16.47675723
D55: 6 | F55: 0 | J55: 13228 | K55: 382374 | L55: 500 | M55: 32230.75862 | O55: 0 | P55: 13164.68301 | Q55: 380543.733 | R55: 497.6067057 | S55: 32076.48324 | U55: 673165.4676 | V55: 79146.24284 | W55: 2287833.796 | X55: 2991.617888 | Y55: =+S55+Y54 -> 192844.2281 | Z55: 15.78028627
D56: 7 | F56: 0 | J56: 13228 | K56: 382374 | L56: 500 | M56: 32230.75862 | O56: 0 | P56: 13154.15968 | Q56: 380239.5413 | R56: 497.2089385 | S56: 32050.84256 | U56: 673165.4676 | V56: 92300.40252 | W56: 2668073.338 | X56: 3488.826826 | Y56: 224895.0706 | Z56: 15.28280733
D57: 8 | F57: 0 | J57: 13228 | K57: 382374 | L57: 500 | M57: 32230.75862 | O57: 0 | P57: 13143.64476 | Q57: 379935.5929 | R57: 496.8114893 | S57: 32025.22239 | U57: 673165.4676 | V57: 105444.0473 | W57: 3048008.931 | X57: 3985.638316 | Y57: 256920.293 | Z57: 14.90969841
D58: 9 | F58: 0 | J58: 13228 | K58: 382374 | L58: 500 | M58: 32230.75862 | O58: 0 | P58: 13133.13825 | Q58: 379631.8873 | R58: 496.4143579 | S58: 31999.62269 | U58: 673165.4676 | V58: 118577.1855 | W58: 3427640.818 | X58: 4482.052674 | Y58: 288919.9157 | Z58: 14.61950283
D59: 10 | F59: 0 | J59: 13228 | K59: 382374 | L59: 500 | M59: 32230.75862 | O59: 0 | P59: 13122.64014 | Q59: 379328.4246 | R59: 496.0175438 | S59: 31974.04345 | U59: 673165.4676 | V59: 131699.8257 | W59: 3806969.243 | X59: 4978.070217 | Y59: 320893.9591 | Z59: 14.38734658
D60: 11 | F60: 0 | J60: 13228 | K60: 382374 | L60: 500 | M60: 32230.75862 | O60: 0 | P60: 13112.15042 | Q60: 379025.2044 | R60: 495.621047 | S60: 31948.48467 | U60: 673165.4676 | V60: 144811.9761 | W60: 4185994.447 | X60: 5473.691264 | Y60: 352842.4438 | Z60: 14.19740077
D61: 12 | F61: 0 | J61: 13228 | K61: 382374 | L61: 500 | M61: 32230.75862 | O61: 0 | P61: 13101.66908 | Q61: 378722.2267 | R61: 495.2248671 | S61: 31922.94631 | U61: 673165.4676 | V61: 157913.6452 | W61: 4564716.674 | X61: 5968.916131 | Y61: 384765.3901 | Z61: 14.03911277
D62: 13 | F62: 0 | J62: 13228 | K62: 382374 | L62: 500 | M62: 32230.75862 | O62: 0 | P62: 13091.19613 | Q62: 378419.4911 | R62: 494.8290039 | S62: 31897.42837 | U62: 673165.4676 | V62: 171004.8413 | W62: 4943136.165 | X62: 6463.745135 | Y62: 416662.8185 | Z62: 13.90517695
D63: 14 | F63: 0 | J63: 13228 | K63: 382374 | L63: 500 | M63: 32230.75862 | O63: 0 | P63: 13080.73154 | Q63: 378116.9975 | R63: 494.4334571 | S63: 31871.93082 | U63: 673165.4676 | V63: 184085.5728 | W63: 5321253.162 | X63: 6958.178592 | Y63: 448534.7493 | Z63: 13.79037497
D64: 15 | F64: 0 | J64: 13228 | K64: 382374 | L64: 500 | M64: 32230.75862 | O64: 0 | P64: 13070.27532 | Q64: 377814.7457 | R64: 494.0382265 | S64: 31846.45366 | U64: 673165.4676 | V64: 197155.8482 | W64: 5699067.908 | X64: 7452.216819 | Y64: 480381.203 | Z64: 13.69088008
D65: 16 | F65: 0 | J65: 13228 | K65: 382374 | L65: 500 | M65: 32230.75862 | O65: 0 | P65: 13059.82746 | Q65: 377512.7355 | R65: 493.6433119 | S65: 31820.99686 | U65: 673165.4676 | V65: 210215.6756 | W65: 6076580.643 | X65: 7945.860131 | Y65: 512202.1998 | Z65: 13.60382218
D66: 17 | F66: 0 | J66: 13228 | K66: 382374 | L66: 500 | M66: 32230.75862 | O66: 0 | P66: 13049.38795 | Q66: 377210.9667 | R66: 493.2487129 | S66: 31795.56041 | U66: 673165.4676 | V66: 223265.0636 | W66: 6453791.61 | X66: 8439.108844 | Y66: 543997.7602 | Z66: 13.52700652
D67: 18 | F67: 0 | J67: 13228 | K67: 382374 | L67: 500 | M67: 32230.75862 | O67: 0 | P67: 13038.95678 | Q67: 376909.4392 | R67: 492.8544294 | S67: 31770.1443 | U67: =+O67+U66 -> 673165.4676 | V67: =+P67+V66 -> 236304.0204 | W67: =+Q67+W66 -> 6830701.049 | X67: =+R67+X66 -> 8931.963273 | Y67: =+S67+Y66 -> 575767.9045 | Z67: 13.45872606
D68: 19 | F68: 0 | J68: 13228 | K68: 382374 | L68: 500 | M68: 32230.75862 | O68: 0 | P68: 13028.53396 | Q68: 376608.1526 | R68: 492.460461 | S68: 31744.7485 | U68: 673165.4676 | V68: 249332.5543 | W68: 7207309.202 | X68: 9424.423734 | Y68: 607512.653 | Z68: 13.39763313
D69: 20 | F69: 0 | J69: 13228 | K69: 382374 | L69: 500 | M69: 32230.75862 | O69: 0 | P69: 13018.11946 | Q69: 376307.107 | R69: 492.0668076 | S69: 31719.373 | U69: 673165.4676 | V69: 262350.6738 | W69: 7583616.309 | X69: 9916.490542 | Y69: 639232.026 | Z69: =SUM(U69:X69)/Y69 -> 13.34264961 | AA69: =LCOH(n) -> 
F70: =SUM(F50:F69) -> 673704 | J70: =SUM(J50:J69) -> 264560 | K70: =SUM(K50:K69) -> 7647480 | L70: =SUM(L50:L69) -> 10000 | M70: =SUM(M50:M69) -> 644615.1724 | O70: =SUM(O50:O69) -> 673165.4676 | P70: =SUM(P50:P69) -> 262350.6738 | Q70: =SUM(Q50:Q69) -> 7583616.309 | R70: =SUM(R50:R69) -> 9916.490542 | S70: =SUM(S50:S69) -> 639232.026 | T70: =(O70+P70+Q70+R70)/S70 -> 13.34264961
O71: =O70 -> 673165.4676 | P71: =P70 -> 262350.6738 | Q71: =Q70 -> 7583616.309 | R71: =R70 -> 9916.490542 | S71: =SUM(O71:R71) -> 8529048.941
A73: Contents | B73: Electrolyser Assumptions | D73: Levelized Cost of Hydrogen
D75: CAPEXt =Investment expenditures in the year t;
D76: OPEXt =Operations and maintenance expenditures in the year t;
D77: Feedstockt =Electricity & water consumption =Feedstock expenditures in the year t;
D78: Hydrogent =Hydrogen generation in the year t;
D79: rt (Depreciation) =discount rate; and
D80: n =lifetime of plant
A83: Contents
C84: Trucks | F84: 22 | G84: Units
B86: Standard Truck
C88: Hours of Operation per Year | F88: =Inputs!F45*365 -> 3650
C89: Km/Hour | F89: 5
C90: Km Travelled - Standard Truck | F90: =F88*F89 -> 18250 | G90: per annum, each
B92: Hydrogen Truck
C93: Hours of Operation per Day | F93: 10 | G93: Hrs Hydrogen | H93: Base Hydrogen | Z93: 10
C94: Hours of Operation per Year | F94: =F93*365 -> 3650
C95: Km/Hour | F95: 5
C96: Km Travelled - Standard Truck | F96: =F94*F95 -> 18250 | AA96: 300
A99: Retrofit Up-front Cost
C100: FC + Motor+ Storage + Battery | F100: 150000 | G100: $AUD | AA100: Cost Applied | AB100: 150 | AC100: Base Cost | AD100: 150
C101: Exchange Rate AUD/USD | F101: 0.62
C102: FC + Motor+ Storage + Battery | F102: =F100*F101 -> 93000 | G102: USD
C104: HFC+Motor + Storage | F104: 120000 | G104: $
C105: Residual Cost of truck | AA105: If truck is novated to Zenogen from council it may have value
C106: Amount to fund by Zenogen
A109: Diesel Cost
C110: Exchange Rate | F110: =F101 -> 0.62
C111: Diesel Price | F111: 1.5 | G111: AUD $/L | H111: 15 | I111: Diesel
C112: Diesel Price | F112: =F101*F111 -> 0.93 | G112: USD/L
C114: Exchange Rate
C115: Diesel Fuel Cost | F115: 23423.42342 | G115: per truck
F116: =F111*F90 -> 27375
C118: Hydrogen Price | H118: from third party provider : BOC , Liquide
A120: Infrastructure
C121: Refuller Cost | F121: 500000 | G121: AUD | H121: Applied Refuller | I121: 500
C122: Exchange Rate | F122: =F110 -> 0.62
C123: refuller | F123: =F121*F122 -> 310000 | G123: USD
C125: Hydrogen Fuel Cost | F125: 675.8649351 | G125: per truck | H125: Based on what costs ?
C127: Stage 2 | F127: The number below reflect the cost for embedded hydrogen production
C128: AEC 2019 | F128: Alkaline Water Electroysis
C130: Size of installation | F130: 100 | G130: kW
C131: Availability | F131: 0.97 | G131: %
C132: Hours of operation | F132: 8497.2 | G132: hours
C133: Power consumption | F133: 58 | G133: kWh/kg | J133: kw/h | K133: annual
C134: Hydrogen generation ( annual ) | F134: 14650.34483 | G134: kg/annual | H134: =+F134/350 -> 41.85812808
C135: Hydrogen Hourly | F135: =F134/8760 -> 1.672413793
C137: CAPEX total | F137: =SUM(F138:F142) -> 444360 | G137: $ | H137: Need to review
C138: Electrolyser | F138: 193200 | G138: $ | H138: Need to review
C139: Stack replacement | F139: 57960 | G139: $ | H139: Need to review
C140: Storage | F140: 32200 | G140: $ | H140: Need to review
C141: Compression | F141: 161000 | G141: $ | H141: Need to review
C143: Cost/kg | F143: =F137/F135 -> 265699.7938
C145: Project costs | F145: 241500 | G145: $ | H145: Need to review
C146: Civil works costs | F146: 161000 | G146: $ | H146: Need to review
C147: Grid connection costs | F147: 80500 | G147: $ | H147: Need to review
C148: Pv Solar Plant | F148: 150000 | G148: $ | H148: Based on power consumed hours ( b17)
C149: Permits costs | F149: 1000 | G149: $ | H149: monthy rental
C150: OPEX total | F150: 12728 | G150: $ | H150: Need to review
C151: O&M costs | F151: 7728 | G151: $/a | H151: Need to review
C152: Labor costs | F152: - | G152: $/a
C153: Wastewater treatment costs | F153: 5000 | G153: $ | H153: Need to review
C154: Feedstock - electricity | F154: 339888 | G154: $/a | H154: Need to review - based on $40 mw/h
C155: Price of electricity | F155: 40 | G155: $/MWh | H155: Imported Grid power
C156: Price of electricity | F156: 20 | G156: $/MWh | H156: Embedded - PV Solar - assumed
C157: Feedstock - water | F157: 500 | G157: $
C158: r | F158: 0.08 | G158: %
C159: n | F159: 20 | G159: years
C160: Conversion from Nm3 to kg | F160: 0.083748 | G160: Nm3 to kg
C161: Hydrogen price from embedded production
C162: Stage 1 | F162: Retrofitting existing diesel trucks to Hydrogen and refuelling the trucks from hydrogen delivered by a thrid party at a cost per Kg .
H164: Comments
C165: Hydrogen Price | F165: 12 | G165: $/kg
C166: Retrofitting Cost
C171: Number of trucks | F171: 22
C172: KM Travelled | F172: 20000 | G172: per annum , each | H172: annual trucks travel
C173: Life of New Truck | F173: 9 | H173: year post retrofitting
C174: Cost of capital
C175: Leasing payment | H175: Leasing costs to councils ( average ) | J175: =+F172*F177*F179 -> 23423423.42
C176: Hydrogen Mileage | F176: 80 | G176: kg/1000km | H176: =+F176*F104 -> 9600000
C177: Diesel Mileage | F177: 900.9009009 | G177: L/1000km
C178: Hydrogen Fuel Cost | F178: 12 | G178: $/Kg | H178: BOC or Embedded production
C179: Diesel cost per liter | F179: 1.3 | G179: $/L
C180: Diesel Fuel Cost | F180: 23423.42342 | G180: per truck | H180: diesel cost to councils
C181: Hydrogen Fuel Cost | H181: Hydrogen cost to councils
C183: Trucks Background information
C184: Trucks | F184: 22
C185: Km Travelled | F185: 20000 | G185: per annum, each | H185: 80kg /1000 km
H186: truck fuel cell 9 yrs before replaceemnt
C187: Diesel Price | F187: 1.3 | G187: $/L
C189: H2 Energy Input | F189: 41.7 | G189: kWh/kg
C191: Hydrogen Mileage | F191: 40.51948052 | G191: kg/1000km | H191: =+F191*F185 -> 810389.6104
C192: Diesel Mileage | F192: 900.9009009 | G192: L/1000km
C194: Hydrogen Fuel Cost | F194: 675.8649351 | G194: per truck
C195: Diesel Fuel Cost | F195: 23423.42342 | G195: per truck
C197: H2 Capacity | F197: 48.84540117 | G197: kg/day
C199: Electrolysis
C200: Generation
C201: H2 Refueller | F201: 2000000 | G201: installed
C202: Storage infastructure
C204: Project Duration | F204: 10 | G204: years
C205: Hydrogen Project | F205: 2148690.286 | G205: total
F206: 214869.0286 | G206: per annum
C207: Diesel usage over duration | F207: 5153153.153 | G207: total
F208: 515315.3153 | G208: per annum
C210: Hydrogen Cost | F210: 0.834 | G210: $/kg
C211: Breakeven H2 Price | F211: 12.05194872 | G211: $/kg
C212: H2 @ Diesel NPV | F212: 28.9039039 | G212: $/kg
C213: Profit Margin | F213: 16.85195519 | G213: $/kg
F225: Applied_Refuller | G225: Base_Fuller | J225: ='Sceanario assumptions '!$G$42
F226: capexp | G226: base_capexp | J226: ='Electrolyser Assumptions'!$K$27
F227: Cost_Applied | G227: Base_Cost | J227: ='Sceanario assumptions '!$I$21
F228: Hrs_Hydrogen | G228: Base_Hydrogen | J228: ='Sceanario assumptions '!$I$42
F229: Hrs_Truck | G229: Base_Hrs | J229: ='Sceanario assumptions '!$G$5
F230: opexp | G230: base_opexp | J230: ='Sceanario assumptions '!$G$11
J231: ='Electrolyser Assumptions'!$K$47
J232: ='Electrolyser Assumptions'!$I$27
J233: ='Sceanario assumptions '!$G$21
F234: Diesel | J234: ='Sceanario assumptions '!$F$32
J235: ='Sceanario assumptions '!$D$11
J236: ='Sceanario assumptions '!$D$5
F237: InfraNPV | J237: ='Retrofit Financial Model'!$G$56
F238: Infraprice | J238: ='Retrofit Financial Model'!$F$45
F239: npv | J239: ='Electrolizer Financial Model'!$G$37
J240: ='Electrolyser Assumptions'!$I$47
F241: price | J241: ='Electrolizer Financial Model'!$F$17
F242: retronpv | J242: ='Retrofit Financial Model'!$G$30
F243: retroprice | J243: ='Retrofit Financial Model'!$F$15
